OrganisationNameLabel,OrganisationURI,EffectiveDate,Directorate/ServiceWhereExpenditureIncurred,ServiceCategoryLabel,ServiceCategoryURI,Supplier,SupplierRegisteredCompany Number,PaymentDate,TransactionNumber,NetAmount,IrrecoverableVAT,PurposeOfSpend,ProcurementClassification:ProclassLabel,ProcrementClassification:ProClassCode
South Lakeland District Council,http://opendatacommunities.org/id/district-council/south-lakeland,31/05/2017,Business Support Community Services,Internal Trading Accounts,,A & W COMMERCIALS LTD,2630625,03/05/2017,67185,93.87,0,Repair hose,381400,Vehicle Mgt Maintenance
South Lakeland District Council,http://opendatacommunities.org/id/district-council/south-lakeland,31/05/2017,Business Support Community Services,Internal Trading Accounts,,A & W COMMERCIALS LTD,2630625,22/05/2017,67953,76,0,LOLER inspection,381400,Vehicle Mgt Maintenance
South Lakeland District Council,http://opendatacommunities.org/id/district-council/south-lakeland,31/05/2017,Business Support Community Services,Internal Trading Accounts,,A & W COMMERCIALS LTD,2630625,24/05/2017,68305,353.93,0,Hoses,381400,Vehicle Mgt Maintenance
South Lakeland District Council,http://opendatacommunities.org/id/district-council/south-lakeland,31/05/2017,Business Support Community Services,Central Services,http://opendatacommunities.org/def/concept/finance/sercop/objective/102,Abfallbehalter & Container Weber UK Ltd,7173702,17/05/2017,67899,3409.12,0,360-l wheeled bins in dark grey (RAL,181600,Environment Street Cleansing
South Lakeland District Council,http://opendatacommunities.org/id/district-council/south-lakeland,31/05/2017,Environment and Housing,SLDC as Agent,,ABRITAS LTD,4101079,03/05/2017,67192,6858,0,Cumbria Choice Abritas - 2017-18,151200,Consultancy Efficiency
South Lakeland District Council,http://opendatacommunities.org/id/district-council/south-lakeland,31/05/2017,Environment and Housing,SLDC as Agent,,ABRITAS LTD,4101079,03/05/2017,67193,1102,0,Cumbria Choice Abritas - 2017-18,151200,Consultancy Efficiency
South Lakeland District Council,http://opendatacommunities.org/id/district-council/south-lakeland,31/05/2017,Environment and Housing,SLDC as Agent,,ABRITAS LTD,4101079,22/05/2017,68063,6858,0,Cumbria Choice Abritas - 2017-18,151200,Consultancy Efficiency
South Lakeland District Council,http://opendatacommunities.org/id/district-council/south-lakeland,31/05/2017,Environment and Housing,SLDC as Agent,,ABRITAS LTD,4101079,22/05/2017,68064,1102,0,Cumbria Choice Abritas - 2017-18,151200,Consultancy Efficiency
South Lakeland District Council,http://opendatacommunities.org/id/district-council/south-lakeland,31/05/2017,Environment and Housing,SLDC as Agent,,ABRITAS LTD,4101079,24/05/2017,68283,6858,0,Cumbria Choice Abritas - 2017-18,151200,Consultancy Efficiency
South Lakeland District Council,http://opendatacommunities.org/id/district-council/south-lakeland,31/05/2017,Environment and Housing,SLDC as Agent,,ABRITAS LTD,4101079,24/05/2017,68284,1102,0,Cumbria Choice Abritas - 2017-18,151200,Consultancy Efficiency
South Lakeland District Council,http://opendatacommunities.org/id/district-council/south-lakeland,31/05/2017,Environment and Housing,SLDC as Agent,,ABRITAS LTD,4101079,24/05/2017,68292,1102,0,Cumbria Choice Abritas - 2017-18,151200,Consultancy Efficiency
South Lakeland District Council,http://opendatacommunities.org/id/district-council/south-lakeland,31/05/2017,Environment and Housing,SLDC as Agent,,ABRITAS LTD,4101079,24/05/2017,68293,6858,0,Cumbria Choice Abritas - 2017-18,151200,Consultancy Efficiency
South Lakeland District Council,http://opendatacommunities.org/id/district-council/south-lakeland,31/05/2017,Environment and Housing,SLDC as Agent,,ABRITAS LTD,4101079,24/05/2017,68294,1102,0,Cumbria Choice Abritas - 2017-18,151200,Consultancy Efficiency
South Lakeland District Council,http://opendatacommunities.org/id/district-council/south-lakeland,31/05/2017,Environment and Housing,SLDC as Agent,,ABRITAS LTD,4101079,24/05/2017,68295,6858,0,Cumbria Choice Abritas - 2017-18,151200,Consultancy Efficiency
South Lakeland District Council,http://opendatacommunities.org/id/district-council/south-lakeland,31/05/2017,Kendal Town Hall,Highways & Transport Services,http://opendatacommunities.org/def/concept/finance/sercop/objective/107,ADECCO UK LIMITED,593232,22/05/2017,67217,135.41,0,Agency cover for WMMSCP,261400,HR Temporary & Agency Staff
South Lakeland District Council,http://opendatacommunities.org/id/district-council/south-lakeland,31/05/2017,Kendal Town Hall,Highways & Transport Services,http://opendatacommunities.org/def/concept/finance/sercop/objective/107,ADECCO UK LIMITED,593232,22/05/2017,67219,147.84,0,To provide parking marshals for,261400,HR Temporary & Agency Staff
South Lakeland District Council,http://opendatacommunities.org/id/district-council/south-lakeland,31/05/2017,Kendal Town Hall,Highways & Transport Services,http://opendatacommunities.org/def/concept/finance/sercop/objective/107,ADECCO UK LIMITED,593232,22/05/2017,67220,147.84,0,To provide parking marshals for,261400,HR Temporary & Agency Staff
South Lakeland District Council,http://opendatacommunities.org/id/district-council/south-lakeland,31/05/2017,Kendal Town Hall,External Trading Accounts,,ADECCO UK LIMITED,593232,08/05/2017,67653,11.48,0,Agency cleaning cover for market hall,261400,HR Temporary & Agency Staff
South Lakeland District Council,http://opendatacommunities.org/id/district-council/south-lakeland,31/05/2017,Development Implementation,Central Services,http://opendatacommunities.org/def/concept/finance/sercop/objective/102,ADECCO UK LIMITED,593232,08/05/2017,67654,73.92,0,Cleaner for SLDC - (6 hours per,261400,HR Temporary & Agency Staff
South Lakeland District Council,http://opendatacommunities.org/id/district-council/south-lakeland,31/05/2017,Development Implementation,Central Services,http://opendatacommunities.org/def/concept/finance/sercop/objective/102,ADECCO UK LIMITED,593232,08/05/2017,67655,98.08,0,Cleaner for SLDC -  ( April,261400,HR Temporary & Agency Staff
South Lakeland District Council,http://opendatacommunities.org/id/district-council/south-lakeland,31/05/2017,Kendal Town Hall,Highways & Transport Services,http://opendatacommunities.org/def/concept/finance/sercop/objective/107,ADECCO UK LIMITED,593232,17/05/2017,67656,221.76,0,To provide parking marshals for,261400,HR Temporary & Agency Staff
South Lakeland District Council,http://opendatacommunities.org/id/district-council/south-lakeland,31/05/2017,Kendal Town Hall,Highways & Transport Services,http://opendatacommunities.org/def/concept/finance/sercop/objective/107,ADECCO UK LIMITED,593232,17/05/2017,67657,221.76,0,To provide parking marshals for,261400,HR Temporary & Agency Staff
South Lakeland District Council,http://opendatacommunities.org/id/district-council/south-lakeland,31/05/2017,Kendal Town Hall,Highways & Transport Services,http://opendatacommunities.org/def/concept/finance/sercop/objective/107,ADECCO UK LIMITED,593232,17/05/2017,67658,184.65,0,Agency cover for WMMSCP,261400,HR Temporary & Agency Staff
South Lakeland District Council,http://opendatacommunities.org/id/district-council/south-lakeland,31/05/2017,Development Implementation,Central Services,http://opendatacommunities.org/def/concept/finance/sercop/objective/102,ADECCO UK LIMITED,593232,15/05/2017,67754,122.6,0,Cleaner for SLDC - ( April,261400,HR Temporary & Agency Staff
South Lakeland District Council,http://opendatacommunities.org/id/district-council/south-lakeland,31/05/2017,Kendal Town Hall,Highways & Transport Services,http://opendatacommunities.org/def/concept/finance/sercop/objective/107,ADECCO UK LIMITED,593232,15/05/2017,67755,184.65,0,Agency cover for WMMSCP,261400,HR Temporary & Agency Staff
South Lakeland District Council,http://opendatacommunities.org/id/district-council/south-lakeland,31/05/2017,Development Implementation,Central Services,http://opendatacommunities.org/def/concept/finance/sercop/objective/102,ADECCO UK LIMITED,593232,15/05/2017,67756,73.92,0,Cleaner for SLDC - (6 hours per,261400,HR Temporary & Agency Staff
South Lakeland District Council,http://opendatacommunities.org/id/district-council/south-lakeland,31/05/2017,Development Implementation,Central Services,http://opendatacommunities.org/def/concept/finance/sercop/objective/102,ADECCO UK LIMITED,593232,22/05/2017,67959,73.92,0,Cleaner for SLDC - (6 hours per,261400,HR Temporary & Agency Staff
South Lakeland District Council,http://opendatacommunities.org/id/district-council/south-lakeland,31/05/2017,Development Implementation,Central Services,http://opendatacommunities.org/def/concept/finance/sercop/objective/102,ADECCO UK LIMITED,593232,22/05/2017,67960,98.08,0,Cleaner for SLDC - ( April,261400,HR Temporary & Agency Staff
South Lakeland District Council,http://opendatacommunities.org/id/district-council/south-lakeland,31/05/2017,Development Implementation,Central Services,http://opendatacommunities.org/def/concept/finance/sercop/objective/102,ADECCO UK LIMITED,593232,24/05/2017,68252,73.92,0,Cleaner for SLDC - (6 hours per,261400,HR Temporary & Agency Staff
South Lakeland District Council,http://opendatacommunities.org/id/district-council/south-lakeland,31/05/2017,Development Implementation,Central Services,http://opendatacommunities.org/def/concept/finance/sercop/objective/102,ADECCO UK LIMITED,593232,24/05/2017,68253,128.73,0,Cleaner for SLDC - ( April,261400,HR Temporary & Agency Staff
South Lakeland District Council,http://opendatacommunities.org/id/district-council/south-lakeland,31/05/2017,Development Implementation,Central Services,http://opendatacommunities.org/def/concept/finance/sercop/objective/102,ADECCO UK LIMITED,593232,31/05/2017,68447,73.92,0,Cleaner for SLDC - (6 hours per,261400,HR Temporary & Agency Staff
South Lakeland District Council,http://opendatacommunities.org/id/district-council/south-lakeland,31/05/2017,Development Implementation,Cultural Environmental Regulatory & Planning Services,http://opendatacommunities.org/def/concept/finance/sercop/objective/104,AHA! DISTRIBUTION LTD,,08/05/2017,67773,705,0,Distribution of Community Toilet Scheme,191000,Facilities Advertising
South Lakeland District Council,http://opendatacommunities.org/id/district-council/south-lakeland,31/05/2017,Business Support Community Services,Internal Trading Accounts,,AINSWORTH'S GARAGE,,15/05/2017,67745,58.5,0,Repair PO16 JZU,381400,Vehicle Mgt Maintenance
South Lakeland District Council,http://opendatacommunities.org/id/district-council/south-lakeland,31/05/2017,Business Support Community Services,Internal Trading Accounts,,AINSWORTH'S GARAGE,,15/05/2017,67749,29.25,0,Repair PO16 JZU,381400,Vehicle Mgt Maintenance
South Lakeland District Council,http://opendatacommunities.org/id/district-council/south-lakeland,31/05/2017,Business Support Community Services,Internal Trading Accounts,,AINSWORTH'S GARAGE,,17/05/2017,67901,255,0,Recover SL021,381400,Vehicle Mgt Maintenance
South Lakeland District Council,http://opendatacommunities.org/id/district-council/south-lakeland,31/05/2017,Business Support Community Services,Internal Trading Accounts,,AINSWORTH'S GARAGE,,17/05/2017,67906,65,0,Recover SL207,381400,Vehicle Mgt Maintenance
South Lakeland District Council,http://opendatacommunities.org/id/district-council/south-lakeland,31/05/2017,Business Support Community Services,Internal Trading Accounts,,AINSWORTH'S GARAGE,,24/05/2017,68267,29.25,0,COC,381400,Vehicle Mgt Maintenance
South Lakeland District Council,http://opendatacommunities.org/id/district-council/south-lakeland,31/05/2017,Business Support Community Services,Internal Trading Accounts,,AINSWORTH'S GARAGE,,31/05/2017,68340,29.25,0,COC,381400,Vehicle Mgt Maintenance
South Lakeland District Council,http://opendatacommunities.org/id/district-council/south-lakeland,31/05/2017,Business Support Community Services,Housing Services,http://opendatacommunities.org/def/concept/finance/sercop/objective/108,Landlord,,31/05/2017,68403,400,0,Monthly rent payment,250000,Housing
South Lakeland District Council,http://opendatacommunities.org/id/district-council/south-lakeland,31/05/2017,Policy & Partnerships,Central Services,http://opendatacommunities.org/def/concept/finance/sercop/objective/102,AMBLESIDE PARISH CENTRE,7640743,08/05/2017,67639,136.5,0,Hire of Ambleside Parish Centre on,201700,Financial Services Grants
South Lakeland District Council,http://opendatacommunities.org/id/district-council/south-lakeland,31/05/2017,Financial Services,Housing Services,http://opendatacommunities.org/def/concept/finance/sercop/objective/108,ANTHONY COLLINS SOLICITORS,OC313432,22/05/2017,68198,577.5,0,Ark/landpro - housing related work Olwen,281300,Legal Services Legal Opinion
South Lakeland District Council,http://opendatacommunities.org/id/district-council/south-lakeland,31/05/2017,Business Support Community Services,Central Services,http://opendatacommunities.org/def/concept/finance/sercop/objective/102,APP USER GROUP,,10/05/2017,67412,110,0,APP User Group Membership 2017-2018,202100,Financial Services Subscriptions
South Lakeland District Council,http://opendatacommunities.org/id/district-council/south-lakeland,31/05/2017,Business Support Community Services,Internal Trading Accounts,,APSE,6735100,24/05/2017,68266,259,0,APSE June policy seminar 'Neighbourhoods,202100,Financial Services Subscriptions
South Lakeland District Council,http://opendatacommunities.org/id/district-council/south-lakeland,31/05/2017,Business Support Community Services,Internal Trading Accounts,,ARCO LIMITED,133804,24/05/2017,64749,12.88,0,Cleaning materials,141100,Clothing Protective
South Lakeland District Council,http://opendatacommunities.org/id/district-council/south-lakeland,31/05/2017,Business Support Community Services,Internal Trading Accounts,,ARCO LIMITED,133804,15/05/2017,67087,26.3,0,Cap,141100,Clothing Protective
South Lakeland District Council,http://opendatacommunities.org/id/district-council/south-lakeland,31/05/2017,Business Support Community Services,Internal Trading Accounts,,ARCO LIMITED,133804,03/05/2017,67173,43.64,0,Cleaning materials,141100,Clothing Protective
South Lakeland District Council,http://opendatacommunities.org/id/district-council/south-lakeland,31/05/2017,Business Support Community Services,Internal Trading Accounts,,ARCO LIMITED,133804,15/05/2017,67199,14.97,0,Cleaning materials,141100,Clothing Protective
South Lakeland District Council,http://opendatacommunities.org/id/district-council/south-lakeland,31/05/2017,Business Support Community Services,Transport Planning Policy,http://opendatacommunities.org/def/concept/finance/sercop/objective/107,ARCO LIMITED,133804,03/05/2017,67524,4.97,0,Cleaning materials,141100,Clothing Protective
South Lakeland District Council,http://opendatacommunities.org/id/district-council/south-lakeland,31/05/2017,Business Support Community Services,Internal Trading Accounts,,ARCO LIMITED,133804,03/05/2017,67524,177.24,0,Cleaning materials,141100,Clothing Protective
South Lakeland District Council,http://opendatacommunities.org/id/district-council/south-lakeland,31/05/2017,Business Support Community Services,Transport Planning Policy,http://opendatacommunities.org/def/concept/finance/sercop/objective/107,ARCO LIMITED,133804,03/05/2017,67525,51.75,0,Cleaning materials,141100,Clothing Protective
South Lakeland District Council,http://opendatacommunities.org/id/district-council/south-lakeland,31/05/2017,Business Support Community Services,Internal Trading Accounts,,ARCO LIMITED,133804,03/05/2017,67525,7.13,0,Cleaning materials,141100,Clothing Protective
South Lakeland District Council,http://opendatacommunities.org/id/district-council/south-lakeland,31/05/2017,Business Support Community Services,Internal Trading Accounts,,ARCO LIMITED,133804,03/05/2017,67525,784.09,0,Cleaning materials,141100,Clothing Protective
South Lakeland District Council,http://opendatacommunities.org/id/district-council/south-lakeland,31/05/2017,Business Support Community Services,Internal Trading Accounts,,ARCO LIMITED,133804,03/05/2017,67527,122.95,0,Cleaning materials,141100,Clothing Protective
South Lakeland District Council,http://opendatacommunities.org/id/district-council/south-lakeland,31/05/2017,Human Resources,Central Services,http://opendatacommunities.org/def/concept/finance/sercop/objective/102,ARCO LIMITED,133804,03/05/2017,67538,112.39,0,Code 4F9705 HSE Deluxe ABS 11-20,141100,Clothing Protective
South Lakeland District Council,http://opendatacommunities.org/id/district-council/south-lakeland,31/05/2017,Business Support Community Services,Internal Trading Accounts,,ARCO LIMITED,133804,08/05/2017,67566,46.44,0,Cleaning materials,141100,Clothing Protective
South Lakeland District Council,http://opendatacommunities.org/id/district-council/south-lakeland,31/05/2017,Business Support Community Services,Internal Trading Accounts,,ARCO LIMITED,133804,08/05/2017,67567,76.44,0,Cleaning materials,141100,Clothing Protective
South Lakeland District Council,http://opendatacommunities.org/id/district-council/south-lakeland,31/05/2017,Business Support Community Services,Transport Planning Policy,http://opendatacommunities.org/def/concept/finance/sercop/objective/107,ARCO LIMITED,133804,08/05/2017,67608,35.27,0,Cleaning materials,141100,Clothing Protective
South Lakeland District Council,http://opendatacommunities.org/id/district-council/south-lakeland,31/05/2017,Business Support Community Services,Internal Trading Accounts,,ARCO LIMITED,133804,08/05/2017,67608,10.53,0,Cleaning materials,141100,Clothing Protective
South Lakeland District Council,http://opendatacommunities.org/id/district-council/south-lakeland,31/05/2017,Business Support Community Services,Internal Trading Accounts,,ARCO LIMITED,133804,08/05/2017,67608,41.93,0,Cleaning materials,141100,Clothing Protective
South Lakeland District Council,http://opendatacommunities.org/id/district-council/south-lakeland,31/05/2017,Business Support Community Services,Internal Trading Accounts,,ARCO LIMITED,133804,08/05/2017,67667,109.14,0,Boots,141100,Clothing Protective
South Lakeland District Council,http://opendatacommunities.org/id/district-council/south-lakeland,31/05/2017,Business Support Community Services,Transport Planning Policy,http://opendatacommunities.org/def/concept/finance/sercop/objective/107,ARCO LIMITED,133804,15/05/2017,67712,31.59,0,Cleaning materials,141100,Clothing Protective
South Lakeland District Council,http://opendatacommunities.org/id/district-council/south-lakeland,31/05/2017,Business Support Community Services,Internal Trading Accounts,,ARCO LIMITED,133804,15/05/2017,67712,9.86,0,Cleaning materials,141100,Clothing Protective
South Lakeland District Council,http://opendatacommunities.org/id/district-council/south-lakeland,31/05/2017,Business Support Community Services,Internal Trading Accounts,,ARCO LIMITED,133804,15/05/2017,67721,38.22,0,Cleaning materials,141100,Clothing Protective
South Lakeland District Council,http://opendatacommunities.org/id/district-council/south-lakeland,31/05/2017,Business Support Community Services,Internal Trading Accounts,,ARCO LIMITED,133804,10/05/2017,67804,35.43,0,Cleaning materials,141100,Clothing Protective
South Lakeland District Council,http://opendatacommunities.org/id/district-council/south-lakeland,31/05/2017,Business Support Community Services,Transport Planning Policy,http://opendatacommunities.org/def/concept/finance/sercop/objective/107,ARCO LIMITED,133804,17/05/2017,67895,62.24,0,Cleaning materials,141100,Clothing Protective
South Lakeland District Council,http://opendatacommunities.org/id/district-council/south-lakeland,31/05/2017,Business Support Community Services,Internal Trading Accounts,,ARCO LIMITED,133804,17/05/2017,67895,329.01,0,Cleaning materials,141100,Clothing Protective
South Lakeland District Council,http://opendatacommunities.org/id/district-council/south-lakeland,31/05/2017,Business Support Community Services,Internal Trading Accounts,,ARCO LIMITED,133804,17/05/2017,68002,26.65,0,Cleaning materials,141100,Clothing Protective
South Lakeland District Council,http://opendatacommunities.org/id/district-council/south-lakeland,31/05/2017,Business Support Community Services,Transport Planning Policy,http://opendatacommunities.org/def/concept/finance/sercop/objective/107,ARCO LIMITED,133804,17/05/2017,68003,28.87,0,Cleaning materials,141100,Clothing Protective
South Lakeland District Council,http://opendatacommunities.org/id/district-council/south-lakeland,31/05/2017,Business Support Community Services,Internal Trading Accounts,,ARCO LIMITED,133804,17/05/2017,68020,6.37,0,Cleaning materials,141100,Clothing Protective
South Lakeland District Council,http://opendatacommunities.org/id/district-council/south-lakeland,31/05/2017,Business Support Community Services,Internal Trading Accounts,,ARCO LIMITED,133804,17/05/2017,68021,23.22,0,Cleaning materials,141100,Clothing Protective
South Lakeland District Council,http://opendatacommunities.org/id/district-council/south-lakeland,31/05/2017,Business Support Community Services,Internal Trading Accounts,,ARCO LIMITED,133804,17/05/2017,68022,19.11,0,Cleaning materials,141100,Clothing Protective
South Lakeland District Council,http://opendatacommunities.org/id/district-council/south-lakeland,31/05/2017,Business Support Community Services,Internal Trading Accounts,,ARCO LIMITED,133804,17/05/2017,68044,12.48,0,Cleaning materials,141100,Clothing Protective
South Lakeland District Council,http://opendatacommunities.org/id/district-council/south-lakeland,31/05/2017,Business Support Community Services,Internal Trading Accounts,,ARCO LIMITED,133804,22/05/2017,68057,50.64,0,Cleaning materials,141100,Clothing Protective
South Lakeland District Council,http://opendatacommunities.org/id/district-council/south-lakeland,31/05/2017,Business Support Community Services,Cultural Environmental Regulatory & Planning Services,http://opendatacommunities.org/def/concept/finance/sercop/objective/104,ARCO LIMITED,133804,22/05/2017,68169,91.59,0,Boots,141100,Clothing Protective
South Lakeland District Council,http://opendatacommunities.org/id/district-council/south-lakeland,31/05/2017,Human Resources,Central Services,http://opendatacommunities.org/def/concept/finance/sercop/objective/102,ARCO LIMITED,133804,24/05/2017,68263,37.19,0,2 packs of (6) finger bobs 4F9761,141100,Clothing Protective
South Lakeland District Council,http://opendatacommunities.org/id/district-council/south-lakeland,31/05/2017,Business Support Community Services,Central Services,http://opendatacommunities.org/def/concept/finance/sercop/objective/102,ARCO LIMITED,133804,24/05/2017,68264,33.8,0,High vis vests,141100,Clothing Protective
South Lakeland District Council,http://opendatacommunities.org/id/district-council/south-lakeland,31/05/2017,Business Support Community Services,Central Services,http://opendatacommunities.org/def/concept/finance/sercop/objective/102,ARCO LIMITED,133804,24/05/2017,68309,38.28,0,High vis vests,141100,Clothing Protective
South Lakeland District Council,http://opendatacommunities.org/id/district-council/south-lakeland,31/05/2017,Business Support Community Services,Central Services,http://opendatacommunities.org/def/concept/finance/sercop/objective/102,ARCO LIMITED,133804,31/05/2017,68336,98.54,0,Shoes -,141100,Clothing Protective
South Lakeland District Council,http://opendatacommunities.org/id/district-council/south-lakeland,31/05/2017,Business Support Community Services,Transport Planning Policy,http://opendatacommunities.org/def/concept/finance/sercop/objective/107,ARCO LIMITED,133804,31/05/2017,68338,15.91,0,Cleaning materials,141100,Clothing Protective
South Lakeland District Council,http://opendatacommunities.org/id/district-council/south-lakeland,31/05/2017,Business Support Community Services,Internal Trading Accounts,,ARCO LIMITED,133804,31/05/2017,68338,53.63,0,Cleaning materials,141100,Clothing Protective
South Lakeland District Council,http://opendatacommunities.org/id/district-council/south-lakeland,31/05/2017,Business Support Community Services,Internal Trading Accounts,,ARCO LIMITED,133804,31/05/2017,68338,503.05,0,Cleaning materials,141100,Clothing Protective
South Lakeland District Council,http://opendatacommunities.org/id/district-council/south-lakeland,31/05/2017,Business Support Community Services,Transport Planning Policy,http://opendatacommunities.org/def/concept/finance/sercop/objective/107,ARCO LIMITED,133804,31/05/2017,68373,4.97,0,Cleaning materials,141100,Clothing Protective
South Lakeland District Council,http://opendatacommunities.org/id/district-council/south-lakeland,31/05/2017,Business Support Community Services,Internal Trading Accounts,,ARCO LIMITED,133804,31/05/2017,68431,127.91,0,Cleaning materials,141100,Clothing Protective
South Lakeland District Council,http://opendatacommunities.org/id/district-council/south-lakeland,31/05/2017,Environment and Housing,Housing Services,http://opendatacommunities.org/def/concept/finance/sercop/objective/108,Ark Consultancy Ltd,10179621,15/05/2017,67687,2425,0,Affordable Housing Options Business Plan,151000,Consultancy Business
South Lakeland District Council,http://opendatacommunities.org/id/district-council/south-lakeland,31/05/2017,Business Support Community Services,Cultural Environmental Regulatory & Planning Services,http://opendatacommunities.org/def/concept/finance/sercop/objective/104,ARNSIDE PARISH COUNCIL,,10/05/2017,67824,5000,0,One-off payment for improvement works,908000,Public Bodies Council support services
South Lakeland District Council,http://opendatacommunities.org/id/district-council/south-lakeland,31/05/2017,Business Support Community Services,Housing Services,http://opendatacommunities.org/def/concept/finance/sercop/objective/108,Ashberry Recruitment,7202591,22/05/2017,67226,-60.1,0,Agency temp at Town View Fields Hostel,261300,HR Recruitment & Assessment
South Lakeland District Council,http://opendatacommunities.org/id/district-council/south-lakeland,31/05/2017,Business Support Community Services,Housing Services,http://opendatacommunities.org/def/concept/finance/sercop/objective/108,Ashberry Recruitment,7202591,22/05/2017,67675,104.64,0,Agency temp at Town View Fields Hostel,261300,HR Recruitment & Assessment
South Lakeland District Council,http://opendatacommunities.org/id/district-council/south-lakeland,31/05/2017,Business Support Community Services,Housing Services,http://opendatacommunities.org/def/concept/finance/sercop/objective/108,Ashberry Recruitment,7202591,22/05/2017,67882,468.96,0,Agency temp at Town View Fields Hostel,261300,HR Recruitment & Assessment
South Lakeland District Council,http://opendatacommunities.org/id/district-council/south-lakeland,31/05/2017,Business Support Community Services,Housing Services,http://opendatacommunities.org/def/concept/finance/sercop/objective/108,Ashley Bennett,8672920,31/05/2017,68397,400,0,Monthly rent payment,202000,Financial Services Rents
South Lakeland District Council,http://opendatacommunities.org/id/district-council/south-lakeland,31/05/2017,Business Support Community Services,Internal Trading Accounts,,B & J METALS (SKIP HIRE) LTD,4634318,17/05/2017,67896,183.33,0,Skip hire,182011,Environment Waste Management Consumables
South Lakeland District Council,http://opendatacommunities.org/id/district-council/south-lakeland,31/05/2017,Social Enterprise Admin,Highways & Transport Services,http://opendatacommunities.org/def/concept/finance/sercop/objective/107,BEMROSE BOOTH PARAGON LTD,4891375,22/05/2017,67842,-843.75,0,"350,000 Aura Self Adhesive Pay and",191600,Facilities Printing
South Lakeland District Council,http://opendatacommunities.org/id/district-council/south-lakeland,31/05/2017,Social Enterprise Admin,Highways & Transport Services,http://opendatacommunities.org/def/concept/finance/sercop/objective/107,BEMROSE BOOTH PARAGON LTD,4891375,22/05/2017,67844,-787.5,0,"350,000 Aura Self Adhesive Pay and",191600,Facilities Printing
South Lakeland District Council,http://opendatacommunities.org/id/district-council/south-lakeland,31/05/2017,Social Enterprise Admin,Highways & Transport Services,http://opendatacommunities.org/def/concept/finance/sercop/objective/107,BEMROSE BOOTH PARAGON LTD,4891375,22/05/2017,67845,-406.25,0,"350,000 Aura Self Adhesive Pay and",191600,Facilities Printing
South Lakeland District Council,http://opendatacommunities.org/id/district-council/south-lakeland,31/05/2017,Social Enterprise Admin,Highways & Transport Services,http://opendatacommunities.org/def/concept/finance/sercop/objective/107,BEMROSE BOOTH PARAGON LTD,4891375,22/05/2017,67848,939.25,0,"350,000 Aura Self Adhesive Pay and",191600,Facilities Printing
South Lakeland District Council,http://opendatacommunities.org/id/district-council/south-lakeland,31/05/2017,Social Enterprise Admin,Highways & Transport Services,http://opendatacommunities.org/def/concept/finance/sercop/objective/107,BEMROSE BOOTH PARAGON LTD,4891375,22/05/2017,67851,1056.5,0,"350,000 Aura Self Adhesive Pay and",191600,Facilities Printing
South Lakeland District Council,http://opendatacommunities.org/id/district-council/south-lakeland,31/05/2017,Social Enterprise Admin,Highways & Transport Services,http://opendatacommunities.org/def/concept/finance/sercop/objective/107,BEMROSE BOOTH PARAGON LTD,4891375,22/05/2017,67852,1128.75,0,"350,000 Aura Self Adhesive Pay and",191600,Facilities Printing
South Lakeland District Council,http://opendatacommunities.org/id/district-council/south-lakeland,31/05/2017,Kendal Town Hall,Central Services,http://opendatacommunities.org/def/concept/finance/sercop/objective/102,BERENDSEN UK LTD,228604,08/05/2017,67659,118.7,0,Weekly exchange and cleaning of the non,161000,Domestic Goods Commercial
South Lakeland District Council,http://opendatacommunities.org/id/district-council/south-lakeland,31/05/2017,Kendal Town Hall,Cultural Environmental Regulatory & Planning Services,http://opendatacommunities.org/def/concept/finance/sercop/objective/104,BERENDSEN UK LTD,228604,08/05/2017,67659,28.3,0,Weekly exchange and cleaning of the non,161000,Domestic Goods Commercial
South Lakeland District Council,http://opendatacommunities.org/id/district-council/south-lakeland,31/05/2017,Business Support Community Services,Internal Trading Accounts,,BERENDSEN UK LTD,228604,08/05/2017,67664,332,0,Workwear hire 02/04/17 - 31/03/18,161000,Domestic Goods Commercial
South Lakeland District Council,http://opendatacommunities.org/id/district-council/south-lakeland,31/05/2017,Business Support Community Services,Internal Trading Accounts,,BILL MOORE LIFTING TACKLE LTD,1482196,22/05/2017,67061,60,0,LOLER inspection,181812,Environment Technical Equip Testing
South Lakeland District Council,http://opendatacommunities.org/id/district-council/south-lakeland,31/05/2017,Business Support Community Services,Internal Trading Accounts,,BILL MOORE LIFTING TACKLE LTD,1482196,08/05/2017,67604,15,0,Harnesses,181812,Environment Technical Equip Testing
South Lakeland District Council,http://opendatacommunities.org/id/district-council/south-lakeland,31/05/2017,Business Support Community Services,Cultural Environmental Regulatory & Planning Services,http://opendatacommunities.org/def/concept/finance/sercop/objective/104,BLACKPOOL BOROUGH COUNCIL,,10/05/2017,67830,755,0,Northern Coastal Sub Group Fee 2016/17,202100,Financial Services Subscriptions
South Lakeland District Council,http://opendatacommunities.org/id/district-council/south-lakeland,31/05/2017,Development Implementation,Cultural Environmental Regulatory & Planning Services,http://opendatacommunities.org/def/concept/finance/sercop/objective/104,Bloom Procurement Services Ltd,,31/05/2017,68342,22125,0,Key Service Centres - Economic Studies,151900,Consultancy Management
South Lakeland District Council,http://opendatacommunities.org/id/district-council/south-lakeland,31/05/2017,Business Support Community Services,Internal Trading Accounts,,BOC GASES,337663,10/05/2017,67665,720.75,0,Gas supplies 2017/18,371100,Utilities Gas
South Lakeland District Council,http://opendatacommunities.org/id/district-council/south-lakeland,31/05/2017,Social Enterprise Admin,Cultural Environmental Regulatory & Planning Services,http://opendatacommunities.org/def/concept/finance/sercop/objective/104,Borderloos,3350965,22/05/2017,67678,2975.15,0,For the continuation of the luxury 4,199999,Facilities Not Elsewhere Classified
South Lakeland District Council,http://opendatacommunities.org/id/district-council/south-lakeland,31/05/2017,Business Support Community Services,Cultural Environmental Regulatory & Planning Services,http://opendatacommunities.org/def/concept/finance/sercop/objective/104,Borderloos,3350965,22/05/2017,68219,1630,0,Re: Appleby Horse Fair,199999,Facilities Not Elsewhere Classified
South Lakeland District Council,http://opendatacommunities.org/id/district-council/south-lakeland,31/05/2017,Social Enterprise Admin,Cultural Environmental Regulatory & Planning Services,http://opendatacommunities.org/def/concept/finance/sercop/objective/104,Bowness & Windermere Community,,24/05/2017,68322,2601.69,0,For contribution from SLDC for water use,311600,Healthcare Services
South Lakeland District Council,http://opendatacommunities.org/id/district-council/south-lakeland,31/05/2017,Policy & Partnerships,Cultural Environmental Regulatory & Planning Services,http://opendatacommunities.org/def/concept/finance/sercop/objective/104,BREWERY ARTS CENTRE,,15/05/2017,67465,64000,0,Strategic Cultural Partnership grant,291000,Arts & Leisure Services Events
South Lakeland District Council,http://opendatacommunities.org/id/district-council/south-lakeland,31/05/2017,Business Support Community Services,Internal Trading Accounts,,BRIAN ARMISTEAD LTD T/A SINKFALL RECYCLI,4133280,03/05/2017,67529,2125.03,0,Green waste tipping - 2017/18,391110,Construction Buildings Construction
South Lakeland District Council,http://opendatacommunities.org/id/district-council/south-lakeland,31/05/2017,Business Support Community Services,Internal Trading Accounts,,BRIAN ARMISTEAD LTD T/A SINKFALL RECYCLI,4133280,15/05/2017,67729,1102.49,0,Green waste tipping - 2017/18,391110,Construction Buildings Construction
South Lakeland District Council,http://opendatacommunities.org/id/district-council/south-lakeland,31/05/2017,Business Support Community Services,Internal Trading Accounts,,BRIAN ARMISTEAD LTD T/A SINKFALL RECYCLI,4133280,17/05/2017,67897,1923.31,0,Green waste tipping - 2017/18,391110,Construction Buildings Construction
South Lakeland District Council,http://opendatacommunities.org/id/district-council/south-lakeland,31/05/2017,Business Support Community Services,Internal Trading Accounts,,BRIAN ARMISTEAD LTD T/A SINKFALL RECYCLI,4133280,17/05/2017,67898,30,0,Green waste tipping - 2017/18,391110,Construction Buildings Construction
South Lakeland District Council,http://opendatacommunities.org/id/district-council/south-lakeland,31/05/2017,Business Support Community Services,Internal Trading Accounts,,BRIAN ARMISTEAD LTD T/A SINKFALL RECYCLI,4133280,17/05/2017,68030,1412.04,0,Green waste tipping - 2017/18,391110,Construction Buildings Construction
South Lakeland District Council,http://opendatacommunities.org/id/district-council/south-lakeland,31/05/2017,Business Support Community Services,Internal Trading Accounts,,BRIAN ARMISTEAD LTD T/A SINKFALL RECYCLI,4133280,31/05/2017,68371,2099.61,0,Green waste tipping - 2017/18,391110,Construction Buildings Construction
South Lakeland District Council,http://opendatacommunities.org/id/district-council/south-lakeland,31/05/2017,ICT Group,Cultural Environmental Regulatory & Planning Services,http://opendatacommunities.org/def/concept/finance/sercop/objective/104,BRITISH TELECOMMUNICATIONS PLC,1800000,10/05/2017,67840,120,0,Mintworks - Line Rental 01539 7935120.,279999,ICT Not Elsewhere Classified
South Lakeland District Council,http://opendatacommunities.org/id/district-council/south-lakeland,31/05/2017,Development Implementation,Central Services,http://opendatacommunities.org/def/concept/finance/sercop/objective/102,Brown Toland Brown Associates,,22/05/2017,67509,4512.5,0,Provision of consultancy services for,151000,Consultancy Business
South Lakeland District Council,http://opendatacommunities.org/id/district-council/south-lakeland,31/05/2017,Development Implementation,Central Services,http://opendatacommunities.org/def/concept/finance/sercop/objective/102,Brown Toland Brown Associates,,31/05/2017,68381,2573.5,0,Provision of consultancy services for,151000,Consultancy Business
South Lakeland District Council,http://opendatacommunities.org/id/district-council/south-lakeland,31/05/2017,Legal Services,Central Services,http://opendatacommunities.org/def/concept/finance/sercop/objective/102,Browne Jacobson LLP,OC306448,24/05/2017,67829,5591,0,Fees in respect of State Aid - our ref:,281200,Legal Services General Support
South Lakeland District Council,http://opendatacommunities.org/id/district-council/south-lakeland,31/05/2017,Social Enterprise Admin,Cultural Environmental Regulatory & Planning Services,http://opendatacommunities.org/def/concept/finance/sercop/objective/104,BROXAP LIMITED,2583752,31/05/2017,68350,474,0,1 x BX/DC 2960/76 PAK-1 Heavyweight,231700,Highways Street Furniture & Ironworks
South Lakeland District Council,http://opendatacommunities.org/id/district-council/south-lakeland,31/05/2017,Business Support Community Services,Cultural Environmental Regulatory & Planning Services,http://opendatacommunities.org/def/concept/finance/sercop/objective/104,BRUEL & KJAER UK LTD,4066051,15/05/2017,67936,829.2,0,Repair to 2250M,390000,Construction
South Lakeland District Council,http://opendatacommunities.org/id/district-council/south-lakeland,31/05/2017,Business Support Community Services,Internal Trading Accounts,,BUSINESS LINES LTD T/A CHECKPOINT,1988026,22/05/2017,65949,60,0,CHeckpoints,101400,Building General Materials
South Lakeland District Council,http://opendatacommunities.org/id/district-council/south-lakeland,31/05/2017,Financial Services,Central Services,http://opendatacommunities.org/def/concept/finance/sercop/objective/102,BUSY BEES BENEFITS LTD,6758298,15/05/2017,67700,31.36,0,Busy Bees child care voucher service,202100,Financial Services Subscriptions
South Lakeland District Council,http://opendatacommunities.org/id/district-council/south-lakeland,31/05/2017,Financial Services,Non-Service Payments,,BUSY BEES BENEFITS LTD,6758298,15/05/2017,67701,896,0,Busy Bees child care vouchers. based on,202100,Financial Services Subscriptions
South Lakeland District Council,http://opendatacommunities.org/id/district-council/south-lakeland,31/05/2017,Environment and Housing,Housing,http://opendatacommunities.org/def/concept/finance/sercop/objective/108,C W COX & SONS (KENDAL) LTD,3498844,17/05/2017,68156,2852,0,"Devon Terrace, Ulverston",101000,Building Bathrooms
South Lakeland District Council,http://opendatacommunities.org/id/district-council/south-lakeland,31/05/2017,ICT Group,Central Services,http://opendatacommunities.org/def/concept/finance/sercop/objective/102,CABLE & WIRELESS UK (VODAFONE),,24/05/2017,67188,2843.31,0,Gsi Convergence Framework/PSN. Covers,271700,ICT Telecommunications Fixed
South Lakeland District Council,http://opendatacommunities.org/id/district-council/south-lakeland,31/05/2017,Business Support Community Services,Housing Services,http://opendatacommunities.org/def/concept/finance/sercop/objective/108,Landlord,,08/05/2017,67775,400,0,Monthly rent,250010,Housing Letting Agents
South Lakeland District Council,http://opendatacommunities.org/id/district-council/south-lakeland,31/05/2017,Business Support Community Services,Housing Services,http://opendatacommunities.org/def/concept/finance/sercop/objective/108,Landlord,,31/05/2017,68398,520,0,Monthly rent payment,250010,Housing Letting Agents
South Lakeland District Council,http://opendatacommunities.org/id/district-council/south-lakeland,31/05/2017,Business Support Community Services,Housing Services,http://opendatacommunities.org/def/concept/finance/sercop/objective/108,Landlord,,31/05/2017,68411,415,0,Monthly rent,250010,Housing Letting Agents
South Lakeland District Council,http://opendatacommunities.org/id/district-council/south-lakeland,31/05/2017,Policy & Partnerships,Central Services,http://opendatacommunities.org/def/concept/finance/sercop/objective/102,CASTLERIGG CONSULTING,6747285,22/05/2017,67876,1470,0,Three day - direct support system,159999,Consultancy Not Elsewhere Classified
South Lakeland District Council,http://opendatacommunities.org/id/district-council/south-lakeland,31/05/2017,ICT Group,Central Services,http://opendatacommunities.org/def/concept/finance/sercop/objective/102,CCS MEDIA LTD,1693516,22/05/2017,67999,9.66,0,Belkin - Video cable - HDMI DVI - DVI-D,271400,ICT Office & Reprographics Equipment
South Lakeland District Council,http://opendatacommunities.org/id/district-council/south-lakeland,31/05/2017,Lake Wardens,Cultural Environmental Regulatory & Planning Services,http://opendatacommunities.org/def/concept/finance/sercop/objective/104,CENTURY PLASTICS LTD,2558642,31/05/2017,68416,962.25,0,10 x 3050mm x 1500mm x 3mm Green Alcom,101400,Building General Materials
South Lakeland District Council,http://opendatacommunities.org/id/district-council/south-lakeland,31/05/2017,Human Resources,Central Services,http://opendatacommunities.org/def/concept/finance/sercop/objective/102,Choose Occupational Health,7365943,31/05/2017,68163,615.75,0,Full day Clinic 13 April 2017,191800,Facilities Public Relations & Image
South Lakeland District Council,http://opendatacommunities.org/id/district-council/south-lakeland,31/05/2017,Human Resources,Central Services,http://opendatacommunities.org/def/concept/finance/sercop/objective/102,Choose Occupational Health,7365943,22/05/2017,68187,210,0,Ill Health Retirement Assessment,191800,Facilities Public Relations & Image
South Lakeland District Council,http://opendatacommunities.org/id/district-council/south-lakeland,31/05/2017,Development Management,Cultural Environmental Regulatory & Planning Services,http://opendatacommunities.org/def/concept/finance/sercop/objective/104,CHRIS BOWKER LTD,1642561,22/05/2017,67937,30,0,Checking of electrical work in,101100,Building Electrical
South Lakeland District Council,http://opendatacommunities.org/id/district-council/south-lakeland,31/05/2017,Development Management,Cultural Environmental Regulatory & Planning Services,http://opendatacommunities.org/def/concept/finance/sercop/objective/104,CHRIS BOWKER LTD,1642561,22/05/2017,68160,30,0,Checking of electrical work in,101100,Building Electrical
South Lakeland District Council,http://opendatacommunities.org/id/district-council/south-lakeland,31/05/2017,Development Management,Cultural Environmental Regulatory & Planning Services,http://opendatacommunities.org/def/concept/finance/sercop/objective/104,CHRIS BOWKER LTD,1642561,31/05/2017,68207,120,0,Checking of electrical work in,101100,Building Electrical
South Lakeland District Council,http://opendatacommunities.org/id/district-council/south-lakeland,31/05/2017,Financial Services,Central Services,http://opendatacommunities.org/def/concept/finance/sercop/objective/102,CIPFA,2376684,08/05/2017,67688,100,0,Research contribution CIPFA,202100,Financial Services Subscriptions
South Lakeland District Council,http://opendatacommunities.org/id/district-council/south-lakeland,31/05/2017,Development Implementation,Central Services,http://opendatacommunities.org/def/concept/finance/sercop/objective/102,Cirrus Research Plc,987160,31/05/2017,68345,3159.63,0,Noise Surveying Equipment - Class 2,913000,Technical Support Equipment
South Lakeland District Council,http://opendatacommunities.org/id/district-council/south-lakeland,31/05/2017,Leisure and Wellbeing,Cultural Environmental Regulatory & Planning Services,http://opendatacommunities.org/def/concept/finance/sercop/objective/104,Cleartrack (EvL) Ltd,3881690,08/05/2017,67498,660,0,"Low Garth, Kendal",199999,Facilities Not Elsewhere Classified
South Lakeland District Council,http://opendatacommunities.org/id/district-council/south-lakeland,31/05/2017,Leisure and Wellbeing,Cultural Environmental Regulatory & Planning Services,http://opendatacommunities.org/def/concept/finance/sercop/objective/104,Cleartrack (EvL) Ltd,3881690,08/05/2017,67499,750,0,"Prickley Fell, off Empsom Road, Kendal",199999,Facilities Not Elsewhere Classified
South Lakeland District Council,http://opendatacommunities.org/id/district-council/south-lakeland,31/05/2017,Leisure and Wellbeing,Cultural Environmental Regulatory & Planning Services,http://opendatacommunities.org/def/concept/finance/sercop/objective/104,Cleartrack (EvL) Ltd,3881690,08/05/2017,67500,750,0,"Land at Empsom Road, Kendal",199999,Facilities Not Elsewhere Classified
South Lakeland District Council,http://opendatacommunities.org/id/district-council/south-lakeland,31/05/2017,Leisure and Wellbeing,Cultural Environmental Regulatory & Planning Services,http://opendatacommunities.org/def/concept/finance/sercop/objective/104,Cleartrack (EvL) Ltd,3881690,08/05/2017,67551,176.5,0,"Additional Works, Oldfield Road,",199999,Facilities Not Elsewhere Classified
South Lakeland District Council,http://opendatacommunities.org/id/district-council/south-lakeland,31/05/2017,Leisure and Wellbeing,Cultural Environmental Regulatory & Planning Services,http://opendatacommunities.org/def/concept/finance/sercop/objective/104,Cleartrack (EvL) Ltd,3881690,10/05/2017,67552,2230,0,Rockland Road Grange,199999,Facilities Not Elsewhere Classified
South Lakeland District Council,http://opendatacommunities.org/id/district-council/south-lakeland,31/05/2017,Leisure and Wellbeing,Cultural Environmental Regulatory & Planning Services,http://opendatacommunities.org/def/concept/finance/sercop/objective/104,Cleartrack (EvL) Ltd,3881690,10/05/2017,67553,275,0,Rockland Road Grange,199999,Facilities Not Elsewhere Classified
South Lakeland District Council,http://opendatacommunities.org/id/district-council/south-lakeland,31/05/2017,Business Support Community Services,Internal Trading Accounts,,COMPASS COMPONENTS,,10/05/2017,67812,128.65,0,Consumables 01/04/17 - 31/03/18,101400,Building General Materials
South Lakeland District Council,http://opendatacommunities.org/id/district-council/south-lakeland,31/05/2017,Financial Services,Non-Service Payments,,COMPUTERSHARE VOUCHER SERVICES LTD,4968447,08/05/2017,67779,1430.93,0,Computershare child care vouchers. New,202100,Financial Services Subscriptions
South Lakeland District Council,http://opendatacommunities.org/id/district-council/south-lakeland,31/05/2017,Social Enterprise Admin,Highways & Transport Services,http://opendatacommunities.org/def/concept/finance/sercop/objective/107,CONTINENTAL LANDSCAPES LTD,2108452,15/05/2017,67941,12.15,0,Parks routine maintenance,391310,Construction Open Spaces Construction
South Lakeland District Council,http://opendatacommunities.org/id/district-council/south-lakeland,31/05/2017,Social Enterprise Admin,Highways & Transport Services,http://opendatacommunities.org/def/concept/finance/sercop/objective/107,CONTINENTAL LANDSCAPES LTD,2108452,15/05/2017,67941,12.15,0,Parks routine maintenance,391310,Construction Open Spaces Construction
South Lakeland District Council,http://opendatacommunities.org/id/district-council/south-lakeland,31/05/2017,Social Enterprise Admin,Highways & Transport Services,http://opendatacommunities.org/def/concept/finance/sercop/objective/107,CONTINENTAL LANDSCAPES LTD,2108452,15/05/2017,67941,1.22,0,Parks routine maintenance,391310,Construction Open Spaces Construction
South Lakeland District Council,http://opendatacommunities.org/id/district-council/south-lakeland,31/05/2017,Social Enterprise Admin,Highways & Transport Services,http://opendatacommunities.org/def/concept/finance/sercop/objective/107,CONTINENTAL LANDSCAPES LTD,2108452,15/05/2017,67941,12.15,0,Parks routine maintenance,391310,Construction Open Spaces Construction
South Lakeland District Council,http://opendatacommunities.org/id/district-council/south-lakeland,31/05/2017,Social Enterprise Admin,Highways & Transport Services,http://opendatacommunities.org/def/concept/finance/sercop/objective/107,CONTINENTAL LANDSCAPES LTD,2108452,15/05/2017,67941,12.15,0,Parks routine maintenance,391310,Construction Open Spaces Construction
South Lakeland District Council,http://opendatacommunities.org/id/district-council/south-lakeland,31/05/2017,Social Enterprise Admin,Highways & Transport Services,http://opendatacommunities.org/def/concept/finance/sercop/objective/107,CONTINENTAL LANDSCAPES LTD,2108452,15/05/2017,67941,12.15,0,Parks routine maintenance,391310,Construction Open Spaces Construction
South Lakeland District Council,http://opendatacommunities.org/id/district-council/south-lakeland,31/05/2017,Social Enterprise Admin,Highways & Transport Services,http://opendatacommunities.org/def/concept/finance/sercop/objective/107,CONTINENTAL LANDSCAPES LTD,2108452,15/05/2017,67941,36.46,0,Parks routine maintenance,391310,Construction Open Spaces Construction
South Lakeland District Council,http://opendatacommunities.org/id/district-council/south-lakeland,31/05/2017,Social Enterprise Admin,Highways & Transport Services,http://opendatacommunities.org/def/concept/finance/sercop/objective/107,CONTINENTAL LANDSCAPES LTD,2108452,15/05/2017,67941,243.05,0,Parks routine maintenance,391310,Construction Open Spaces Construction
South Lakeland District Council,http://opendatacommunities.org/id/district-council/south-lakeland,31/05/2017,Social Enterprise Admin,Highways & Transport Services,http://opendatacommunities.org/def/concept/finance/sercop/objective/107,CONTINENTAL LANDSCAPES LTD,2108452,15/05/2017,67941,151.91,0,Parks routine maintenance,391310,Construction Open Spaces Construction
South Lakeland District Council,http://opendatacommunities.org/id/district-council/south-lakeland,31/05/2017,Social Enterprise Admin,Highways & Transport Services,http://opendatacommunities.org/def/concept/finance/sercop/objective/107,CONTINENTAL LANDSCAPES LTD,2108452,15/05/2017,67941,6.08,0,Parks routine maintenance,391310,Construction Open Spaces Construction
South Lakeland District Council,http://opendatacommunities.org/id/district-council/south-lakeland,31/05/2017,Social Enterprise Admin,Highways & Transport Services,http://opendatacommunities.org/def/concept/finance/sercop/objective/107,CONTINENTAL LANDSCAPES LTD,2108452,15/05/2017,67941,60.76,0,Parks routine maintenance,391310,Construction Open Spaces Construction
South Lakeland District Council,http://opendatacommunities.org/id/district-council/south-lakeland,31/05/2017,Social Enterprise Admin,Highways & Transport Services,http://opendatacommunities.org/def/concept/finance/sercop/objective/107,CONTINENTAL LANDSCAPES LTD,2108452,15/05/2017,67941,60.76,0,Parks routine maintenance,391310,Construction Open Spaces Construction
South Lakeland District Council,http://opendatacommunities.org/id/district-council/south-lakeland,31/05/2017,Social Enterprise Admin,Highways & Transport Services,http://opendatacommunities.org/def/concept/finance/sercop/objective/107,CONTINENTAL LANDSCAPES LTD,2108452,15/05/2017,67941,121.53,0,Parks routine maintenance,391310,Construction Open Spaces Construction
South Lakeland District Council,http://opendatacommunities.org/id/district-council/south-lakeland,31/05/2017,Social Enterprise Admin,Highways & Transport Services,http://opendatacommunities.org/def/concept/finance/sercop/objective/107,CONTINENTAL LANDSCAPES LTD,2108452,15/05/2017,67941,48.61,0,Parks routine maintenance,391310,Construction Open Spaces Construction
South Lakeland District Council,http://opendatacommunities.org/id/district-council/south-lakeland,31/05/2017,Social Enterprise Admin,Highways & Transport Services,http://opendatacommunities.org/def/concept/finance/sercop/objective/107,CONTINENTAL LANDSCAPES LTD,2108452,15/05/2017,67941,6.08,0,Parks routine maintenance,391310,Construction Open Spaces Construction
South Lakeland District Council,http://opendatacommunities.org/id/district-council/south-lakeland,31/05/2017,Social Enterprise Admin,Highways & Transport Services,http://opendatacommunities.org/def/concept/finance/sercop/objective/107,CONTINENTAL LANDSCAPES LTD,2108452,15/05/2017,67941,6.08,0,Parks routine maintenance,391310,Construction Open Spaces Construction
South Lakeland District Council,http://opendatacommunities.org/id/district-council/south-lakeland,31/05/2017,Social Enterprise Admin,Highways & Transport Services,http://opendatacommunities.org/def/concept/finance/sercop/objective/107,CONTINENTAL LANDSCAPES LTD,2108452,15/05/2017,67941,3.04,0,Parks routine maintenance,391310,Construction Open Spaces Construction
South Lakeland District Council,http://opendatacommunities.org/id/district-council/south-lakeland,31/05/2017,Social Enterprise Admin,Highways & Transport Services,http://opendatacommunities.org/def/concept/finance/sercop/objective/107,CONTINENTAL LANDSCAPES LTD,2108452,15/05/2017,67941,60.76,0,Parks routine maintenance,391310,Construction Open Spaces Construction
South Lakeland District Council,http://opendatacommunities.org/id/district-council/south-lakeland,31/05/2017,Social Enterprise Admin,Highways & Transport Services,http://opendatacommunities.org/def/concept/finance/sercop/objective/107,CONTINENTAL LANDSCAPES LTD,2108452,15/05/2017,67941,54.69,0,Parks routine maintenance,391310,Construction Open Spaces Construction
South Lakeland District Council,http://opendatacommunities.org/id/district-council/south-lakeland,31/05/2017,Social Enterprise Admin,Highways & Transport Services,http://opendatacommunities.org/def/concept/finance/sercop/objective/107,CONTINENTAL LANDSCAPES LTD,2108452,15/05/2017,67941,66.84,0,Parks routine maintenance,391310,Construction Open Spaces Construction
South Lakeland District Council,http://opendatacommunities.org/id/district-council/south-lakeland,31/05/2017,Social Enterprise Admin,Highways & Transport Services,http://opendatacommunities.org/def/concept/finance/sercop/objective/107,CONTINENTAL LANDSCAPES LTD,2108452,15/05/2017,67941,127.6,0,Parks routine maintenance,391310,Construction Open Spaces Construction
South Lakeland District Council,http://opendatacommunities.org/id/district-council/south-lakeland,31/05/2017,Social Enterprise Admin,Highways & Transport Services,http://opendatacommunities.org/def/concept/finance/sercop/objective/107,CONTINENTAL LANDSCAPES LTD,2108452,15/05/2017,67941,121.53,0,Parks routine maintenance,391310,Construction Open Spaces Construction
South Lakeland District Council,http://opendatacommunities.org/id/district-council/south-lakeland,31/05/2017,Social Enterprise Admin,Highways & Transport Services,http://opendatacommunities.org/def/concept/finance/sercop/objective/107,CONTINENTAL LANDSCAPES LTD,2108452,15/05/2017,67941,12.15,0,Parks routine maintenance,391310,Construction Open Spaces Construction
South Lakeland District Council,http://opendatacommunities.org/id/district-council/south-lakeland,31/05/2017,Social Enterprise Admin,Highways & Transport Services,http://opendatacommunities.org/def/concept/finance/sercop/objective/107,CONTINENTAL LANDSCAPES LTD,2108452,15/05/2017,67941,12.15,0,Parks routine maintenance,391310,Construction Open Spaces Construction
South Lakeland District Council,http://opendatacommunities.org/id/district-council/south-lakeland,31/05/2017,Social Enterprise Admin,Highways & Transport Services,http://opendatacommunities.org/def/concept/finance/sercop/objective/107,CONTINENTAL LANDSCAPES LTD,2108452,15/05/2017,67941,36.46,0,Parks routine maintenance,391310,Construction Open Spaces Construction
South Lakeland District Council,http://opendatacommunities.org/id/district-council/south-lakeland,31/05/2017,Social Enterprise Admin,Highways & Transport Services,http://opendatacommunities.org/def/concept/finance/sercop/objective/107,CONTINENTAL LANDSCAPES LTD,2108452,15/05/2017,67941,60.76,0,Parks routine maintenance,391310,Construction Open Spaces Construction
South Lakeland District Council,http://opendatacommunities.org/id/district-council/south-lakeland,31/05/2017,Social Enterprise Admin,Highways & Transport Services,http://opendatacommunities.org/def/concept/finance/sercop/objective/107,CONTINENTAL LANDSCAPES LTD,2108452,15/05/2017,67941,108.1,0,Parks routine maintenance,391310,Construction Open Spaces Construction
South Lakeland District Council,http://opendatacommunities.org/id/district-council/south-lakeland,31/05/2017,Social Enterprise Admin,Highways & Transport Services,http://opendatacommunities.org/def/concept/finance/sercop/objective/107,CONTINENTAL LANDSCAPES LTD,2108452,15/05/2017,67941,121.53,0,Parks routine maintenance,391310,Construction Open Spaces Construction
South Lakeland District Council,http://opendatacommunities.org/id/district-council/south-lakeland,31/05/2017,Social Enterprise Admin,Highways & Transport Services,http://opendatacommunities.org/def/concept/finance/sercop/objective/107,CONTINENTAL LANDSCAPES LTD,2108452,15/05/2017,67941,224.83,0,Parks routine maintenance,391310,Construction Open Spaces Construction
South Lakeland District Council,http://opendatacommunities.org/id/district-council/south-lakeland,31/05/2017,Social Enterprise Admin,Highways & Transport Services,http://opendatacommunities.org/def/concept/finance/sercop/objective/107,CONTINENTAL LANDSCAPES LTD,2108452,15/05/2017,67941,121.53,0,Parks routine maintenance,391310,Construction Open Spaces Construction
South Lakeland District Council,http://opendatacommunities.org/id/district-council/south-lakeland,31/05/2017,Social Enterprise Admin,Highways & Transport Services,http://opendatacommunities.org/def/concept/finance/sercop/objective/107,CONTINENTAL LANDSCAPES LTD,2108452,15/05/2017,67941,182.29,0,Parks routine maintenance,391310,Construction Open Spaces Construction
South Lakeland District Council,http://opendatacommunities.org/id/district-council/south-lakeland,31/05/2017,Social Enterprise Admin,Cultural Environmental Regulatory & Planning Services,http://opendatacommunities.org/def/concept/finance/sercop/objective/104,CONTINENTAL LANDSCAPES LTD,2108452,15/05/2017,67941,9722.17,0,Parks routine maintenance,391310,Construction Open Spaces Construction
South Lakeland District Council,http://opendatacommunities.org/id/district-council/south-lakeland,31/05/2017,Social Enterprise Admin,Cultural Environmental Regulatory & Planning Services,http://opendatacommunities.org/def/concept/finance/sercop/objective/104,CONTINENTAL LANDSCAPES LTD,2108452,15/05/2017,67941,24.31,0,Parks routine maintenance,391310,Construction Open Spaces Construction
South Lakeland District Council,http://opendatacommunities.org/id/district-council/south-lakeland,31/05/2017,Social Enterprise Admin,Cultural Environmental Regulatory & Planning Services,http://opendatacommunities.org/def/concept/finance/sercop/objective/104,CONTINENTAL LANDSCAPES LTD,2108452,15/05/2017,67941,46513.47,0,Parks routine maintenance,391310,Construction Open Spaces Construction
South Lakeland District Council,http://opendatacommunities.org/id/district-council/south-lakeland,31/05/2017,Social Enterprise Admin,Cultural Environmental Regulatory & Planning Services,http://opendatacommunities.org/def/concept/finance/sercop/objective/104,CONTINENTAL LANDSCAPES LTD,2108452,15/05/2017,67941,364.58,0,Parks routine maintenance,391310,Construction Open Spaces Construction
South Lakeland District Council,http://opendatacommunities.org/id/district-council/south-lakeland,31/05/2017,Social Enterprise Admin,Cultural Environmental Regulatory & Planning Services,http://opendatacommunities.org/def/concept/finance/sercop/objective/104,CONTINENTAL LANDSCAPES LTD,2108452,15/05/2017,67941,2309.02,0,Parks routine maintenance,391310,Construction Open Spaces Construction
South Lakeland District Council,http://opendatacommunities.org/id/district-council/south-lakeland,31/05/2017,Social Enterprise Admin,External Trading Accounts,,CONTINENTAL LANDSCAPES LTD,2108452,15/05/2017,67941,106.34,0,Parks routine maintenance,391310,Construction Open Spaces Construction
South Lakeland District Council,http://opendatacommunities.org/id/district-council/south-lakeland,31/05/2017,Social Enterprise Admin,Cultural Environmental Regulatory & Planning Services,http://opendatacommunities.org/def/concept/finance/sercop/objective/104,CONTINENTAL LANDSCAPES LTD,2108452,15/05/2017,67942,3647.15,0,Gravedigging for April and May 2017,391310,Construction Open Spaces Construction
South Lakeland District Council,http://opendatacommunities.org/id/district-council/south-lakeland,31/05/2017,Social Enterprise Admin,Cultural Environmental Regulatory & Planning Services,http://opendatacommunities.org/def/concept/finance/sercop/objective/104,CONTINENTAL LANDSCAPES LTD,2108452,15/05/2017,67943,2000,0,For disposal of waste to Kendal Fell,391310,Construction Open Spaces Construction
South Lakeland District Council,http://opendatacommunities.org/id/district-council/south-lakeland,31/05/2017,Business Support Community Services,Central Services,http://opendatacommunities.org/def/concept/finance/sercop/objective/102,COPELAND BOROUGH COUNCIL,,22/05/2017,68203,600,0,Health and Safety Traininng on 23rd/24th,908000,Public Bodies Council support services
South Lakeland District Council,http://opendatacommunities.org/id/district-council/south-lakeland,31/05/2017,Business Support Community Services,Central Services,http://opendatacommunities.org/def/concept/finance/sercop/objective/102,CRAEMER UK LTD,2574815,03/05/2017,67533,12012,0,"240L Plastic Wheeld Bin (Green) , Fully",182012,Environment Waste Management Recycling
South Lakeland District Council,http://opendatacommunities.org/id/district-council/south-lakeland,31/05/2017,Development Implementation,Central Services,http://opendatacommunities.org/def/concept/finance/sercop/objective/102,CRUDEN PROPERTY SERVICES LTD,3851237,31/05/2017,68467,15955.53,0,"Conversion of Brogden Street, Ulverston",391111,Construction Buildings Repair & Mtce
South Lakeland District Council,http://opendatacommunities.org/id/district-council/south-lakeland,31/05/2017,Business Support Community Services,Central Services,http://opendatacommunities.org/def/concept/finance/sercop/objective/102,Cumbria Action for Sustainability,6492907,08/05/2017,67546,2000,0,Contingency fund for Community Energy,201700,Financial Services Grants
South Lakeland District Council,http://opendatacommunities.org/id/district-council/south-lakeland,31/05/2017,Development Implementation,Cultural Environmental Regulatory & Planning Services,http://opendatacommunities.org/def/concept/finance/sercop/objective/104,CUMBRIA CHAMBER OF COMMERCE,4211364,15/05/2017,67918,880,0,Membership to Chamber of Commerce,151000,Consultancy Business
South Lakeland District Council,http://opendatacommunities.org/id/district-council/south-lakeland,31/05/2017,Development Implementation,Cultural Environmental Regulatory & Planning Services,http://opendatacommunities.org/def/concept/finance/sercop/objective/104,CUMBRIA CHAMBER OF COMMERCE,4211364,24/05/2017,67949,30000,0,Provision of Business Support Services,151000,Consultancy Business
South Lakeland District Council,http://opendatacommunities.org/id/district-council/south-lakeland,31/05/2017,Business Support Community Services,SLDC as Agent,,CUMBRIA COUNTY COUNCIL,,22/05/2017,67186,108,0,DBS Checks for Taxi Drivers,908000,Public Bodies Council support services
South Lakeland District Council,http://opendatacommunities.org/id/district-council/south-lakeland,31/05/2017,Business Support Community Services,SLDC as Agent,,CUMBRIA COUNTY COUNCIL,,17/05/2017,67621,162,0,DBS Checks for Taxi Drivers,908000,Public Bodies Council support services
South Lakeland District Council,http://opendatacommunities.org/id/district-council/south-lakeland,31/05/2017,Human Resources,Central Services,http://opendatacommunities.org/def/concept/finance/sercop/objective/102,CUMBRIA COUNTY COUNCIL,,17/05/2017,67622,54,0,New starter,908000,Public Bodies Council support services
South Lakeland District Council,http://opendatacommunities.org/id/district-council/south-lakeland,31/05/2017,Democratic Services,Central Services,http://opendatacommunities.org/def/concept/finance/sercop/objective/102,CUMBRIA COUNTY COUNCIL,,08/05/2017,67623,36.25,0,Refreshments for 25 people at 1.45 per,908000,Public Bodies Council support services
South Lakeland District Council,http://opendatacommunities.org/id/district-council/south-lakeland,31/05/2017,Democratic Services,Central Services,http://opendatacommunities.org/def/concept/finance/sercop/objective/102,CUMBRIA COUNTY COUNCIL,,15/05/2017,67695,21.75,0,Additional refreshments at County Hall,908000,Public Bodies Council support services
South Lakeland District Council,http://opendatacommunities.org/id/district-council/south-lakeland,31/05/2017,Business Support Community Services,SLDC as Agent,,CUMBRIA COUNTY COUNCIL,,10/05/2017,67810,54,0,DBS Checks for Taxi Drivers,908000,Public Bodies Council support services
South Lakeland District Council,http://opendatacommunities.org/id/district-council/south-lakeland,31/05/2017,Social Enterprise Admin,Central Services,http://opendatacommunities.org/def/concept/finance/sercop/objective/102,CUMBRIA COUNTY COUNCIL,,10/05/2017,67841,3478,0,LAND CHARGE SEARCH ENQUIRIES,908000,Public Bodies Council support services
South Lakeland District Council,http://opendatacommunities.org/id/district-council/south-lakeland,31/05/2017,Business Support Community Services,SLDC as Agent,,CUMBRIA COUNTY COUNCIL,,15/05/2017,67935,162,0,DBS Checks for Taxi Drivers,908000,Public Bodies Council support services
South Lakeland District Council,http://opendatacommunities.org/id/district-council/south-lakeland,31/05/2017,Business Support Community Services,Internal Trading Accounts,,CUMBRIA COUNTY COUNCIL,,24/05/2017,68029,25726.93,0,"Tipping & disposal charges, recyclables",908000,Public Bodies Council support services
South Lakeland District Council,http://opendatacommunities.org/id/district-council/south-lakeland,31/05/2017,Development Implementation,Cultural Environmental Regulatory & Planning Services,http://opendatacommunities.org/def/concept/finance/sercop/objective/104,CUMBRIA COUNTY COUNCIL,,17/05/2017,68034,5000,0,Contribution to LEP 2017/18,908000,Public Bodies Council support services
South Lakeland District Council,http://opendatacommunities.org/id/district-council/south-lakeland,31/05/2017,Business Support Community Services,Internal Trading Accounts,,CUMBRIA TRUCK CENTRE LTD,4298488,10/05/2017,67802,523.27,0,Spring,381300,Vehicle Mgt Industrial
South Lakeland District Council,http://opendatacommunities.org/id/district-council/south-lakeland,31/05/2017,Business Support Community Services,Internal Trading Accounts,,CUMBRIA TRUCK CENTRE LTD,4298488,10/05/2017,67803,701.95,0,Spring,381300,Vehicle Mgt Industrial
South Lakeland District Council,http://opendatacommunities.org/id/district-council/south-lakeland,31/05/2017,Business Support Community Services,Internal Trading Accounts,,CUMBRIA TRUCK CENTRE LTD,4298488,22/05/2017,68056,601.23,0,Sensors,381300,Vehicle Mgt Industrial
South Lakeland District Council,http://opendatacommunities.org/id/district-council/south-lakeland,31/05/2017,Business Support Community Services,Internal Trading Accounts,,CUMBRIA TRUCK CENTRE LTD,4298488,22/05/2017,68180,1612.87,0,Gasket,381300,Vehicle Mgt Industrial
South Lakeland District Council,http://opendatacommunities.org/id/district-council/south-lakeland,31/05/2017,Business Support Community Services,Internal Trading Accounts,,CUMBRIA TRUCK CENTRE LTD,4298488,31/05/2017,68370,63.25,0,Wing,381300,Vehicle Mgt Industrial
South Lakeland District Council,http://opendatacommunities.org/id/district-council/south-lakeland,31/05/2017,Lake Wardens,Cultural Environmental Regulatory & Planning Services,http://opendatacommunities.org/def/concept/finance/sercop/objective/104,CUMBRIA WASTE RECYCLING LTD,3162439,17/05/2017,67028,140.68,0,Emptying of General Waste Summer Bins,182012,Environment Waste Management Recycling
South Lakeland District Council,http://opendatacommunities.org/id/district-council/south-lakeland,31/05/2017,Environmental Protection,Cultural Environmental Regulatory & Planning Services,http://opendatacommunities.org/def/concept/finance/sercop/objective/104,CUMBRIA WASTE RECYCLING LTD,3162439,24/05/2017,67035,103,0,Cemetery bin waster collection,182012,Environment Waste Management Recycling
South Lakeland District Council,http://opendatacommunities.org/id/district-council/south-lakeland,31/05/2017,Development Implementation,Central Services,http://opendatacommunities.org/def/concept/finance/sercop/objective/102,CUMBRIA WASTE RECYCLING LTD,3162439,08/05/2017,67615,110,0,Clear Plastic Bags,182012,Environment Waste Management Recycling
South Lakeland District Council,http://opendatacommunities.org/id/district-council/south-lakeland,31/05/2017,Lake Wardens,Cultural Environmental Regulatory & Planning Services,http://opendatacommunities.org/def/concept/finance/sercop/objective/104,CUMBRIA WASTE RECYCLING LTD,3162439,24/05/2017,68011,238.88,0,Monthly collection of Refuse Wheelie,182012,Environment Waste Management Recycling
South Lakeland District Council,http://opendatacommunities.org/id/district-council/south-lakeland,31/05/2017,Development Implementation,Central Services,http://opendatacommunities.org/def/concept/finance/sercop/objective/102,CUMBRIA WASTE RECYCLING LTD,3162439,17/05/2017,68012,229.92,0,South Lakeland House bin & skip emptying,182012,Environment Waste Management Recycling
South Lakeland District Council,http://opendatacommunities.org/id/district-council/south-lakeland,31/05/2017,Kendal Town Hall,Cultural Environmental Regulatory & Planning Services,http://opendatacommunities.org/def/concept/finance/sercop/objective/104,CUMBRIA WASTE RECYCLING LTD,3162439,17/05/2017,68013,136,0,Weekly collection of mixed waste bins,182012,Environment Waste Management Recycling
South Lakeland District Council,http://opendatacommunities.org/id/district-council/south-lakeland,31/05/2017,Social Enterprise Admin,Highways & Transport Services,http://opendatacommunities.org/def/concept/finance/sercop/objective/107,CUMBRIA WASTE RECYCLING LTD,3162439,17/05/2017,68014,51.56,0,Westmorland Multistorey 60 ltr bin April,182012,Environment Waste Management Recycling
South Lakeland District Council,http://opendatacommunities.org/id/district-council/south-lakeland,31/05/2017,Lake Wardens,Cultural Environmental Regulatory & Planning Services,http://opendatacommunities.org/def/concept/finance/sercop/objective/104,CUMBRIA WASTE RECYCLING LTD,3162439,31/05/2017,68015,196.48,0,Monthly collection of Refuse Wheelie,182012,Environment Waste Management Recycling
South Lakeland District Council,http://opendatacommunities.org/id/district-council/south-lakeland,31/05/2017,Development Implementation,Cultural Environmental Regulatory & Planning Services,http://opendatacommunities.org/def/concept/finance/sercop/objective/104,CUMBRIA WASTE RECYCLING LTD,3162439,17/05/2017,68016,112.4,0,"Waste Collection at 124 Highgate, Kendal",182012,Environment Waste Management Recycling
South Lakeland District Council,http://opendatacommunities.org/id/district-council/south-lakeland,31/05/2017,Business Support Community Services,Cultural Environmental Regulatory & Planning Services,http://opendatacommunities.org/def/concept/finance/sercop/objective/104,CUMBRIA WASTE RECYCLING LTD,3162439,22/05/2017,68171,15017.3,0,Empty recycling banks in April to,182012,Environment Waste Management Recycling
South Lakeland District Council,http://opendatacommunities.org/id/district-council/south-lakeland,31/05/2017,Business Support Community Services,Internal Trading Accounts,,CUMBRIA WASTE RECYCLING LTD,3162439,22/05/2017,68217,1062,0,Skip emptying at Ecclerigg & Ulverston,182012,Environment Waste Management Recycling
South Lakeland District Council,http://opendatacommunities.org/id/district-council/south-lakeland,31/05/2017,Business Support Community Services,Internal Trading Accounts,,CUMBRIA WASTE RECYCLING LTD,3162439,22/05/2017,68218,118,0,Skip emptying at Ecclerigg & Ulverston,182012,Environment Waste Management Recycling
South Lakeland District Council,http://opendatacommunities.org/id/district-council/south-lakeland,31/05/2017,Cemeteries Office,Cultural Environmental Regulatory & Planning Services,http://opendatacommunities.org/def/concept/finance/sercop/objective/104,CUMBRIA WASTE RECYCLING LTD,3162439,24/05/2017,68285,86.84,0,Cemetery Waste Bin Emptying 2017-18,182012,Environment Waste Management Recycling
South Lakeland District Council,http://opendatacommunities.org/id/district-council/south-lakeland,31/05/2017,Cemeteries Office,Cultural Environmental Regulatory & Planning Services,http://opendatacommunities.org/def/concept/finance/sercop/objective/104,CUMBRIA WASTE RECYCLING LTD,3162439,24/05/2017,68286,29,0,Cemetery Waste Bin Emptying 2017-18,182012,Environment Waste Management Recycling
South Lakeland District Council,http://opendatacommunities.org/id/district-council/south-lakeland,31/05/2017,Cemeteries Office,Cultural Environmental Regulatory & Planning Services,http://opendatacommunities.org/def/concept/finance/sercop/objective/104,CUMBRIA WASTE RECYCLING LTD,3162439,24/05/2017,68287,33.4,0,Cemetery Waste Bin Emptying 2017-18,182012,Environment Waste Management Recycling
South Lakeland District Council,http://opendatacommunities.org/id/district-council/south-lakeland,31/05/2017,Cemeteries Office,Cultural Environmental Regulatory & Planning Services,http://opendatacommunities.org/def/concept/finance/sercop/objective/104,CUMBRIA WASTE RECYCLING LTD,3162439,24/05/2017,68288,97.6,0,Cemetery Waste Bin Emptying 2017-18,182012,Environment Waste Management Recycling
South Lakeland District Council,http://opendatacommunities.org/id/district-council/south-lakeland,31/05/2017,Cemeteries Office,Cultural Environmental Regulatory & Planning Services,http://opendatacommunities.org/def/concept/finance/sercop/objective/104,CUMBRIA WASTE RECYCLING LTD,3162439,24/05/2017,68289,52.32,0,Cemetery Waste Bin Emptying 2017-18,182012,Environment Waste Management Recycling
South Lakeland District Council,http://opendatacommunities.org/id/district-council/south-lakeland,31/05/2017,Cemeteries Office,Cultural Environmental Regulatory & Planning Services,http://opendatacommunities.org/def/concept/finance/sercop/objective/104,CUMBRIA WASTE RECYCLING LTD,3162439,24/05/2017,68290,66.8,0,Cemetery Waste Bin Emptying 2017-18,182012,Environment Waste Management Recycling
South Lakeland District Council,http://opendatacommunities.org/id/district-council/south-lakeland,31/05/2017,Cemeteries Office,Cultural Environmental Regulatory & Planning Services,http://opendatacommunities.org/def/concept/finance/sercop/objective/104,CUMBRIA WASTE RECYCLING LTD,3162439,24/05/2017,68291,62.12,0,Cemetery Waste Bin Emptying 2017-18,182012,Environment Waste Management Recycling
South Lakeland District Council,http://opendatacommunities.org/id/district-council/south-lakeland,31/05/2017,Development Implementation,Central Services,http://opendatacommunities.org/def/concept/finance/sercop/objective/102,CUMBRIA WASTE RECYCLING LTD,3162439,31/05/2017,68376,33.4,0,Langstone House 360ltr Wheelie Bin,182012,Environment Waste Management Recycling
South Lakeland District Council,http://opendatacommunities.org/id/district-council/south-lakeland,31/05/2017,Development Implementation,Central Services,http://opendatacommunities.org/def/concept/finance/sercop/objective/102,CUMBRIA WASTE RECYCLING LTD,3162439,31/05/2017,68378,54.68,0,Ulverston Town Hall Queen Street 1,182012,Environment Waste Management Recycling
South Lakeland District Council,http://opendatacommunities.org/id/district-council/south-lakeland,31/05/2017,Development Strategy,Cultural Environmental Regulatory & Planning Services,http://opendatacommunities.org/def/concept/finance/sercop/objective/104,CUMBRIA WILDLIFE TRUST,,15/05/2017,67984,507.5,0,biodiversity assessment of additional,159999,Consultancy Not Elsewhere Classified
South Lakeland District Council,http://opendatacommunities.org/id/district-council/south-lakeland,31/05/2017,ICT Group,Central Services,http://opendatacommunities.org/def/concept/finance/sercop/objective/102,DAISY COMMUNICATIONS LTD,4145329,17/05/2017,67846,325.96,0,"Daisy Line Rental, various numbers,",271700,ICT Telecommunications Fixed
South Lakeland District Council,http://opendatacommunities.org/id/district-council/south-lakeland,31/05/2017,ICT Group,Central Services,http://opendatacommunities.org/def/concept/finance/sercop/objective/102,DAISY COMMUNICATIONS LTD,4145329,17/05/2017,67846,125.08,0,"Daisy Line Rental, various numbers,",271700,ICT Telecommunications Fixed
South Lakeland District Council,http://opendatacommunities.org/id/district-council/south-lakeland,31/05/2017,Business Support Community Services,Housing Services,http://opendatacommunities.org/def/concept/finance/sercop/objective/108,Landlord,,31/05/2017,68407,625,0,Monthly rent payment,202000,Financial Services Rents
South Lakeland District Council,http://opendatacommunities.org/id/district-council/south-lakeland,31/05/2017,Business Support Community Services,Internal Trading Accounts,,DAVID BREAKS,,15/05/2017,67748,147.64,0,Repair SL077,381500,Vehicle Mgt Parts
South Lakeland District Council,http://opendatacommunities.org/id/district-council/south-lakeland,31/05/2017,Business Support Community Services,Internal Trading Accounts,,DAVID BREAKS,,17/05/2017,67903,157.4,0,Repair SL094,381500,Vehicle Mgt Parts
South Lakeland District Council,http://opendatacommunities.org/id/district-council/south-lakeland,31/05/2017,Environment and Housing,Housing,http://opendatacommunities.org/def/concept/finance/sercop/objective/108,Dean Adams Building Contractors,,10/05/2017,67855,24312.96,0,"26 Stonecroft, Ambleside, LA22 0AU",100000,Building Construction materials
South Lakeland District Council,http://opendatacommunities.org/id/district-council/south-lakeland,31/05/2017,ICT Group,Central Services,http://opendatacommunities.org/def/concept/finance/sercop/objective/102,DEMON (VODAFONE),,10/05/2017,67853,60,0,Domain Registration covering 6/5/17 to,271700,ICT Telecommunications Fixed
South Lakeland District Council,http://opendatacommunities.org/id/district-council/south-lakeland,31/05/2017,Business Support Community Services,Internal Trading Accounts,,DENNIS EAGLE LTD,3794455,15/05/2017,67709,78.14,0,Blades,381300,Vehicle Mgt Industrial
South Lakeland District Council,http://opendatacommunities.org/id/district-council/south-lakeland,31/05/2017,Business Support Community Services,Internal Trading Accounts,,DENNIS EAGLE LTD,3794455,15/05/2017,67713,40.36,0,E C U,381300,Vehicle Mgt Industrial
South Lakeland District Council,http://opendatacommunities.org/id/district-council/south-lakeland,31/05/2017,Business Support Community Services,Internal Trading Accounts,,DENNIS EAGLE LTD,3794455,15/05/2017,67714,392.28,0,E C U,381300,Vehicle Mgt Industrial
South Lakeland District Council,http://opendatacommunities.org/id/district-council/south-lakeland,31/05/2017,Business Support Community Services,Internal Trading Accounts,,DENNIS EAGLE LTD,3794455,15/05/2017,67715,261.43,0,E C U,381300,Vehicle Mgt Industrial
South Lakeland District Council,http://opendatacommunities.org/id/district-council/south-lakeland,31/05/2017,Business Support Community Services,Internal Trading Accounts,,DENNIS EAGLE LTD,3794455,15/05/2017,67716,99.07,0,E C U,381300,Vehicle Mgt Industrial
South Lakeland District Council,http://opendatacommunities.org/id/district-council/south-lakeland,31/05/2017,Business Support Community Services,Internal Trading Accounts,,DENNIS EAGLE LTD,3794455,15/05/2017,67717,178.27,0,E C U,381300,Vehicle Mgt Industrial
South Lakeland District Council,http://opendatacommunities.org/id/district-council/south-lakeland,31/05/2017,Business Support Community Services,Internal Trading Accounts,,DENNIS EAGLE LTD,3794455,15/05/2017,67718,505.71,0,E C U,381300,Vehicle Mgt Industrial
South Lakeland District Council,http://opendatacommunities.org/id/district-council/south-lakeland,31/05/2017,Business Support Community Services,Internal Trading Accounts,,DENNIS EAGLE LTD,3794455,10/05/2017,67799,291.97,0,E C U,381300,Vehicle Mgt Industrial
South Lakeland District Council,http://opendatacommunities.org/id/district-council/south-lakeland,31/05/2017,Business Support Community Services,Internal Trading Accounts,,DENNIS EAGLE LTD,3794455,24/05/2017,68300,58.16,0,Lights,381300,Vehicle Mgt Industrial
South Lakeland District Council,http://opendatacommunities.org/id/district-council/south-lakeland,31/05/2017,Business Support Community Services,Internal Trading Accounts,,DENNIS EAGLE LTD,3794455,24/05/2017,68312,163.78,0,Lights,381300,Vehicle Mgt Industrial
South Lakeland District Council,http://opendatacommunities.org/id/district-council/south-lakeland,31/05/2017,Policy & Partnerships,Central Services,http://opendatacommunities.org/def/concept/finance/sercop/objective/102,District Councils' Network,,10/05/2017,67638,410,0,DCN Annual Subscription 2017/18,202100,Financial Services Subscriptions
South Lakeland District Council,http://opendatacommunities.org/id/district-council/south-lakeland,31/05/2017,Printing Section,Central Services,http://opendatacommunities.org/def/concept/finance/sercop/objective/102,DIXON PRINTING CO LTD,,17/05/2017,68037,2000,0,"100,000 SLDC letterheads to be held in",191600,Facilities Printing
South Lakeland District Council,http://opendatacommunities.org/id/district-council/south-lakeland,31/05/2017,Business Support Community Services,Housing Services,http://opendatacommunities.org/def/concept/finance/sercop/objective/108,Landlord,,10/05/2017,67858,520,0,Monthly rent,202000,Financial Services Rents
South Lakeland District Council,http://opendatacommunities.org/id/district-council/south-lakeland,31/05/2017,Business Support Community Services,Housing Services,http://opendatacommunities.org/def/concept/finance/sercop/objective/108,Landlord,,10/05/2017,67859,520,0,Monthly rent,202000,Financial Services Rents
South Lakeland District Council,http://opendatacommunities.org/id/district-council/south-lakeland,31/05/2017,Business Support Community Services,Internal Trading Accounts,,EK MOTOR FACTORS LTD,838524,03/05/2017,67522,19.35,0,Brake fluid,381400,Vehicle Mgt Maintenance
South Lakeland District Council,http://opendatacommunities.org/id/district-council/south-lakeland,31/05/2017,Business Support Community Services,Internal Trading Accounts,,EK MOTOR FACTORS LTD,838524,03/05/2017,67523,70.34,0,Brake fluid,381400,Vehicle Mgt Maintenance
South Lakeland District Council,http://opendatacommunities.org/id/district-council/south-lakeland,31/05/2017,Business Support Community Services,Internal Trading Accounts,,EK MOTOR FACTORS LTD,838524,15/05/2017,67724,565.08,0,Brake fluid,381400,Vehicle Mgt Maintenance
South Lakeland District Council,http://opendatacommunities.org/id/district-council/south-lakeland,31/05/2017,Business Support Community Services,Internal Trading Accounts,,EK MOTOR FACTORS LTD,838524,15/05/2017,67736,25.2,0,Brake fluid,381400,Vehicle Mgt Maintenance
South Lakeland District Council,http://opendatacommunities.org/id/district-council/south-lakeland,31/05/2017,Business Support Community Services,Internal Trading Accounts,,EK MOTOR FACTORS LTD,838524,15/05/2017,67738,-11.85,0,Air filter,381400,Vehicle Mgt Maintenance
South Lakeland District Council,http://opendatacommunities.org/id/district-council/south-lakeland,31/05/2017,Business Support Community Services,Internal Trading Accounts,,EK MOTOR FACTORS LTD,838524,15/05/2017,67887,21.8,0,Air filters,381400,Vehicle Mgt Maintenance
South Lakeland District Council,http://opendatacommunities.org/id/district-council/south-lakeland,31/05/2017,Business Support Community Services,Internal Trading Accounts,,EK MOTOR FACTORS LTD,838524,15/05/2017,67888,50.67,0,Air filters,381400,Vehicle Mgt Maintenance
South Lakeland District Council,http://opendatacommunities.org/id/district-council/south-lakeland,31/05/2017,Business Support Community Services,Internal Trading Accounts,,EK MOTOR FACTORS LTD,838524,17/05/2017,67889,5.95,0,Air filters,381400,Vehicle Mgt Maintenance
South Lakeland District Council,http://opendatacommunities.org/id/district-council/south-lakeland,31/05/2017,Business Support Community Services,Internal Trading Accounts,,EK MOTOR FACTORS LTD,838524,17/05/2017,67890,20,0,Air filters,381400,Vehicle Mgt Maintenance
South Lakeland District Council,http://opendatacommunities.org/id/district-council/south-lakeland,31/05/2017,Business Support Community Services,Internal Trading Accounts,,EK MOTOR FACTORS LTD,838524,17/05/2017,67891,18.38,0,Air filters,381400,Vehicle Mgt Maintenance
South Lakeland District Council,http://opendatacommunities.org/id/district-council/south-lakeland,31/05/2017,Business Support Community Services,Internal Trading Accounts,,EK MOTOR FACTORS LTD,838524,17/05/2017,67891,28.08,0,Air filters,381400,Vehicle Mgt Maintenance
South Lakeland District Council,http://opendatacommunities.org/id/district-council/south-lakeland,31/05/2017,Business Support Community Services,Internal Trading Accounts,,EK MOTOR FACTORS LTD,838524,17/05/2017,67892,131.7,0,Air filters,381400,Vehicle Mgt Maintenance
South Lakeland District Council,http://opendatacommunities.org/id/district-council/south-lakeland,31/05/2017,Business Support Community Services,Internal Trading Accounts,,EK MOTOR FACTORS LTD,838524,17/05/2017,67893,7.6,0,Air filters,381400,Vehicle Mgt Maintenance
South Lakeland District Council,http://opendatacommunities.org/id/district-council/south-lakeland,31/05/2017,Business Support Community Services,Internal Trading Accounts,,EK MOTOR FACTORS LTD,838524,17/05/2017,68005,5.95,0,part,381400,Vehicle Mgt Maintenance
South Lakeland District Council,http://opendatacommunities.org/id/district-council/south-lakeland,31/05/2017,Business Support Community Services,Internal Trading Accounts,,EK MOTOR FACTORS LTD,838524,17/05/2017,68006,27.17,0,part,381400,Vehicle Mgt Maintenance
South Lakeland District Council,http://opendatacommunities.org/id/district-council/south-lakeland,31/05/2017,Business Support Community Services,Internal Trading Accounts,,EK MOTOR FACTORS LTD,838524,17/05/2017,68019,122.16,0,part,381400,Vehicle Mgt Maintenance
South Lakeland District Council,http://opendatacommunities.org/id/district-council/south-lakeland,31/05/2017,Business Support Community Services,Internal Trading Accounts,,EK MOTOR FACTORS LTD,838524,17/05/2017,68023,30.82,0,part,381400,Vehicle Mgt Maintenance
South Lakeland District Council,http://opendatacommunities.org/id/district-council/south-lakeland,31/05/2017,Business Support Community Services,Internal Trading Accounts,,EK MOTOR FACTORS LTD,838524,17/05/2017,68024,72.34,0,part,381400,Vehicle Mgt Maintenance
South Lakeland District Council,http://opendatacommunities.org/id/district-council/south-lakeland,31/05/2017,Business Support Community Services,Internal Trading Accounts,,EK MOTOR FACTORS LTD,838524,17/05/2017,68025,298.72,0,part,381400,Vehicle Mgt Maintenance
South Lakeland District Council,http://opendatacommunities.org/id/district-council/south-lakeland,31/05/2017,Business Support Community Services,Internal Trading Accounts,,EK MOTOR FACTORS LTD,838524,17/05/2017,68026,29.64,0,part,381400,Vehicle Mgt Maintenance
South Lakeland District Council,http://opendatacommunities.org/id/district-council/south-lakeland,31/05/2017,Business Support Community Services,Internal Trading Accounts,,EK MOTOR FACTORS LTD,838524,24/05/2017,68265,50.12,0,part,381400,Vehicle Mgt Maintenance
South Lakeland District Council,http://opendatacommunities.org/id/district-council/south-lakeland,31/05/2017,Business Support Community Services,Internal Trading Accounts,,EK MOTOR FACTORS LTD,838524,24/05/2017,68296,24.1,0,Exhaust,381400,Vehicle Mgt Maintenance
South Lakeland District Council,http://opendatacommunities.org/id/district-council/south-lakeland,31/05/2017,Business Support Community Services,Internal Trading Accounts,,EK MOTOR FACTORS LTD,838524,24/05/2017,68297,34.49,0,Exhaust,381400,Vehicle Mgt Maintenance
South Lakeland District Council,http://opendatacommunities.org/id/district-council/south-lakeland,31/05/2017,Business Support Community Services,Internal Trading Accounts,,EK MOTOR FACTORS LTD,838524,24/05/2017,68298,7.62,0,Exhaust,381400,Vehicle Mgt Maintenance
South Lakeland District Council,http://opendatacommunities.org/id/district-council/south-lakeland,31/05/2017,Business Support Community Services,Internal Trading Accounts,,EK MOTOR FACTORS LTD,838524,24/05/2017,68299,27.06,0,Brake fluid,381400,Vehicle Mgt Maintenance
South Lakeland District Council,http://opendatacommunities.org/id/district-council/south-lakeland,31/05/2017,Business Support Community Services,Internal Trading Accounts,,EK MOTOR FACTORS LTD,838524,24/05/2017,68301,56,0,Exhaust,381400,Vehicle Mgt Maintenance
South Lakeland District Council,http://opendatacommunities.org/id/district-council/south-lakeland,31/05/2017,Business Support Community Services,Internal Trading Accounts,,EK MOTOR FACTORS LTD,838524,24/05/2017,68302,56,0,Exhaust,381400,Vehicle Mgt Maintenance
South Lakeland District Council,http://opendatacommunities.org/id/district-council/south-lakeland,31/05/2017,Business Support Community Services,Internal Trading Accounts,,EK MOTOR FACTORS LTD,838524,24/05/2017,68303,191.84,0,Exhaust,381400,Vehicle Mgt Maintenance
South Lakeland District Council,http://opendatacommunities.org/id/district-council/south-lakeland,31/05/2017,Business Support Community Services,Internal Trading Accounts,,EK MOTOR FACTORS LTD,838524,24/05/2017,68311,41.3,0,Exhaust,381400,Vehicle Mgt Maintenance
South Lakeland District Council,http://opendatacommunities.org/id/district-council/south-lakeland,31/05/2017,Business Support Community Services,Housing Services,http://opendatacommunities.org/def/concept/finance/sercop/objective/108,Landlord,,10/05/2017,67856,60,0,Maintenance payment,202000,Financial Services Rents
South Lakeland District Council,http://opendatacommunities.org/id/district-council/south-lakeland,31/05/2017,Business Support Community Services,Housing Services,http://opendatacommunities.org/def/concept/finance/sercop/objective/108,Landlord,,10/05/2017,67861,500,0,Monthly rent,202000,Financial Services Rents
South Lakeland District Council,http://opendatacommunities.org/id/district-council/south-lakeland,31/05/2017,Human Resources,Central Services,http://opendatacommunities.org/def/concept/finance/sercop/objective/102,EMPLOYMENT PAGES LTD,7363099,10/05/2017,67811,275.4,0,employment pages advert may 2017,261400,HR Temporary & Agency Staff
South Lakeland District Council,http://opendatacommunities.org/id/district-council/south-lakeland,31/05/2017,Development Strategy,Cultural Environmental Regulatory & Planning Services,http://opendatacommunities.org/def/concept/finance/sercop/objective/104,Endmoor Village Hall,,10/05/2017,67839,60,0,hire of Endmoor Village Hall for,202000,Financial Services Rents
South Lakeland District Council,http://opendatacommunities.org/id/district-council/south-lakeland,31/05/2017,Lake Wardens,Cultural Environmental Regulatory & Planning Services,http://opendatacommunities.org/def/concept/finance/sercop/objective/104,ENVIROFIRST LTD,5999123,17/05/2017,67816,29.44,0,Rental & Emptying of Re-cycling Bins,182012,Environment Waste Management Recycling
South Lakeland District Council,http://opendatacommunities.org/id/district-council/south-lakeland,31/05/2017,Development Implementation,Central Services,http://opendatacommunities.org/def/concept/finance/sercop/objective/102,ENVIROFIRST LTD,5999123,15/05/2017,67920,181.94,0,Lowther Street Wheelie bin mixed,182012,Environment Waste Management Recycling
South Lakeland District Council,http://opendatacommunities.org/id/district-council/south-lakeland,31/05/2017,Environment and Housing,Housing,http://opendatacommunities.org/def/concept/finance/sercop/objective/108,ENVIRONMENT & HOUSING GRANTS,,15/05/2017,67987,7000,0,"Hill Place, Oxenholme, Kendal",201700,Financial Services Grants
South Lakeland District Council,http://opendatacommunities.org/id/district-council/south-lakeland,31/05/2017,Environment and Housing,Housing,http://opendatacommunities.org/def/concept/finance/sercop/objective/108,ENVIRONMENT & HOUSING GRANTS,,31/05/2017,68465,1888.92,0,"Moorside, Flookburgh,",201700,Financial Services Grants
South Lakeland District Council,http://opendatacommunities.org/id/district-council/south-lakeland,31/05/2017,Business Support Community Services,Internal Trading Accounts,,ETS UK LIMITED,2588203,15/05/2017,67885,341.69,0,Filters,381500,Vehicle Mgt Parts
South Lakeland District Council,http://opendatacommunities.org/id/district-council/south-lakeland,31/05/2017,Business Support Community Services,Internal Trading Accounts,,FAUN ZOELLER (UK) LTD,751804,03/05/2017,67536,411.5,0,PDM,381400,Vehicle Mgt Maintenance
South Lakeland District Council,http://opendatacommunities.org/id/district-council/south-lakeland,31/05/2017,Business Support Community Services,Internal Trading Accounts,,FAUN ZOELLER (UK) LTD,751804,17/05/2017,67908,484.06,0,Carriage,381400,Vehicle Mgt Maintenance
South Lakeland District Council,http://opendatacommunities.org/id/district-council/south-lakeland,31/05/2017,Business Support Community Services,Internal Trading Accounts,,FAUN ZOELLER (UK) LTD,751804,17/05/2017,68004,237.5,0,Splash guards,381400,Vehicle Mgt Maintenance
South Lakeland District Council,http://opendatacommunities.org/id/district-council/south-lakeland,31/05/2017,Business Support Community Services,Housing Services,http://opendatacommunities.org/def/concept/finance/sercop/objective/108,Landlord,,31/05/2017,68395,890,0,Monthly rent payment,250000,Housing
South Lakeland District Council,http://opendatacommunities.org/id/district-council/south-lakeland,31/05/2017,Business Support Community Services,Housing Services,http://opendatacommunities.org/def/concept/finance/sercop/objective/108,Landlord,,31/05/2017,68408,410,0,Monthly rent payment,250000,Housing
South Lakeland District Council,http://opendatacommunities.org/id/district-council/south-lakeland,31/05/2017,Business Support Community Services,Internal Trading Accounts,,FLEET PARTS LTD,1252714,22/05/2017,67910,1385,0,Subscription for the Texa truck software,381500,Vehicle Mgt Parts
South Lakeland District Council,http://opendatacommunities.org/id/district-council/south-lakeland,31/05/2017,Human Resources,Central Services,http://opendatacommunities.org/def/concept/finance/sercop/objective/102,Flourish Learning Ltd,9039910,08/05/2017,67613,1000,0,consultation and preparation for,171010,Education Adult & Further Ed
South Lakeland District Council,http://opendatacommunities.org/id/district-council/south-lakeland,31/05/2017,Social Enterprise Admin,Cultural Environmental Regulatory & Planning Services,http://opendatacommunities.org/def/concept/finance/sercop/objective/104,FMG CONSULTING LTD,7309324,15/05/2017,67944,1000,0,Ulverston Leisure Site master Plan -,151900,Consultancy Management
South Lakeland District Council,http://opendatacommunities.org/id/district-council/south-lakeland,31/05/2017,Human Resources,Central Services,http://opendatacommunities.org/def/concept/finance/sercop/objective/102,FORBES SOLICITORS,,17/05/2017,67997,117,0,general employment advice 29.03.2017 -,281300,Legal Services Legal Opinion
South Lakeland District Council,http://opendatacommunities.org/id/district-council/south-lakeland,31/05/2017,Human Resources,Central Services,http://opendatacommunities.org/def/concept/finance/sercop/objective/102,Forge Training,,15/05/2017,67872,1350,0,SharePoint Training 07/06/2017,261500,HR Training & Conferences
South Lakeland District Council,http://opendatacommunities.org/id/district-council/south-lakeland,31/05/2017,Human Resources,Central Services,http://opendatacommunities.org/def/concept/finance/sercop/objective/102,Forge Training,,15/05/2017,67873,2025,0,SharePoint Training 07/06/2017,261500,HR Training & Conferences
South Lakeland District Council,http://opendatacommunities.org/id/district-council/south-lakeland,31/05/2017,Business Support Community Services,Internal Trading Accounts,,FOSTERS COMMERCIALS LTD,1015850,22/05/2017,68179,240,0,Repair shutter door,381400,Vehicle Mgt Maintenance
South Lakeland District Council,http://opendatacommunities.org/id/district-council/south-lakeland,31/05/2017,Business Support Community Services,Internal Trading Accounts,,FREIGHT TRANSPORT ASSOCIATION,,22/05/2017,68177,309.5,0,VC60s,361100,Public Transport Haulage
South Lakeland District Council,http://opendatacommunities.org/id/district-council/south-lakeland,31/05/2017,Democratic and Member Services,Cultural Environmental Regulatory & Planning Services,http://opendatacommunities.org/def/concept/finance/sercop/objective/104,Friends of Lightburn Park,,15/05/2017,67883,100,0,donation towards maintaining facilities,201700,Financial Services Grants
South Lakeland District Council,http://opendatacommunities.org/id/district-council/south-lakeland,31/05/2017,Business Support Community Services,Internal Trading Accounts,,FST CONSUMABLES LTD,1342012,03/05/2017,67166,174.72,0,Consumables 01/04/17- 31/03/18,101600,Building Hand Tools
South Lakeland District Council,http://opendatacommunities.org/id/district-council/south-lakeland,31/05/2017,Business Support Community Services,Internal Trading Accounts,,FST CONSUMABLES LTD,1342012,31/05/2017,68339,174.17,0,Consumables 01/04/17- 31/03/18,101600,Building Hand Tools
South Lakeland District Council,http://opendatacommunities.org/id/district-council/south-lakeland,31/05/2017,Business Support Community Services,Internal Trading Accounts,,FUCHS LUBRICANTS (UK) PLC,2412689,15/05/2017,67737,1396.89,0,Oil,381100,Vehicle Mgt Fuel
South Lakeland District Council,http://opendatacommunities.org/id/district-council/south-lakeland,31/05/2017,Business Support Community Services,Internal Trading Accounts,,FUMEX LTD,5224923,15/05/2017,67734,587,0,Supply & fit hose,101700,Building Heating & Air Conditioning
South Lakeland District Council,http://opendatacommunities.org/id/district-council/south-lakeland,31/05/2017,Business Support Community Services,Internal Trading Accounts,,FUMEX LTD,5224923,15/05/2017,67735,98,0,COSHH testing of exhaust system,101700,Building Heating & Air Conditioning
South Lakeland District Council,http://opendatacommunities.org/id/district-council/south-lakeland,31/05/2017,Social Enterprise Admin,Cultural Environmental Regulatory & Planning Services,http://opendatacommunities.org/def/concept/finance/sercop/objective/104,FURNESS NEWSPAPERS LTD,1155841,03/05/2017,67190,72.52,0,PUBLIC NOTICES FOR PLANNING 1 APRIL 2015,191000,Facilities Advertising
South Lakeland District Council,http://opendatacommunities.org/id/district-council/south-lakeland,31/05/2017,Social Enterprise Admin,Cultural Environmental Regulatory & Planning Services,http://opendatacommunities.org/def/concept/finance/sercop/objective/104,FURNESS NEWSPAPERS LTD,1155841,24/05/2017,68161,72.52,0,PUBLIC NOTICES FOR PLANNING 1 APRIL 2015,191000,Facilities Advertising
South Lakeland District Council,http://opendatacommunities.org/id/district-council/south-lakeland,31/05/2017,Business Support Community Services,Internal Trading Accounts,,GARWOOD EUROPE LTD,4333504,22/05/2017,67955,109.65,0,Switch,182011,Environment Waste Management Consumables
South Lakeland District Council,http://opendatacommunities.org/id/district-council/south-lakeland,31/05/2017,Electoral Services,Central Services,http://opendatacommunities.org/def/concept/finance/sercop/objective/102,GATES TRAVEL SERVICE,,15/05/2017,67104,63,0,Travel for Exam Training,261600,HR Travel & Subsistence
South Lakeland District Council,http://opendatacommunities.org/id/district-council/south-lakeland,31/05/2017,Development Management,Central Services,http://opendatacommunities.org/def/concept/finance/sercop/objective/102,GATES TRAVEL SERVICE,,08/05/2017,67423,13.9,0,TRAVEL TO PENRITH - MERITEC DIGITAL,261600,HR Travel & Subsistence
South Lakeland District Council,http://opendatacommunities.org/id/district-council/south-lakeland,31/05/2017,Social Enterprise Admin,Highways & Transport Services,http://opendatacommunities.org/def/concept/finance/sercop/objective/107,GATES TRAVEL SERVICE,,10/05/2017,67821,103.5,0,Cost of rail journey from Oxenholme to,261600,HR Travel & Subsistence
South Lakeland District Council,http://opendatacommunities.org/id/district-council/south-lakeland,31/05/2017,Development Implementation,Central Services,http://opendatacommunities.org/def/concept/finance/sercop/objective/102,GATES TRAVEL SERVICE,,24/05/2017,68181,227.95,0,Return Travel to London 22nd/23rd May -,261600,HR Travel & Subsistence
South Lakeland District Council,http://opendatacommunities.org/id/district-council/south-lakeland,31/05/2017,Development Implementation,Central Services,http://opendatacommunities.org/def/concept/finance/sercop/objective/102,GATES TRAVEL SERVICE,,24/05/2017,68182,103.5,0,"Return Travel to London, 22nd/23rd May -",261600,HR Travel & Subsistence
South Lakeland District Council,http://opendatacommunities.org/id/district-council/south-lakeland,31/05/2017,Business Support Community Services,Cultural Environmental Regulatory & Planning Services,http://opendatacommunities.org/def/concept/finance/sercop/objective/104,GB Sign Solutions Ltd,9609330,17/05/2017,67996,65,0,Street Nameplates 2016/17,102400,Building Signage
South Lakeland District Council,http://opendatacommunities.org/id/district-council/south-lakeland,31/05/2017,Cemeteries Office,Cultural Environmental Regulatory & Planning Services,http://opendatacommunities.org/def/concept/finance/sercop/objective/104,GEMINI C C S LTD,,31/05/2017,68357,66.94,0,"1 off Black squre 6"" by 4"" bronze",121000,Cemetery & Crematorium Burial & Crem
South Lakeland District Council,http://opendatacommunities.org/id/district-council/south-lakeland,31/05/2017,Business Support Community Services,Cultural Environmental Regulatory & Planning Services,http://opendatacommunities.org/def/concept/finance/sercop/objective/104,GLASDON UK LTD,2160576,22/05/2017,67106,350.07,0,Glasdon Jubilee Litter Bins,109999,Building Not Elsewhere Classified
South Lakeland District Council,http://opendatacommunities.org/id/district-council/south-lakeland,31/05/2017,Business Support Community Services,Central Services,http://opendatacommunities.org/def/concept/finance/sercop/objective/102,GLASDON UK LTD,2160576,22/05/2017,67106,3150.63,0,Glasdon Jubilee Litter Bins,109999,Building Not Elsewhere Classified
South Lakeland District Council,http://opendatacommunities.org/id/district-council/south-lakeland,31/05/2017,Social Enterprise Admin,Environment Regulatory,,GLASDON UK LTD,2160576,22/05/2017,68223,2884.64,0,"Glasdon Jubilee with 2 x Aperture flaps,",109999,Building Not Elsewhere Classified
South Lakeland District Council,http://opendatacommunities.org/id/district-council/south-lakeland,31/05/2017,Business Support Community Services,Cultural Environmental Regulatory & Planning Services,http://opendatacommunities.org/def/concept/finance/sercop/objective/104,GRANTS- MISCELLANEOUS,,08/05/2017,67196,9583.33,0,One off payment for public conveniences,201700,Financial Services Grants
South Lakeland District Council,http://opendatacommunities.org/id/district-council/south-lakeland,31/05/2017,Democratic and Member Services,Cultural Environmental Regulatory & Planning Services,http://opendatacommunities.org/def/concept/finance/sercop/objective/104,GRANTS- MISCELLANEOUS,,10/05/2017,67794,250,0,Donation from Cllr-This money,201700,Financial Services Grants
South Lakeland District Council,http://opendatacommunities.org/id/district-council/south-lakeland,31/05/2017,Democratic and Member Services,Cultural Environmental Regulatory & Planning Services,http://opendatacommunities.org/def/concept/finance/sercop/objective/104,GRANTS- MISCELLANEOUS,,15/05/2017,67881,100,0,100 donation from Cllr to,201700,Financial Services Grants
South Lakeland District Council,http://opendatacommunities.org/id/district-council/south-lakeland,31/05/2017,Environment and Housing,Housing Services,http://opendatacommunities.org/def/concept/finance/sercop/objective/108,GROWING CONCERNS LTD,,22/05/2017,68239,1093.19,0,Payment for Handy Person Scheme,391200,Construction Engineering
South Lakeland District Council,http://opendatacommunities.org/id/district-council/south-lakeland,31/05/2017,Business Support Community Services,Internal Trading Accounts,,H WICKS (LINDAL) LTD,754590,22/05/2017,66951,2061.04,0,"Gate fees, handling, transport & baling",182012,Environment Waste Management Recycling
South Lakeland District Council,http://opendatacommunities.org/id/district-council/south-lakeland,31/05/2017,Business Support Community Services,Internal Trading Accounts,,H WICKS (LINDAL) LTD,754590,31/05/2017,67171,300,0,"Gate fees, handling, transport & baling",182012,Environment Waste Management Recycling
South Lakeland District Council,http://opendatacommunities.org/id/district-council/south-lakeland,31/05/2017,Business Support Community Services,Internal Trading Accounts,,H WICKS (LINDAL) LTD,754590,03/05/2017,67530,300,0,"Gate fees, handling, transport & baling",182012,Environment Waste Management Recycling
South Lakeland District Council,http://opendatacommunities.org/id/district-council/south-lakeland,31/05/2017,Business Support Community Services,Internal Trading Accounts,,H WICKS (LINDAL) LTD,754590,03/05/2017,67532,300,0,"Gate fees, handling, transport & baling",182012,Environment Waste Management Recycling
South Lakeland District Council,http://opendatacommunities.org/id/district-council/south-lakeland,31/05/2017,Business Support Community Services,Internal Trading Accounts,,H WICKS (LINDAL) LTD,754590,15/05/2017,67731,600,0,"Gate fees, handling, transport & baling",182012,Environment Waste Management Recycling
South Lakeland District Council,http://opendatacommunities.org/id/district-council/south-lakeland,31/05/2017,Business Support Community Services,Internal Trading Accounts,,H WICKS (LINDAL) LTD,754590,22/05/2017,68172,660,0,"Gate fees, handling, transport & baling",182012,Environment Waste Management Recycling
South Lakeland District Council,http://opendatacommunities.org/id/district-council/south-lakeland,31/05/2017,Business Support Community Services,Internal Trading Accounts,,H WICKS (LINDAL) LTD,754590,22/05/2017,68173,900,0,"Gate fees, handling, transport & baling",182012,Environment Waste Management Recycling
South Lakeland District Council,http://opendatacommunities.org/id/district-council/south-lakeland,31/05/2017,Business Support Community Services,Internal Trading Accounts,,H WICKS (LINDAL) LTD,754590,22/05/2017,68174,240,0,"Gate fees, handling, transport & baling",182012,Environment Waste Management Recycling
South Lakeland District Council,http://opendatacommunities.org/id/district-council/south-lakeland,31/05/2017,Business Support Community Services,Internal Trading Accounts,,H WICKS (LINDAL) LTD,754590,22/05/2017,68175,1850.56,0,"Gate fees, handling, transport & baling",182012,Environment Waste Management Recycling
South Lakeland District Council,http://opendatacommunities.org/id/district-council/south-lakeland,31/05/2017,Business Support Community Services,Internal Trading Accounts,,H WICKS (LINDAL) LTD,754590,31/05/2017,68337,300,0,"Gate fees, handling, transport & baling",182012,Environment Waste Management Recycling
South Lakeland District Council,http://opendatacommunities.org/id/district-council/south-lakeland,31/05/2017,Business Support Community Services,Internal Trading Accounts,,H WICKS (LINDAL) LTD,754590,31/05/2017,68434,300,0,"Gate fees, handling, transport & baling",182012,Environment Waste Management Recycling
South Lakeland District Council,http://opendatacommunities.org/id/district-council/south-lakeland,31/05/2017,Business Support Community Services,Internal Trading Accounts,,HAKO MACHINES LIMITED,1414225,15/05/2017,67720,5043.99,0,Sweeper hire 01/04/17 - 31/03/18,131000,Cleaning & Janitorial Cleaning Materials
South Lakeland District Council,http://opendatacommunities.org/id/district-council/south-lakeland,31/05/2017,Business Support Community Services,Internal Trading Accounts,,HAKO MACHINES LIMITED,1414225,22/05/2017,68220,74.61,0,Plate,131000,Cleaning & Janitorial Cleaning Materials
South Lakeland District Council,http://opendatacommunities.org/id/district-council/south-lakeland,31/05/2017,Electoral Services,Central Services,http://opendatacommunities.org/def/concept/finance/sercop/objective/102,HALAROSE LIMITED,1362834,22/05/2017,68225,500,0,Cross Boundary Export Licence,271600,ICT Software Customised & Bespoke
South Lakeland District Council,http://opendatacommunities.org/id/district-council/south-lakeland,31/05/2017,Business Support Community Services,Internal Trading Accounts,,Harry Park Tyres Ltd,8131208,22/05/2017,67436,60,0,Tyres - 12,381500,Vehicle Mgt Parts
South Lakeland District Council,http://opendatacommunities.org/id/district-council/south-lakeland,31/05/2017,Business Support Community Services,Internal Trading Accounts,,Harry Park Tyres Ltd,8131208,03/05/2017,67517,15,0,Tyres - 12,381500,Vehicle Mgt Parts
South Lakeland District Council,http://opendatacommunities.org/id/district-council/south-lakeland,31/05/2017,Business Support Community Services,Internal Trading Accounts,,Harry Park Tyres Ltd,8131208,03/05/2017,67518,1400,0,Tyres - 12,381500,Vehicle Mgt Parts
South Lakeland District Council,http://opendatacommunities.org/id/district-council/south-lakeland,31/05/2017,Business Support Community Services,Internal Trading Accounts,,Harry Park Tyres Ltd,8131208,17/05/2017,68053,40,0,Disposal,381500,Vehicle Mgt Parts
South Lakeland District Council,http://opendatacommunities.org/id/district-council/south-lakeland,31/05/2017,Human Resources,Central Services,http://opendatacommunities.org/def/concept/finance/sercop/objective/102,Haymarket Media Group Ltd,267189,22/05/2017,68238,850,0,Procurement Business Partner,171114,Education Literature
South Lakeland District Council,http://opendatacommunities.org/id/district-council/south-lakeland,31/05/2017,Business Support Community Services,Internal Trading Accounts,,Haztec International Ltd,4157886,24/05/2017,68268,331.4,0,LEDs,380000,Vehicle Management
South Lakeland District Council,http://opendatacommunities.org/id/district-council/south-lakeland,31/05/2017,Revenues and Benefits,Central Services,http://opendatacommunities.org/def/concept/finance/sercop/objective/102,HER MAJESTY'S COURTS & TRIBUNAL SERVICE,,10/05/2017,67813,1368,0,2017/18  C Tax  Liability Orders,908001,Public Bodies Other Public Bodies
South Lakeland District Council,http://opendatacommunities.org/id/district-council/south-lakeland,31/05/2017,Democratic and Member Services,Central Services,http://opendatacommunities.org/def/concept/finance/sercop/objective/102,Hoey Ainscough Associates Ltd,7923961,15/05/2017,67874,125,0,Independent Person Workshop booking for,261500,HR Training & Conferences
South Lakeland District Council,http://opendatacommunities.org/id/district-council/south-lakeland,31/05/2017,Business Support Community Services,Internal Trading Accounts,,HYDRAIR TRUCK & TRAILER PARTS LTD,,15/05/2017,67708,212.3,0,Air filters,381500,Vehicle Mgt Parts
South Lakeland District Council,http://opendatacommunities.org/id/district-council/south-lakeland,31/05/2017,Business Support Community Services,Internal Trading Accounts,,HYDRAIR TRUCK & TRAILER PARTS LTD,,22/05/2017,67719,148.52,0,Air filters,381500,Vehicle Mgt Parts
South Lakeland District Council,http://opendatacommunities.org/id/district-council/south-lakeland,31/05/2017,Business Support Community Services,Internal Trading Accounts,,HYDRAIR TRUCK & TRAILER PARTS LTD,,15/05/2017,67740,128,0,Air filters,381500,Vehicle Mgt Parts
South Lakeland District Council,http://opendatacommunities.org/id/district-council/south-lakeland,31/05/2017,Business Support Community Services,Internal Trading Accounts,,HYDRAIR TRUCK & TRAILER PARTS LTD,,15/05/2017,67746,35.04,0,Air filters,381500,Vehicle Mgt Parts
South Lakeland District Council,http://opendatacommunities.org/id/district-council/south-lakeland,31/05/2017,Business Support Community Services,Internal Trading Accounts,,HYDRAIR TRUCK & TRAILER PARTS LTD,,15/05/2017,67747,55.33,0,Air filters,381500,Vehicle Mgt Parts
South Lakeland District Council,http://opendatacommunities.org/id/district-council/south-lakeland,31/05/2017,Business Support Community Services,Internal Trading Accounts,,HYDRAIR TRUCK & TRAILER PARTS LTD,,17/05/2017,68027,126.82,0,part,381500,Vehicle Mgt Parts
South Lakeland District Council,http://opendatacommunities.org/id/district-council/south-lakeland,31/05/2017,Business Support Community Services,Internal Trading Accounts,,HYDRAIR TRUCK & TRAILER PARTS LTD,,22/05/2017,68221,189.56,0,part,381500,Vehicle Mgt Parts
South Lakeland District Council,http://opendatacommunities.org/id/district-council/south-lakeland,31/05/2017,Business Support Community Services,Internal Trading Accounts,,HYDRAIR TRUCK & TRAILER PARTS LTD,,22/05/2017,68222,35.04,0,part,381500,Vehicle Mgt Parts
South Lakeland District Council,http://opendatacommunities.org/id/district-council/south-lakeland,31/05/2017,Business Support Community Services,Internal Trading Accounts,,HYDRAIR TRUCK & TRAILER PARTS LTD,,24/05/2017,68306,216,0,Brake shoes,381500,Vehicle Mgt Parts
South Lakeland District Council,http://opendatacommunities.org/id/district-council/south-lakeland,31/05/2017,Business Support Community Services,Housing Services,http://opendatacommunities.org/def/concept/finance/sercop/objective/108,IMPACT HOUSING ASSOCIATION LTD,IP21411R,31/05/2017,68414,400,0,Contribution to delivery of housing,250000,Housing
South Lakeland District Council,http://opendatacommunities.org/id/district-council/south-lakeland,31/05/2017,Business Support Community Services,Internal Trading Accounts,,INNOVATIVE SAFETY SYSTEMS LTD,6875015,24/05/2017,68017,766,0,Radar sensor head,192200,Facilities Security
South Lakeland District Council,http://opendatacommunities.org/id/district-council/south-lakeland,31/05/2017,ICT Group,Highways & Transport Services,http://opendatacommunities.org/def/concept/finance/sercop/objective/107,Insight Direct (Uk) Ltd,2579852,08/05/2017,67624,297.5,0,4668410 / HP6-00003 Microsoft Surface,271200,ICT Hardware
South Lakeland District Council,http://opendatacommunities.org/id/district-council/south-lakeland,31/05/2017,ICT Group,Central Services,http://opendatacommunities.org/def/concept/finance/sercop/objective/102,Insight Direct (Uk) Ltd,2579852,08/05/2017,67624,297.5,0,4668410 / HP6-00003 Microsoft Surface,271200,ICT Hardware
South Lakeland District Council,http://opendatacommunities.org/id/district-council/south-lakeland,31/05/2017,ICT Group,Central Services,http://opendatacommunities.org/def/concept/finance/sercop/objective/102,Insight Direct (Uk) Ltd,2579852,08/05/2017,67625,63.1,0,SAFESTICK PENDRIVES,271200,ICT Hardware
South Lakeland District Council,http://opendatacommunities.org/id/district-council/south-lakeland,31/05/2017,ICT Group,Central Services,http://opendatacommunities.org/def/concept/finance/sercop/objective/102,Insight Direct (Uk) Ltd,2579852,15/05/2017,67983,283.1,0,0007008120 Adobe VIPG Creative Cloud for,271200,ICT Hardware
South Lakeland District Council,http://opendatacommunities.org/id/district-council/south-lakeland,31/05/2017,Social Enterprise Admin,Cultural Environmental Regulatory & Planning Services,http://opendatacommunities.org/def/concept/finance/sercop/objective/104,INST OF CEMETERY & CREMATORIUM MANGMT,,15/05/2017,67696,90,0,Annual Membership,202100,Financial Services Subscriptions
South Lakeland District Council,http://opendatacommunities.org/id/district-council/south-lakeland,31/05/2017,Business Support Community Services,Cultural Environmental Regulatory & Planning Services,http://opendatacommunities.org/def/concept/finance/sercop/objective/104,INTELLIGENT DATA SYSTEMS (UK) LTD,5148878,15/05/2017,67877,97.75,0,IDS Checks for Taxi Drivers,271510,ICT Application Service Provision
South Lakeland District Council,http://opendatacommunities.org/id/district-council/south-lakeland,31/05/2017,Human Resources,Central Services,http://opendatacommunities.org/def/concept/finance/sercop/objective/102,IOSH SERVICES LTD,1816826,15/05/2017,67963,170,0,Event Fee,221100,Health & Safety� Maintenance
South Lakeland District Council,http://opendatacommunities.org/id/district-council/south-lakeland,31/05/2017,Business Support Community Services,Housing Services,http://opendatacommunities.org/def/concept/finance/sercop/objective/108,Landlord,,15/05/2017,67988,10,0,Reimbursed costs,250000,Housing
South Lakeland District Council,http://opendatacommunities.org/id/district-council/south-lakeland,31/05/2017,Business Support Community Services,Internal Trading Accounts,,J R RICHARDSON LTD,2225792,15/05/2017,67728,90.64,0,Vehicle washing consumables,381500,Vehicle Mgt Parts
South Lakeland District Council,http://opendatacommunities.org/id/district-council/south-lakeland,31/05/2017,Human Resources,Central Services,http://opendatacommunities.org/def/concept/finance/sercop/objective/102,Jackie Wilkinson Ltd,7591991,10/05/2017,67805,529.95,0,Course and Expenses,151000,Consultancy Business
South Lakeland District Council,http://opendatacommunities.org/id/district-council/south-lakeland,31/05/2017,Business Support Community Services,Housing Services,http://opendatacommunities.org/def/concept/finance/sercop/objective/108,James & John Stewart,,22/05/2017,68256,416,0,Rent in advance,250010,Housing Letting Agents
South Lakeland District Council,http://opendatacommunities.org/id/district-council/south-lakeland,31/05/2017,Lake Wardens,Cultural Environmental Regulatory & Planning Services,http://opendatacommunities.org/def/concept/finance/sercop/objective/104,JETTIES & MOORINGS,,17/05/2017,67467,2100,0,Service & Maintenance of SLDC Holiday,291400,Arts & Leisure Services Sport & Fitness
South Lakeland District Council,http://opendatacommunities.org/id/district-council/south-lakeland,31/05/2017,Lake Wardens,Cultural Environmental Regulatory & Planning Services,http://opendatacommunities.org/def/concept/finance/sercop/objective/104,JETTIES & MOORINGS,,31/05/2017,68379,1000,0,2 x Days Dredging at Ferry Nab Marina.,291400,Arts & Leisure Services Sport & Fitness
South Lakeland District Council,http://opendatacommunities.org/id/district-council/south-lakeland,31/05/2017,Business Support Community Services,Housing Services,http://opendatacommunities.org/def/concept/finance/sercop/objective/108,Landlord,,10/05/2017,67863,520,0,Montly rent,202000,Financial Services Rents
South Lakeland District Council,http://opendatacommunities.org/id/district-council/south-lakeland,31/05/2017,Business Support Community Services,Internal Trading Accounts,,K & S Commercial Ltd,9068885,17/05/2017,68028,750,0,Calibration,381400,Vehicle Mgt Maintenance
South Lakeland District Council,http://opendatacommunities.org/id/district-council/south-lakeland,31/05/2017,Business Support Community Services,Internal Trading Accounts,,K & S Commercial Ltd,9068885,24/05/2017,68313,16.5,0,Battery,381400,Vehicle Mgt Maintenance
South Lakeland District Council,http://opendatacommunities.org/id/district-council/south-lakeland,31/05/2017,Business Support Community Services,Internal Trading Accounts,,K & S Commercial Ltd,9068885,24/05/2017,68314,85.5,0,Calibration,381400,Vehicle Mgt Maintenance
South Lakeland District Council,http://opendatacommunities.org/id/district-council/south-lakeland,31/05/2017,Business Support Community Services,Internal Trading Accounts,,K S INTERNATIONAL LTD,2703321,22/05/2017,67046,30,0,Tie rod ends,381500,Vehicle Mgt Parts
South Lakeland District Council,http://opendatacommunities.org/id/district-council/south-lakeland,31/05/2017,Business Support Community Services,Internal Trading Accounts,,K S INTERNATIONAL LTD,2703321,22/05/2017,67051,55,0,Tie rod ends,381500,Vehicle Mgt Parts
South Lakeland District Council,http://opendatacommunities.org/id/district-council/south-lakeland,31/05/2017,Business Support Community Services,Internal Trading Accounts,,K S INTERNATIONAL LTD,2703321,17/05/2017,68049,95,0,Tie rod ends,381500,Vehicle Mgt Parts
South Lakeland District Council,http://opendatacommunities.org/id/district-council/south-lakeland,31/05/2017,Business Support Community Services,Internal Trading Accounts,,K S INTERNATIONAL LTD,2703321,17/05/2017,68052,55,0,Brake pads,381500,Vehicle Mgt Parts
South Lakeland District Council,http://opendatacommunities.org/id/district-council/south-lakeland,31/05/2017,Revenues and Benefits,,,Kendal BID Ltd,8986243,08/05/2017,67635,2769.39,0,Collection figures for March 2017,201700,Financial Services Grants
South Lakeland District Council,http://opendatacommunities.org/id/district-council/south-lakeland,31/05/2017,Development Implementation,SLDC as Agent,,Kendal BID Ltd,8986243,22/05/2017,68200,422.5,0,Advert for Website Support post in,201700,Financial Services Grants
South Lakeland District Council,http://opendatacommunities.org/id/district-council/south-lakeland,31/05/2017,Financial Services,,,Kendal BID Ltd,8986243,31/05/2017,68344,84250,0,April 2017 Collection Figures,201700,Financial Services Grants
South Lakeland District Council,http://opendatacommunities.org/id/district-council/south-lakeland,31/05/2017,Environment and Housing,Housing,http://opendatacommunities.org/def/concept/finance/sercop/objective/108,Kendal Building Company,348755,31/05/2017,68466,9740.8,0,"Moorside, Flookburgh",101400,Building General Materials
South Lakeland District Council,http://opendatacommunities.org/id/district-council/south-lakeland,31/05/2017,Human Resources,Central Services,http://opendatacommunities.org/def/concept/finance/sercop/objective/102,KENDAL COLLEGE,,24/05/2017,68258,350,0,Excel-Level 2 (intermediate) 18/05/2017,908999,Public Bodies Not Elsewhere Classified
South Lakeland District Council,http://opendatacommunities.org/id/district-council/south-lakeland,31/05/2017,Human Resources,Central Services,http://opendatacommunities.org/def/concept/finance/sercop/objective/102,KENDAL COLLEGE,,24/05/2017,68259,350,0,Excel-Level 2 (intermediate) 18/05/2017,908999,Public Bodies Not Elsewhere Classified
South Lakeland District Council,http://opendatacommunities.org/id/district-council/south-lakeland,31/05/2017,Human Resources,Central Services,http://opendatacommunities.org/def/concept/finance/sercop/objective/102,KENDAL COLLEGE,,24/05/2017,68260,350,0,Excel-Level 2 (intermediate) 18/05/2017,908999,Public Bodies Not Elsewhere Classified
South Lakeland District Council,http://opendatacommunities.org/id/district-council/south-lakeland,31/05/2017,Business Support Community Services,Transport Planning Policy,http://opendatacommunities.org/def/concept/finance/sercop/objective/107,KENDAL SECURITY CENTRE LTD,3179893,17/05/2017,66893,10,0,Keys,192212,Facilities Security Equipment
South Lakeland District Council,http://opendatacommunities.org/id/district-council/south-lakeland,31/05/2017,Democratic and Member Services,Cultural Environmental Regulatory & Planning Services,http://opendatacommunities.org/def/concept/finance/sercop/objective/104,KENDAL TOWN COUNCIL,,08/05/2017,67676,750,0,750 donation from Cllr Finch to,908000,Public Bodies Council support services
South Lakeland District Council,http://opendatacommunities.org/id/district-council/south-lakeland,31/05/2017,Human Resources,Central Services,http://opendatacommunities.org/def/concept/finance/sercop/objective/102,KENTDALE FIRST AID TRAINING,,10/05/2017,67636,180,0,Emergency First Aid at Work for Dave,261500,HR Training & Conferences
South Lakeland District Council,http://opendatacommunities.org/id/district-council/south-lakeland,31/05/2017,Democratic and Member Services,Cultural Environmental Regulatory & Planning Services,http://opendatacommunities.org/def/concept/finance/sercop/objective/104,KENTMERE PARISH MEETING,,08/05/2017,67603,1000,0,1000 DONATION FROM CLLR COLLINS TO,908000,Public Bodies Council support services
South Lakeland District Council,http://opendatacommunities.org/id/district-council/south-lakeland,31/05/2017,Business Support Community Services,Internal Trading Accounts,,KHS (Klein Handling Systems) Ltd,5797789,03/05/2017,67519,97.23,0,Forklift spares,381206,Vehicle Mgt Heavy Construction Equip Pur
South Lakeland District Council,http://opendatacommunities.org/id/district-council/south-lakeland,31/05/2017,Policy & Partnerships,Central Services,http://opendatacommunities.org/def/concept/finance/sercop/objective/102,Killington Marquees Ltd,,10/05/2017,67796,267.86,0,Tables for the General Election Count,281100,Legal Services Election Services
South Lakeland District Council,http://opendatacommunities.org/id/district-council/south-lakeland,31/05/2017,Financial Services,Central Services,http://opendatacommunities.org/def/concept/finance/sercop/objective/102,KING & SHAXSON LTD,869780,15/05/2017,67691,151.74,0,Custodian Fees April to March 16/17,209999,Financial Services Not Elsewhere Classif
South Lakeland District Council,http://opendatacommunities.org/id/district-council/south-lakeland,31/05/2017,Development Implementation,SLDC as Agent,,Kirstie Pelling,,10/05/2017,67843,500,0,Kendal Website Blogging,191000,Facilities Advertising
South Lakeland District Council,http://opendatacommunities.org/id/district-council/south-lakeland,31/05/2017,Printing Section,Central Services,http://opendatacommunities.org/def/concept/finance/sercop/objective/102,Konica Minolta Bus Solutions (UK) Ltd,,31/05/2017,68347,2764.07,0,Quarterly click charges for Print Room,192000,Facilities Reprographics
South Lakeland District Council,http://opendatacommunities.org/id/district-council/south-lakeland,31/05/2017,Social Enterprise Admin,Central Services,http://opendatacommunities.org/def/concept/finance/sercop/objective/102,LAKE DISTRICT NATIONAL PARK AUTHORITY,,03/05/2017,67406,3080,0,LAND CHARGE SEARCH ENQUIRIES LDNPA,201700,Financial Services Grants
South Lakeland District Council,http://opendatacommunities.org/id/district-council/south-lakeland,31/05/2017,Business Support Community Services,Cultural Environmental Regulatory & Planning Services,http://opendatacommunities.org/def/concept/finance/sercop/objective/104,Lake District Paradise Project Ltd,10241268,08/05/2017,67565,5000,0,Feasibility study for using Windermere,291400,Arts & Leisure Services Sport & Fitness
South Lakeland District Council,http://opendatacommunities.org/id/district-council/south-lakeland,31/05/2017,Development Implementation,Central Services,http://opendatacommunities.org/def/concept/finance/sercop/objective/102,LAMBERT SMITH HAMPTON GROUP,2521225,08/05/2017,67541,60140.17,0,Property Services Contract - April -,999999,Unclassifiable
South Lakeland District Council,http://opendatacommunities.org/id/district-council/south-lakeland,31/05/2017,Development Implementation,Central Services,http://opendatacommunities.org/def/concept/finance/sercop/objective/102,LAMBERT SMITH HAMPTON GROUP,2521225,08/05/2017,67542,1500,0,"Valuation of Booths Car Park, Kirkby",999999,Unclassifiable
South Lakeland District Council,http://opendatacommunities.org/id/district-council/south-lakeland,31/05/2017,Development Implementation,Central Services,http://opendatacommunities.org/def/concept/finance/sercop/objective/102,LAMBERT SMITH HAMPTON GROUP,2521225,08/05/2017,67543,429.4,0,Professional Services - RG Parkins -,999999,Unclassifiable
South Lakeland District Council,http://opendatacommunities.org/id/district-council/south-lakeland,31/05/2017,Development Implementation,Planning and Development,,LAMBERT SMITH HAMPTON GROUP,2521225,08/05/2017,67617,2000,0,Demolition of Ulverston Former Knitwear,999999,Unclassifiable
South Lakeland District Council,http://opendatacommunities.org/id/district-council/south-lakeland,31/05/2017,Development Implementation,Central Services,http://opendatacommunities.org/def/concept/finance/sercop/objective/102,LAMBERT SMITH HAMPTON GROUP,2521225,17/05/2017,68153,1700,0,Kendal Town Hall - Stonework Repairs,999999,Unclassifiable
South Lakeland District Council,http://opendatacommunities.org/id/district-council/south-lakeland,31/05/2017,Development Implementation,Central Services,http://opendatacommunities.org/def/concept/finance/sercop/objective/102,LAMBERT SMITH HAMPTON GROUP,2521225,17/05/2017,68154,4518,0,Kendal Town Hall - Stonework Repairs,999999,Unclassifiable
South Lakeland District Council,http://opendatacommunities.org/id/district-council/south-lakeland,31/05/2017,Development Implementation,Central Services,http://opendatacommunities.org/def/concept/finance/sercop/objective/102,LAMBERT SMITH HAMPTON GROUP,2521225,17/05/2017,68155,1333,0,Kendal Town Hall - Stonework Repairs,999999,Unclassifiable
South Lakeland District Council,http://opendatacommunities.org/id/district-council/south-lakeland,31/05/2017,Development Implementation,Central Services,http://opendatacommunities.org/def/concept/finance/sercop/objective/102,LAMBERT SMITH HAMPTON GROUP,2521225,31/05/2017,68386,2791.92,0,Monthly Additional Fee ,999999,Unclassifiable
South Lakeland District Council,http://opendatacommunities.org/id/district-council/south-lakeland,31/05/2017,Development Implementation,Planning and Development,,LAMBERT SMITH HAMPTON GROUP,2521225,31/05/2017,68387,1750,0,Demolition of Ulverston Former Knitwear,999999,Unclassifiable
South Lakeland District Council,http://opendatacommunities.org/id/district-council/south-lakeland,31/05/2017,ICT Group,Central Services,http://opendatacommunities.org/def/concept/finance/sercop/objective/102,LAN2LAN Limited,,08/05/2017,66853,344,0,Fortinet FortiGate 60D 8x5 Bundle,279999,ICT Not Elsewhere Classified
South Lakeland District Council,http://opendatacommunities.org/id/district-council/south-lakeland,31/05/2017,Business Support Community Services,Cultural Environmental Regulatory & Planning Services,http://opendatacommunities.org/def/concept/finance/sercop/objective/104,LANCASTER CITY COUNCIL,,31/05/2017,68384,1475,0,PLANNING VIABILITY TRAINING FOR OFFICERS,201900,Financial Services Refund
South Lakeland District Council,http://opendatacommunities.org/id/district-council/south-lakeland,31/05/2017,Business Support Community Services,Internal Trading Accounts,,LANCASTER TRAINING SERVICES LTD,1447612,03/05/2017,67520,290,0,Training 2017/18 (SWK),261500,HR Training & Conferences
South Lakeland District Council,http://opendatacommunities.org/id/district-council/south-lakeland,31/05/2017,Business Support Community Services,Internal Trading Accounts,,LANCASTER TRAINING SERVICES LTD,1447612,03/05/2017,67521,952,0,Training 2017/18 (SWK),261500,HR Training & Conferences
South Lakeland District Council,http://opendatacommunities.org/id/district-council/south-lakeland,31/05/2017,Business Support Community Services,Cultural Environmental Regulatory & Planning Services,http://opendatacommunities.org/def/concept/finance/sercop/objective/104,LANCASTER TRAINING SERVICES LTD,1447612,22/05/2017,68176,290,0,Training 2017/18 ,261500,HR Training & Conferences
South Lakeland District Council,http://opendatacommunities.org/id/district-council/south-lakeland,31/05/2017,Business Support Community Services,Internal Trading Accounts,,LANCASTER TRAINING SERVICES LTD,1447612,22/05/2017,68176,580,0,Training 2017/18 ,261500,HR Training & Conferences
South Lakeland District Council,http://opendatacommunities.org/id/district-council/south-lakeland,31/05/2017,Social Enterprise Admin,Cultural Environmental Regulatory & Planning Services,http://opendatacommunities.org/def/concept/finance/sercop/objective/104,LDA Cleaning Services Ltd,8917986,03/05/2017,67462,200,0,For the continuation of cleaning for the,131310,Cleaning & Janitorial Cleaning Service
South Lakeland District Council,http://opendatacommunities.org/id/district-council/south-lakeland,31/05/2017,Social Enterprise Admin,Cultural Environmental Regulatory & Planning Services,http://opendatacommunities.org/def/concept/finance/sercop/objective/104,LDA Cleaning Services Ltd,8917986,08/05/2017,67690,175,0,For the continuation of cleaning for the,131310,Cleaning & Janitorial Cleaning Service
South Lakeland District Council,http://opendatacommunities.org/id/district-council/south-lakeland,31/05/2017,Social Enterprise Admin,Cultural Environmental Regulatory & Planning Services,http://opendatacommunities.org/def/concept/finance/sercop/objective/104,LDA Cleaning Services Ltd,8917986,22/05/2017,67940,200,0,For the continuation of cleaning for the,131310,Cleaning & Janitorial Cleaning Service
South Lakeland District Council,http://opendatacommunities.org/id/district-council/south-lakeland,31/05/2017,Social Enterprise Admin,Cultural Environmental Regulatory & Planning Services,http://opendatacommunities.org/def/concept/finance/sercop/objective/104,LDA Cleaning Services Ltd,8917986,31/05/2017,68358,175,0,For the continuation of cleaning for the,131310,Cleaning & Janitorial Cleaning Service
South Lakeland District Council,http://opendatacommunities.org/id/district-council/south-lakeland,31/05/2017,Business Support Community Services,Central Services,http://opendatacommunities.org/def/concept/finance/sercop/objective/102,LLCI LTD,6792908,10/05/2017,67825,115,0,LLCI SUBSCRIPTION 2017/2018,202100,Financial Services Subscriptions
South Lakeland District Council,http://opendatacommunities.org/id/district-council/south-lakeland,31/05/2017,Policy & Partnerships,Central Services,http://opendatacommunities.org/def/concept/finance/sercop/objective/102,LOCAL GOVERNMENT ASSOCIATION,,10/05/2017,67601,545,0,Management Attendee for the LGA,202100,Financial Services Subscriptions
South Lakeland District Council,http://opendatacommunities.org/id/district-council/south-lakeland,31/05/2017,Policy & Partnerships,Central Services,http://opendatacommunities.org/def/concept/finance/sercop/objective/102,LOCAL GOVERNMENT ASSOCIATION,,10/05/2017,67601,1090,0,Management Attendee for the LGA,202100,Financial Services Subscriptions
South Lakeland District Council,http://opendatacommunities.org/id/district-council/south-lakeland,31/05/2017,Kendal Town Hall,Highways & Transport Services,http://opendatacommunities.org/def/concept/finance/sercop/objective/107,LOOMIS UK LTD,3200432,08/05/2017,67545,989.22,0,Langstone House contracted service (6,192200,Facilities Security
South Lakeland District Council,http://opendatacommunities.org/id/district-council/south-lakeland,31/05/2017,Revenues and Benefits,Highways & Transport Services,http://opendatacommunities.org/def/concept/finance/sercop/objective/107,LOOMIS UK LTD,3200432,08/05/2017,67575,-107.67,0,Langstone House Surcharge 2016 - 2017,192200,Facilities Security
South Lakeland District Council,http://opendatacommunities.org/id/district-council/south-lakeland,31/05/2017,Kendal Town Hall,Highways & Transport Services,http://opendatacommunities.org/def/concept/finance/sercop/objective/107,LOOMIS UK LTD,3200432,24/05/2017,68165,989.22,0,Langstone House contracted service (6,192200,Facilities Security
South Lakeland District Council,http://opendatacommunities.org/id/district-council/south-lakeland,31/05/2017,Leisure and Wellbeing,Environment Regulatory,,LUSCOMBE PLANT HIRE LTD,4242248,15/05/2017,67699,2450,0,For installation of new crushed stone,381205,Vehicle Mgt Heavy Construction Equip
South Lakeland District Council,http://opendatacommunities.org/id/district-council/south-lakeland,31/05/2017,Business Support Community Services,Internal Trading Accounts,,M G D LTD,,03/05/2017,67526,35,0,MOTs 01/04/17 - 31/03/18,381400,Vehicle Mgt Maintenance
South Lakeland District Council,http://opendatacommunities.org/id/district-council/south-lakeland,31/05/2017,Business Support Community Services,Internal Trading Accounts,,M G D LTD,,15/05/2017,67739,35,0,MOTs 01/04/17 - 31/03/18,381400,Vehicle Mgt Maintenance
South Lakeland District Council,http://opendatacommunities.org/id/district-council/south-lakeland,31/05/2017,Business Support Community Services,Internal Trading Accounts,,M G D LTD,,10/05/2017,67800,35,0,MOTs 01/04/17 - 31/03/18,381400,Vehicle Mgt Maintenance
South Lakeland District Council,http://opendatacommunities.org/id/district-council/south-lakeland,31/05/2017,Business Support Community Services,Internal Trading Accounts,,M G D LTD,,10/05/2017,67801,35,0,MOTs 01/04/17 - 31/03/18,381400,Vehicle Mgt Maintenance
South Lakeland District Council,http://opendatacommunities.org/id/district-council/south-lakeland,31/05/2017,Business Support Community Services,Internal Trading Accounts,,M G D LTD,,17/05/2017,68008,35,0,MOTs 01/04/17 - 31/03/18,381400,Vehicle Mgt Maintenance
South Lakeland District Council,http://opendatacommunities.org/id/district-council/south-lakeland,31/05/2017,Business Support Community Services,Internal Trading Accounts,,M G D LTD,,31/05/2017,68369,35,0,MOTs 01/04/17 - 31/03/18,381400,Vehicle Mgt Maintenance
South Lakeland District Council,http://opendatacommunities.org/id/district-council/south-lakeland,31/05/2017,Business Support Community Services,Internal Trading Accounts,,M G D LTD,,31/05/2017,68372,35,0,MOTs 01/04/17 - 31/03/18,381400,Vehicle Mgt Maintenance
South Lakeland District Council,http://opendatacommunities.org/id/district-council/south-lakeland,31/05/2017,Democratic Services,Central Services,http://opendatacommunities.org/def/concept/finance/sercop/objective/102,MARCHESI CENTRE,,08/05/2017,67554,37,0,Hire of Marchesi Centre for Lake,321000,Social Care Adult
South Lakeland District Council,http://opendatacommunities.org/id/district-council/south-lakeland,31/05/2017,Development Implementation,Central Services,http://opendatacommunities.org/def/concept/finance/sercop/objective/102,MARGARET BARROW INTERIORS LTD T/A MBI,,08/05/2017,67627,195,0,Circular Table - CTRC12X,211200,Furniture & Soft Furn Office Furniture
South Lakeland District Council,http://opendatacommunities.org/id/district-council/south-lakeland,31/05/2017,Development Implementation,Housing Services,http://opendatacommunities.org/def/concept/finance/sercop/objective/108,MARGARET BARROW INTERIORS LTD T/A MBI,,08/05/2017,67627,594,0,Circular Table - CTRC12X,211200,Furniture & Soft Furn Office Furniture
South Lakeland District Council,http://opendatacommunities.org/id/district-council/south-lakeland,31/05/2017,Development Implementation,Central Services,http://opendatacommunities.org/def/concept/finance/sercop/objective/102,MARGARET BARROW INTERIORS LTD T/A MBI,,15/05/2017,67954,199,0,AZ-MS207 task chair with height,211200,Furniture & Soft Furn Office Furniture
South Lakeland District Council,http://opendatacommunities.org/id/district-council/south-lakeland,31/05/2017,Business Support Community Services,Housing Services,http://opendatacommunities.org/def/concept/finance/sercop/objective/108,Landlord,,31/05/2017,68401,625,0,Monthly rent payment,250000,Housing
South Lakeland District Council,http://opendatacommunities.org/id/district-council/south-lakeland,31/05/2017,Business Support Community Services,Central Services,http://opendatacommunities.org/def/concept/finance/sercop/objective/102,Masterstaff Limited,2777593,08/05/2017,67606,366.6,0,Agency staff 2017/18,261300,HR Recruitment & Assessment
South Lakeland District Council,http://opendatacommunities.org/id/district-council/south-lakeland,31/05/2017,Business Support Community Services,Internal Trading Accounts,,Masterstaff Limited,2777593,08/05/2017,67606,2279.03,0,Agency staff 2017/18,261300,HR Recruitment & Assessment
South Lakeland District Council,http://opendatacommunities.org/id/district-council/south-lakeland,31/05/2017,Business Support Community Services,Central Services,http://opendatacommunities.org/def/concept/finance/sercop/objective/102,Masterstaff Limited,2777593,15/05/2017,67726,452.14,0,Agency staff 2017/18,261300,HR Recruitment & Assessment
South Lakeland District Council,http://opendatacommunities.org/id/district-council/south-lakeland,31/05/2017,Business Support Community Services,Internal Trading Accounts,,Masterstaff Limited,2777593,15/05/2017,67726,1810.15,0,Agency staff 2017/18,261300,HR Recruitment & Assessment
South Lakeland District Council,http://opendatacommunities.org/id/district-council/south-lakeland,31/05/2017,Business Support Community Services,Central Services,http://opendatacommunities.org/def/concept/finance/sercop/objective/102,Masterstaff Limited,2777593,22/05/2017,68055,360.49,0,Agency staff 2017/18,261300,HR Recruitment & Assessment
South Lakeland District Council,http://opendatacommunities.org/id/district-council/south-lakeland,31/05/2017,Business Support Community Services,Internal Trading Accounts,,Masterstaff Limited,2777593,22/05/2017,68055,2092.68,0,Agency staff 2017/18,261300,HR Recruitment & Assessment
South Lakeland District Council,http://opendatacommunities.org/id/district-council/south-lakeland,31/05/2017,Business Support Community Services,Central Services,http://opendatacommunities.org/def/concept/finance/sercop/objective/102,Masterstaff Limited,2777593,24/05/2017,68307,452.14,0,Agency staff 2017/18,261300,HR Recruitment & Assessment
South Lakeland District Council,http://opendatacommunities.org/id/district-council/south-lakeland,31/05/2017,Business Support Community Services,Internal Trading Accounts,,Masterstaff Limited,2777593,24/05/2017,68307,2695.59,0,Agency staff 2017/18,261300,HR Recruitment & Assessment
South Lakeland District Council,http://opendatacommunities.org/id/district-council/south-lakeland,31/05/2017,Business Support Community Services,Central Services,http://opendatacommunities.org/def/concept/finance/sercop/objective/102,Masterstaff Limited,2777593,24/05/2017,68308,15.81,0,Agency staff 2017/18,261300,HR Recruitment & Assessment
South Lakeland District Council,http://opendatacommunities.org/id/district-council/south-lakeland,31/05/2017,Development Implementation,Central Services,http://opendatacommunities.org/def/concept/finance/sercop/objective/102,Masterstaff Limited,2777593,31/05/2017,68382,72,0,SLDC Admin -  12hrs,261300,HR Recruitment & Assessment
South Lakeland District Council,http://opendatacommunities.org/id/district-council/south-lakeland,31/05/2017,Business Support Community Services,Housing Services,http://opendatacommunities.org/def/concept/finance/sercop/objective/108,Landlord,,31/05/2017,68405,500,0,Monthly rent payment,250000,Housing
South Lakeland District Council,http://opendatacommunities.org/id/district-council/south-lakeland,31/05/2017,Revenues and Benefits,Central Services,http://opendatacommunities.org/def/concept/finance/sercop/objective/102,MERITEC LTD,3224622,10/05/2017,67836,279,0,RAB Processing Contract and Agency Staff,391200,Construction Engineering
South Lakeland District Council,http://opendatacommunities.org/id/district-council/south-lakeland,31/05/2017,Revenues and Benefits,Central Services,http://opendatacommunities.org/def/concept/finance/sercop/objective/102,MERITEC LTD,3224622,17/05/2017,68039,279,0,RAB Processing Contract and Agency Staff,391200,Construction Engineering
South Lakeland District Council,http://opendatacommunities.org/id/district-council/south-lakeland,31/05/2017,Revenues and Benefits,Central Services,http://opendatacommunities.org/def/concept/finance/sercop/objective/102,MERITEC LTD,3224622,22/05/2017,68234,279,0,RAB Processing Contract and Agency Staff,391200,Construction Engineering
South Lakeland District Council,http://opendatacommunities.org/id/district-council/south-lakeland,31/05/2017,Business Support Community Services,Internal Trading Accounts,,METCALFE BROS LTD,5899629,10/05/2017,67534,3797.5,0,Sweeper hire - 01/09/16 - 31/03/17,381200,Vehicle Mgt Heavy Constr Equip Leasing
South Lakeland District Council,http://opendatacommunities.org/id/district-council/south-lakeland,31/05/2017,Business Support Community Services,Internal Trading Accounts,,METCALFE BROS LTD,5899629,10/05/2017,67535,5355,0,Sweeper hire - 01/09/16 - 31/03/17,381200,Vehicle Mgt Heavy Constr Equip Leasing
South Lakeland District Council,http://opendatacommunities.org/id/district-council/south-lakeland,31/05/2017,Social Enterprise Admin,Highways & Transport Services,http://opendatacommunities.org/def/concept/finance/sercop/objective/107,METRIC GROUP LIMITED,2560839,08/05/2017,67681,693,0,Web hosting and web tariff editor for 66,359999,Street & Traffic Not Elsewhere Classifie
South Lakeland District Council,http://opendatacommunities.org/id/district-council/south-lakeland,31/05/2017,Business Support Community Services,Housing Services,http://opendatacommunities.org/def/concept/finance/sercop/objective/108,Landlord,,31/05/2017,68404,520,0,Monthly rent payment,250000,Housing
South Lakeland District Council,http://opendatacommunities.org/id/district-council/south-lakeland,31/05/2017,Business Support Community Services,Housing Services,http://opendatacommunities.org/def/concept/finance/sercop/objective/108,Landlord,,10/05/2017,67864,600,0,Monthly rent,250000,Housing
South Lakeland District Council,http://opendatacommunities.org/id/district-council/south-lakeland,31/05/2017,Development Implementation,SLDC as Agent,,Mickledore Ltd,6651481,08/05/2017,67616,6000,0,Consultation Fee for MB Coastal,151000,Consultancy Business
South Lakeland District Council,http://opendatacommunities.org/id/district-council/south-lakeland,31/05/2017,Business Support Community Services,Cultural Environmental Regulatory & Planning Services,http://opendatacommunities.org/def/concept/finance/sercop/objective/104,MILNTHORPE KENNELS & CATTERY,8932302,03/05/2017,67562,2633.93,0,Kennelling fees 2017/18,181500,Environment Animal Services
South Lakeland District Council,http://opendatacommunities.org/id/district-council/south-lakeland,31/05/2017,Policy & Partnerships,Cultural Environmental Regulatory & Planning Services,http://opendatacommunities.org/def/concept/finance/sercop/objective/104,MILNTHORPE PARISH COUNCIL,,10/05/2017,67823,20000,0,2016-2017 Funding for public,908000,Public Bodies Council support services
South Lakeland District Council,http://opendatacommunities.org/id/district-council/south-lakeland,31/05/2017,Democratic Services,Central Services,http://opendatacommunities.org/def/concept/finance/sercop/objective/102,MODERN MINDSET LIMITED,2208130,31/05/2017,68374,6500,0,"ModGov App Fee for two years, plus an",271600,ICT Software Customised & Bespoke
South Lakeland District Council,http://opendatacommunities.org/id/district-council/south-lakeland,31/05/2017,Social Enterprise Admin,Highways & Transport Services,http://opendatacommunities.org/def/concept/finance/sercop/objective/107,MOUCHEL LTD,1686040,31/05/2017,68457,10000,0,ICPS Licence and Support 1 April 2017 to,351400,Street & Traffic Traffic Control
South Lakeland District Council,http://opendatacommunities.org/id/district-council/south-lakeland,31/05/2017,Business Support Community Services,Housing Services,http://opendatacommunities.org/def/concept/finance/sercop/objective/108,Landlord,,10/05/2017,67862,520,0,Monthly rent,202000,Financial Services Rents
South Lakeland District Council,http://opendatacommunities.org/id/district-council/south-lakeland,31/05/2017,Business Support Community Services,Housing Services,http://opendatacommunities.org/def/concept/finance/sercop/objective/108,Landlord,,31/05/2017,68396,1190,0,Monthly rent,202000,Financial Services Rents
South Lakeland District Council,http://opendatacommunities.org/id/district-council/south-lakeland,31/05/2017,Business Support Community Services,Housing Services,http://opendatacommunities.org/def/concept/finance/sercop/objective/108,Landlord,,31/05/2017,68409,625,0,Montyly rent,202000,Financial Services Rents
South Lakeland District Council,http://opendatacommunities.org/id/district-council/south-lakeland,31/05/2017,Business Support Community Services,Housing Services,http://opendatacommunities.org/def/concept/finance/sercop/objective/108,Landlord,,22/05/2017,68257,640,0,Rent in advance (2 months),250010,Housing Letting Agents
South Lakeland District Council,http://opendatacommunities.org/id/district-council/south-lakeland,31/05/2017,Legal Services,Central Services,http://opendatacommunities.org/def/concept/finance/sercop/objective/102,MR TIMOTHY LEADER,,15/05/2017,67926,2000,0,Fees re:  New Road Common Land.,281300,Legal Services Legal Opinion
South Lakeland District Council,http://opendatacommunities.org/id/district-council/south-lakeland,31/05/2017,Business Support Community Services,Housing Services,http://opendatacommunities.org/def/concept/finance/sercop/objective/108,Landlord,,31/05/2017,68406,600,0,Monthly rent,250000,Housing
South Lakeland District Council,http://opendatacommunities.org/id/district-council/south-lakeland,31/05/2017,Business Support Community Services,Housing Services,http://opendatacommunities.org/def/concept/finance/sercop/objective/108,My Dream Cleaners Ltd,9839482,31/05/2017,68413,140,0,Full property clean,131320,Cleaning & Janitorial Cleaning Service
South Lakeland District Council,http://opendatacommunities.org/id/district-council/south-lakeland,31/05/2017,Business Support Community Services,Housing Services,http://opendatacommunities.org/def/concept/finance/sercop/objective/108,My Dream Cleaners Ltd,9839482,31/05/2017,68421,588.75,0,Cleaning at Town View Fields Hostel,131320,Cleaning & Janitorial Cleaning Service
South Lakeland District Council,http://opendatacommunities.org/id/district-council/south-lakeland,31/05/2017,Social Enterprise Admin,Cultural Environmental Regulatory & Planning Services,http://opendatacommunities.org/def/concept/finance/sercop/objective/104,NEWSQUEST MEDIA GROUP LTD,3102566,08/05/2017,67570,120.96,0,PUBLIC NOTICES FOR PLANNING 1 APRIL - 31,191000,Facilities Advertising
South Lakeland District Council,http://opendatacommunities.org/id/district-council/south-lakeland,31/05/2017,Social Enterprise Admin,Cultural Environmental Regulatory & Planning Services,http://opendatacommunities.org/def/concept/finance/sercop/objective/104,NEWSQUEST MEDIA GROUP LTD,3102566,08/05/2017,67571,120.96,0,PUBLIC NOTICES FOR PLANNING 1 APRIL - 31,191000,Facilities Advertising
South Lakeland District Council,http://opendatacommunities.org/id/district-council/south-lakeland,31/05/2017,Social Enterprise Admin,Cultural Environmental Regulatory & Planning Services,http://opendatacommunities.org/def/concept/finance/sercop/objective/104,NEWSQUEST MEDIA GROUP LTD,3102566,15/05/2017,67572,120.96,0,PUBLIC NOTICES FOR PLANNING 1 APRIL - 31,191000,Facilities Advertising
South Lakeland District Council,http://opendatacommunities.org/id/district-council/south-lakeland,31/05/2017,Social Enterprise Admin,Cultural Environmental Regulatory & Planning Services,http://opendatacommunities.org/def/concept/finance/sercop/objective/104,NEWSQUEST MEDIA GROUP LTD,3102566,15/05/2017,67573,161.28,0,PUBLIC NOTICES FOR PLANNING 1 APRIL - 31,191000,Facilities Advertising
South Lakeland District Council,http://opendatacommunities.org/id/district-council/south-lakeland,31/05/2017,Development Strategy,Cultural Environmental Regulatory & Planning Services,http://opendatacommunities.org/def/concept/finance/sercop/objective/104,NEWSQUEST MEDIA GROUP LTD,3102566,24/05/2017,67574,465,0,Colour advert for SLDC's Phase 3 Briefs,191000,Facilities Advertising
South Lakeland District Council,http://opendatacommunities.org/id/district-council/south-lakeland,31/05/2017,Social Enterprise Admin,Cultural Environmental Regulatory & Planning Services,http://opendatacommunities.org/def/concept/finance/sercop/objective/104,NEWSQUEST MEDIA GROUP LTD,3102566,10/05/2017,67626,262.08,0,PUBLIC NOTICES FOR PLANNING 1 APRIL - 31,191000,Facilities Advertising
South Lakeland District Council,http://opendatacommunities.org/id/district-council/south-lakeland,31/05/2017,Social Enterprise Admin,Cultural Environmental Regulatory & Planning Services,http://opendatacommunities.org/def/concept/finance/sercop/objective/104,NEWSQUEST MEDIA GROUP LTD,3102566,10/05/2017,67838,161.28,0,PUBLIC NOTICES FOR PLANNING 1 APRIL - 31,191000,Facilities Advertising
South Lakeland District Council,http://opendatacommunities.org/id/district-council/south-lakeland,31/05/2017,Social Enterprise Admin,Cultural Environmental Regulatory & Planning Services,http://opendatacommunities.org/def/concept/finance/sercop/objective/104,NEWSQUEST MEDIA GROUP LTD,3102566,31/05/2017,68356,201.6,0,PUBLIC NOTICES FOR PLANNING 1 APRIL - 31,191000,Facilities Advertising
South Lakeland District Council,http://opendatacommunities.org/id/district-council/south-lakeland,31/05/2017,Business Support Community Services,Housing Services,http://opendatacommunities.org/def/concept/finance/sercop/objective/108,Landlord,,31/05/2017,68464,1500,0,Rent in advance,250010,Housing Letting Agents
South Lakeland District Council,http://opendatacommunities.org/id/district-council/south-lakeland,31/05/2017,Financial Services,Central Services,http://opendatacommunities.org/def/concept/finance/sercop/objective/102,NORTH KESTEVEN DISTRICT COUNCIL,,10/05/2017,67832,2337,0,Rural Services Network Service Charge,908000,Public Bodies Council support services
South Lakeland District Council,http://opendatacommunities.org/id/district-council/south-lakeland,31/05/2017,Human Resources,Central Services,http://opendatacommunities.org/def/concept/finance/sercop/objective/102,NORTH WEST EMPLOYERS,,15/05/2017,67703,4488.61,0,Membership fee,261500,HR Training & Conferences
South Lakeland District Council,http://opendatacommunities.org/id/district-council/south-lakeland,31/05/2017,Business Support Community Services,Central Services,http://opendatacommunities.org/def/concept/finance/sercop/objective/102,NORTHGATE VEHICLE HIRE LTD,1434157,22/05/2017,66212,22.46,0,Car Hire 7th & 8th March 2017 -,381600,Vehicle Mgt Leasing
South Lakeland District Council,http://opendatacommunities.org/id/district-council/south-lakeland,31/05/2017,Electoral Services,Central Services,http://opendatacommunities.org/def/concept/finance/sercop/objective/102,NORTHGATE VEHICLE HIRE LTD,1434157,03/05/2017,67453,30.28,0,Car Hire for 18/19 April. CCC,381600,Vehicle Mgt Leasing
South Lakeland District Council,http://opendatacommunities.org/id/district-council/south-lakeland,31/05/2017,Environment and Housing,Housing,http://opendatacommunities.org/def/concept/finance/sercop/objective/108,NORTHGATE VEHICLE HIRE LTD,1434157,08/05/2017,67674,136,0,"2 Bindloss Cottages, Milnthorpe - van",381600,Vehicle Mgt Leasing
South Lakeland District Council,http://opendatacommunities.org/id/district-council/south-lakeland,31/05/2017,Electoral Services,Central Services,http://opendatacommunities.org/def/concept/finance/sercop/objective/102,NORTHGATE VEHICLE HIRE LTD,1434157,24/05/2017,67878,33.79,0,Van Hire for 4 May CCC Election,381600,Vehicle Mgt Leasing
South Lakeland District Council,http://opendatacommunities.org/id/district-council/south-lakeland,31/05/2017,Electoral Services,Central Services,http://opendatacommunities.org/def/concept/finance/sercop/objective/102,NORTHGATE VEHICLE HIRE LTD,1434157,31/05/2017,67879,22.9,0,Van Hire for 4 May CCC Election,381600,Vehicle Mgt Leasing
South Lakeland District Council,http://opendatacommunities.org/id/district-council/south-lakeland,31/05/2017,Electoral Services,Central Services,http://opendatacommunities.org/def/concept/finance/sercop/objective/102,NORTHGATE VEHICLE HIRE LTD,1434157,17/05/2017,67880,22.9,0,Van Hire for 4 May CCC Election,381600,Vehicle Mgt Leasing
South Lakeland District Council,http://opendatacommunities.org/id/district-council/south-lakeland,31/05/2017,Policy & Partnerships,Central Services,http://opendatacommunities.org/def/concept/finance/sercop/objective/102,NORTHGATE VEHICLE HIRE LTD,1434157,17/05/2017,67998,15.14,0,Car Hire to attend a meeting on,381600,Vehicle Mgt Leasing
South Lakeland District Council,http://opendatacommunities.org/id/district-council/south-lakeland,31/05/2017,ICT Group,Central Services,http://opendatacommunities.org/def/concept/finance/sercop/objective/102,NORTHGATE VEHICLE HIRE LTD,1434157,31/05/2017,68157,37.48,0,Car hire for 11th May.,381600,Vehicle Mgt Leasing
South Lakeland District Council,http://opendatacommunities.org/id/district-council/south-lakeland,31/05/2017,Business Support Community Services,Housing Services,http://opendatacommunities.org/def/concept/finance/sercop/objective/108,O'Connell & Bean,,22/05/2017,68018,89.24,0,Call out and repairs to burst pipe,101100,Building Electrical
South Lakeland District Council,http://opendatacommunities.org/id/district-council/south-lakeland,31/05/2017,Business Support Community Services,Cultural Environmental Regulatory & Planning Services,http://opendatacommunities.org/def/concept/finance/sercop/objective/104,OCS GROUP LTD T/A CANNON HYGIENE LTD,1298292,15/05/2017,67732,2179.21,0,Clinical waste collections - 2017/18,131011,Cleaning & Janitorial Cleaning Materials
South Lakeland District Council,http://opendatacommunities.org/id/district-council/south-lakeland,31/05/2017,Business Support Community Services,Cultural Environmental Regulatory & Planning Services,http://opendatacommunities.org/def/concept/finance/sercop/objective/104,OCS GROUP LTD T/A CANNON HYGIENE LTD,1298292,15/05/2017,67733,25,0,Clinical waste collections - 2017/18,131011,Cleaning & Janitorial Cleaning Materials
South Lakeland District Council,http://opendatacommunities.org/id/district-council/south-lakeland,31/05/2017,Business Support Community Services,Housing Services,http://opendatacommunities.org/def/concept/finance/sercop/objective/108,Open Door Properties,3749975,10/05/2017,67857,1100,0,Rent in advance,202000,Financial Services Rents
South Lakeland District Council,http://opendatacommunities.org/id/district-council/south-lakeland,31/05/2017,Development Implementation,Cultural Environmental Regulatory & Planning Services,http://opendatacommunities.org/def/concept/finance/sercop/objective/104,Orian Solutions Ltd,8237164,15/05/2017,67828,401.05,0,"Cleaning Services at 124 Highgate,",131310,Cleaning & Janitorial Cleaning Service
South Lakeland District Council,http://opendatacommunities.org/id/district-council/south-lakeland,31/05/2017,Electoral Services,Central Services,http://opendatacommunities.org/def/concept/finance/sercop/objective/102,P & W CONFIDENTIAL BUSINESS SERVICES LTD,,22/05/2017,67934,651,0,Confidential storage and shredding of,182014,Environment Waste Mgt Waste Colln for Re
South Lakeland District Council,http://opendatacommunities.org/id/district-council/south-lakeland,31/05/2017,Business Support Community Services,Housing Services,http://opendatacommunities.org/def/concept/finance/sercop/objective/108,Palatine Beds/1907,,31/05/2017,67618,118,0,Single bed Matfen Mattress for Town View,211100,Furniture & Soft Furn Domestic Furniture
South Lakeland District Council,http://opendatacommunities.org/id/district-council/south-lakeland,31/05/2017,Cemeteries Office,Cultural Environmental Regulatory & Planning Services,http://opendatacommunities.org/def/concept/finance/sercop/objective/104,PARKIN & JACKSON LTD,8282892,31/05/2017,68419,260,0,Re-Fix & make sfe memorials in Kendal,121000,Cemetery & Crematorium Burial & Crem
South Lakeland District Council,http://opendatacommunities.org/id/district-council/south-lakeland,31/05/2017,Social Enterprise Admin,Highways & Transport Services,http://opendatacommunities.org/def/concept/finance/sercop/objective/107,PATROL,,08/05/2017,67513,648.8,0,Charges for Traffic Penalty Tribunal,192214,Facilities Security Street Wardens
South Lakeland District Council,http://opendatacommunities.org/id/district-council/south-lakeland,31/05/2017,Business Support Community Services,Housing Services,http://opendatacommunities.org/def/concept/finance/sercop/objective/108,Landlord,,31/05/2017,68399,500,0,Monthly rent payment,250010,Housing Letting Agents
South Lakeland District Council,http://opendatacommunities.org/id/district-council/south-lakeland,31/05/2017,Social Enterprise Admin,SLDC as Agent,,PAY BY PHONE (PAYPOINT),,10/05/2017,67792,578.68,0,Pay-by-phone charges from 1 April 2017,351400,Street & Traffic Traffic Control
South Lakeland District Council,http://opendatacommunities.org/id/district-council/south-lakeland,31/05/2017,Business Support Community Services,Internal Trading Accounts,,PENNINGTONS (KENDAL) LIMITED,434649,15/05/2017,66800,2000,0,Annual Charge for use of Link Road at,182013,Environment Waste Mgt Waste Collection
South Lakeland District Council,http://opendatacommunities.org/id/district-council/south-lakeland,31/05/2017,Legal Services,Internal Trading Accounts,,PENNINGTONS (KENDAL) LIMITED,434649,17/05/2017,67620,2000,0,Annual Charge for use of Link Road at,182013,Environment Waste Mgt Waste Collection
South Lakeland District Council,http://opendatacommunities.org/id/district-council/south-lakeland,31/05/2017,Business Support Community Services,Housing Services,http://opendatacommunities.org/def/concept/finance/sercop/objective/108,Landlord,7803122,31/05/2017,68400,500,0,Monthly rent payment,250000,Housing
South Lakeland District Council,http://opendatacommunities.org/id/district-council/south-lakeland,31/05/2017,ICT Group,Central Services,http://opendatacommunities.org/def/concept/finance/sercop/objective/102,PHOENIX SOFTWARE LTD,2548628,03/05/2017,67411,70.1,0,01206188 Office 365 Plan E3 Shared,271600,ICT Software Customised & Bespoke
South Lakeland District Council,http://opendatacommunities.org/id/district-council/south-lakeland,31/05/2017,Human Resources,Central Services,http://opendatacommunities.org/def/concept/finance/sercop/objective/102,PILAT EUROPE LTD,4207292,10/05/2017,67827,2995,0,Job Evaluation Upgrade,271600,ICT Software Customised & Bespoke
South Lakeland District Council,http://opendatacommunities.org/id/district-council/south-lakeland,31/05/2017,Revenues and Benefits,Central Services,http://opendatacommunities.org/def/concept/finance/sercop/objective/102,PITNEY BOWES LTD,182037,08/05/2017,67686,455,0,2017/18  Stationery & office supplies,301200,Mail Services� Postage
South Lakeland District Council,http://opendatacommunities.org/id/district-council/south-lakeland,31/05/2017,Business Support Community Services,Cultural Environmental Regulatory & Planning Services,http://opendatacommunities.org/def/concept/finance/sercop/objective/104,Planning Jungle Ltd,7854370,08/05/2017,67637,200,0,ANNUAL 1 YEAR MEMBERSHIP FOR PLANNING,202100,Financial Services Subscriptions
South Lakeland District Council,http://opendatacommunities.org/id/district-council/south-lakeland,31/05/2017,Business Support Community Services,Central Services,http://opendatacommunities.org/def/concept/finance/sercop/objective/102,PLASTIC CARD SOLUTIONS LTD,4849000,15/05/2017,67751,82.17,0,80077-742 YMCKO 750 image colour ribbon,192200,Facilities Security
South Lakeland District Council,http://opendatacommunities.org/id/district-council/south-lakeland,31/05/2017,Development Implementation,SLDC as Agent,,Pranav Mehta,,31/05/2017,68354,1042.62,0,Kendal Futures Project Expenses,150000,Consultancy
South Lakeland District Council,http://opendatacommunities.org/id/district-council/south-lakeland,31/05/2017,Democratic and Member Services,Cultural Environmental Regulatory & Planning Services,http://opendatacommunities.org/def/concept/finance/sercop/objective/104,PRESTON PATRICK MEMORIAL HALL COMMITTEE,,15/05/2017,67961,500,0,500 donation from Cllr ,201700,Financial Services Grants
South Lakeland District Council,http://opendatacommunities.org/id/district-council/south-lakeland,31/05/2017,Business Support Community Services,Internal Trading Accounts,,Preston Trade Parts Specialists,,17/05/2017,67894,67.54,0,Sensor,381400,Vehicle Mgt Maintenance
South Lakeland District Council,http://opendatacommunities.org/id/district-council/south-lakeland,31/05/2017,Business Support Community Services,Internal Trading Accounts,,Preston Trade Parts Specialists,,17/05/2017,67900,9.2,0,Sensor,381400,Vehicle Mgt Maintenance
South Lakeland District Council,http://opendatacommunities.org/id/district-council/south-lakeland,31/05/2017,Business Support Community Services,Internal Trading Accounts,,Preston Trade Parts Specialists,,17/05/2017,68046,154.52,0,Speed sensor,381400,Vehicle Mgt Maintenance
South Lakeland District Council,http://opendatacommunities.org/id/district-council/south-lakeland,31/05/2017,Business Support Community Services,Internal Trading Accounts,,Preston Trade Parts Specialists,,17/05/2017,68048,33.19,0,Speed sensor,381400,Vehicle Mgt Maintenance
South Lakeland District Council,http://opendatacommunities.org/id/district-council/south-lakeland,31/05/2017,ICT Group,Central Services,http://opendatacommunities.org/def/concept/finance/sercop/objective/102,PROBRAND LTD,2653446,03/05/2017,67516,151.7,0,Logitech MK270 wireless keyboards and,271600,ICT Software Customised & Bespoke
South Lakeland District Council,http://opendatacommunities.org/id/district-council/south-lakeland,31/05/2017,ICT Group,Central Services,http://opendatacommunities.org/def/concept/finance/sercop/objective/102,PROBRAND LTD,2653446,17/05/2017,68010,82.9,0,PO for monitor we ordered and which has,271600,ICT Software Customised & Bespoke
South Lakeland District Council,http://opendatacommunities.org/id/district-council/south-lakeland,31/05/2017,ICT Group,Central Services,http://opendatacommunities.org/def/concept/finance/sercop/objective/102,PROBRAND LTD,2653446,31/05/2017,68254,41.58,0,Belkin Hi-Speed USB 2.0 4-Port Mobile,271600,ICT Software Customised & Bespoke
South Lakeland District Council,http://opendatacommunities.org/id/district-council/south-lakeland,31/05/2017,Leisure and Wellbeing,Environment Regulatory,,Proludic Ltd,4455803,03/05/2017,67640,158518,0,For supply and installation of,331200,Sports & Playground- Maintenance- Servic
South Lakeland District Council,http://opendatacommunities.org/id/district-council/south-lakeland,31/05/2017,Leisure and Wellbeing,Environment Regulatory,,Proludic Ltd,4455803,15/05/2017,67945,1400,0,Rothay Park children's playground,331200,Sports & Playground- Maintenance- Servic
South Lakeland District Council,http://opendatacommunities.org/id/district-council/south-lakeland,31/05/2017,Development Implementation,SLDC as Agent,,PS BUSINESS MATTERS,8147185,15/05/2017,67818,1500,0,Kendal Futures Programme Support,151900,Consultancy Management
South Lakeland District Council,http://opendatacommunities.org/id/district-council/south-lakeland,31/05/2017,Leisure and Wellbeing,Cultural Environmental Regulatory & Planning Services,http://opendatacommunities.org/def/concept/finance/sercop/objective/104,Quantified Tree Risk Assessment Ltd,5255873,31/05/2017,68367,85.5,0,QTRA user registration renewal from,241600,Horticultural Trees & Shrubs
South Lakeland District Council,http://opendatacommunities.org/id/district-council/south-lakeland,31/05/2017,Development Implementation,Planning and Development,,R G PARKINS & PARTNERS LTD,4107150,08/05/2017,67512,850,0,"New Road, Kendal - Road Safety Audit",152200,Consultancy Technical & Feasibility
South Lakeland District Council,http://opendatacommunities.org/id/district-council/south-lakeland,31/05/2017,Development Implementation,Central Services,http://opendatacommunities.org/def/concept/finance/sercop/objective/102,R G PARKINS & PARTNERS LTD,4107150,22/05/2017,68202,780,0,"Professional Services - 1-4 The Syke,",152200,Consultancy Technical & Feasibility
South Lakeland District Council,http://opendatacommunities.org/id/district-council/south-lakeland,31/05/2017,Social Enterprise Admin,Cultural Environmental Regulatory & Planning Services,http://opendatacommunities.org/def/concept/finance/sercop/objective/104,R J MOORHOUSE WELDING & FABRICATIONS,,08/05/2017,67459,210,0,Supply hinges and repair litter bins as,391200,Construction Engineering
South Lakeland District Council,http://opendatacommunities.org/id/district-council/south-lakeland,31/05/2017,Social Enterprise Admin,Environment Regulatory,,R J MOORHOUSE WELDING & FABRICATIONS,,08/05/2017,67459,1080,0,Supply hinges and repair litter bins as,391200,Construction Engineering
South Lakeland District Council,http://opendatacommunities.org/id/district-council/south-lakeland,31/05/2017,Business Support Community Services,Housing Services,http://opendatacommunities.org/def/concept/finance/sercop/objective/108,Landlord,,08/05/2017,67774,400,0,Monthly rent,250000,Housing
South Lakeland District Council,http://opendatacommunities.org/id/district-council/south-lakeland,31/05/2017,Business Support Community Services,Internal Trading Accounts,,RIBBLESDALE AUTO ELECTRICS 1992 LTD,2732686,17/05/2017,67884,17,0,Lamps,381500,Vehicle Mgt Parts
South Lakeland District Council,http://opendatacommunities.org/id/district-council/south-lakeland,31/05/2017,Business Support Community Services,Internal Trading Accounts,,RIBBLESDALE AUTO ELECTRICS 1992 LTD,2732686,15/05/2017,67985,11.76,0,Lights,381500,Vehicle Mgt Parts
South Lakeland District Council,http://opendatacommunities.org/id/district-council/south-lakeland,31/05/2017,Business Support Community Services,Internal Trading Accounts,,RIBBLESDALE AUTO ELECTRICS 1992 LTD,2732686,22/05/2017,68059,8,0,Bulbs,381500,Vehicle Mgt Parts
South Lakeland District Council,http://opendatacommunities.org/id/district-council/south-lakeland,31/05/2017,Business Support Community Services,Internal Trading Accounts,,RIBBLESDALE AUTO ELECTRICS 1992 LTD,2732686,22/05/2017,68060,25,0,Bulbs,381500,Vehicle Mgt Parts
South Lakeland District Council,http://opendatacommunities.org/id/district-council/south-lakeland,31/05/2017,Business Support Community Services,Internal Trading Accounts,,RIBBLESDALE AUTO ELECTRICS 1992 LTD,2732686,22/05/2017,68209,75.38,0,Bulbs,381500,Vehicle Mgt Parts
South Lakeland District Council,http://opendatacommunities.org/id/district-council/south-lakeland,31/05/2017,Business Support Community Services,Internal Trading Accounts,,RIBBLESDALE AUTO ELECTRICS UNITS LTD,962232,17/05/2017,68033,140,0,Crimping tool,101100,Building Electrical
South Lakeland District Council,http://opendatacommunities.org/id/district-council/south-lakeland,31/05/2017,Business Support Community Services,Cultural Environmental Regulatory & Planning Services,http://opendatacommunities.org/def/concept/finance/sercop/objective/104,RICARDO-AEA,8229264,31/05/2017,68352,2070,0,12 EMAQ Seminar Places,159999,Consultancy Not Elsewhere Classified
South Lakeland District Council,http://opendatacommunities.org/id/district-council/south-lakeland,31/05/2017,Business Support Community Services,Housing Services,http://opendatacommunities.org/def/concept/finance/sercop/objective/108,Landlord,7009105,31/05/2017,68402,480,0,Monthly rent payment,250000,Housing
South Lakeland District Council,http://opendatacommunities.org/id/district-council/south-lakeland,31/05/2017,Business Support Community Services,Transport Planning Policy,http://opendatacommunities.org/def/concept/finance/sercop/objective/107,RIGHT 2 WORK,,03/05/2017,67528,180,0,Sofas,321010,Social Care Adult Advice & Counselling
South Lakeland District Council,http://opendatacommunities.org/id/district-council/south-lakeland,31/05/2017,Customer Services,Cultural Environmental Regulatory & Planning Services,http://opendatacommunities.org/def/concept/finance/sercop/objective/104,RIGHT 2 WORK,,15/05/2017,67938,3867,0,for removal of bulky waste,321010,Social Care Adult Advice & Counselling
South Lakeland District Council,http://opendatacommunities.org/id/district-council/south-lakeland,31/05/2017,Customer Services,Cultural Environmental Regulatory & Planning Services,http://opendatacommunities.org/def/concept/finance/sercop/objective/104,RIGHT 2 WORK,,15/05/2017,67939,3226,0,bulky items collected,321010,Social Care Adult Advice & Counselling
South Lakeland District Council,http://opendatacommunities.org/id/district-council/south-lakeland,31/05/2017,Business Support Community Services,Internal Trading Accounts,,Romaquip UK,,08/05/2017,67537,440.51,0,Rollers,381000,Vehicle Mgt Commercial
South Lakeland District Council,http://opendatacommunities.org/id/district-council/south-lakeland,31/05/2017,Business Support Community Services,Internal Trading Accounts,,Romaquip UK,,17/05/2017,67904,120.41,0,Switch,381000,Vehicle Mgt Commercial
South Lakeland District Council,http://opendatacommunities.org/id/district-council/south-lakeland,31/05/2017,Printing Section,Central Services,http://opendatacommunities.org/def/concept/finance/sercop/objective/102,ROSEFOX PAPER LIMITED,1655083,08/05/2017,67660,50.56,0,PaperOne A4 100gsm,341000,Stationery Paper
South Lakeland District Council,http://opendatacommunities.org/id/district-council/south-lakeland,31/05/2017,Revenues and Benefits,SLDC as Agent,,ROYAL MAIL GROUP PLC,,22/05/2017,66736,2176.22,0,2016 - 17  Postal Charges a/c 0198123013,301200,Mail Services� Postage
South Lakeland District Council,http://opendatacommunities.org/id/district-council/south-lakeland,31/05/2017,Electoral Services,Central Services,http://opendatacommunities.org/def/concept/finance/sercop/objective/102,ROYAL MAIL GROUP PLC,,08/05/2017,67544,85.82,0,Respomse Plus Postage,301200,Mail Services� Postage
South Lakeland District Council,http://opendatacommunities.org/id/district-council/south-lakeland,31/05/2017,Revenues and Benefits,SLDC as Agent,,ROYAL MAIL GROUP PLC,,08/05/2017,67630,1824.74,0,Postal Charges a/c 0198123013 (2017-18),301200,Mail Services� Postage
South Lakeland District Council,http://opendatacommunities.org/id/district-council/south-lakeland,31/05/2017,Revenues and Benefits,SLDC as Agent,,ROYAL MAIL GROUP PLC,,08/05/2017,67631,1348.33,0,Postal Charges a/c 0198123013 (2017-18),301200,Mail Services� Postage
South Lakeland District Council,http://opendatacommunities.org/id/district-council/south-lakeland,31/05/2017,Revenues and Benefits,SLDC as Agent,,ROYAL MAIL GROUP PLC,,10/05/2017,67814,95,0,Response Services Licence  A/C,301200,Mail Services� Postage
South Lakeland District Council,http://opendatacommunities.org/id/district-council/south-lakeland,31/05/2017,Revenues and Benefits,SLDC as Agent,,ROYAL MAIL GROUP PLC,,10/05/2017,67815,2949.17,0,Postal Charges a/c 0198123013 (2017-18),301200,Mail Services� Postage
South Lakeland District Council,http://opendatacommunities.org/id/district-council/south-lakeland,31/05/2017,Revenues and Benefits,Central Services,http://opendatacommunities.org/def/concept/finance/sercop/objective/102,ROYAL MAIL GROUP PLC,,10/05/2017,67837,94.87,0,Postal Charges a/c 0055114000  (2017/18),301200,Mail Services� Postage
South Lakeland District Council,http://opendatacommunities.org/id/district-council/south-lakeland,31/05/2017,Electoral Services,Central Services,http://opendatacommunities.org/def/concept/finance/sercop/objective/102,ROYAL MAIL GROUP PLC,,15/05/2017,67928,1420.59,0,PV Returns for County,301200,Mail Services� Postage
South Lakeland District Council,http://opendatacommunities.org/id/district-council/south-lakeland,31/05/2017,Electoral Services,Central Services,http://opendatacommunities.org/def/concept/finance/sercop/objective/102,ROYAL MAIL GROUP PLC,,15/05/2017,67930,3597.26,0,County Council PV returns,301200,Mail Services� Postage
South Lakeland District Council,http://opendatacommunities.org/id/district-council/south-lakeland,31/05/2017,Revenues and Benefits,SLDC as Agent,,ROYAL MAIL GROUP PLC,,17/05/2017,68038,1513.51,0,Postal Charges a/c 0198123013 (2017-18),301200,Mail Services� Postage
South Lakeland District Council,http://opendatacommunities.org/id/district-council/south-lakeland,31/05/2017,Electoral Services,Central Services,http://opendatacommunities.org/def/concept/finance/sercop/objective/102,ROYAL MAIL GROUP PLC,,22/05/2017,68224,144.22,0,Return Postage Normal,301200,Mail Services� Postage
South Lakeland District Council,http://opendatacommunities.org/id/district-council/south-lakeland,31/05/2017,Revenues and Benefits,SLDC as Agent,,ROYAL MAIL GROUP PLC,,22/05/2017,68235,3165.61,0,Postal Charges a/c 0198123013 (2017-18),301200,Mail Services� Postage
South Lakeland District Council,http://opendatacommunities.org/id/district-council/south-lakeland,31/05/2017,Revenues and Benefits,Central Services,http://opendatacommunities.org/def/concept/finance/sercop/objective/102,ROYAL MAIL GROUP PLC,,31/05/2017,68360,55.11,0,Postal Charges a/c 0055114000  (2017/18),301200,Mail Services� Postage
South Lakeland District Council,http://opendatacommunities.org/id/district-council/south-lakeland,31/05/2017,Development Strategy,Central Services,http://opendatacommunities.org/def/concept/finance/sercop/objective/102,ROYAL TOWN PLANNING INSTITUTE,,03/05/2017,67515,50,0,To attend Leisure,908999,Public Bodies Not Elsewhere Classified
South Lakeland District Council,http://opendatacommunities.org/id/district-council/south-lakeland,31/05/2017,Development Strategy,Central Services,http://opendatacommunities.org/def/concept/finance/sercop/objective/102,ROYAL TOWN PLANNING INSTITUTE,,31/05/2017,68458,190,0,Elizabeth and Lorayne,908999,Public Bodies Not Elsewhere Classified
South Lakeland District Council,http://opendatacommunities.org/id/district-council/south-lakeland,31/05/2017,Business Support Community Services,Internal Trading Accounts,,S A Associates Management Training Ltd,4621115,17/05/2017,68045,4620,0,IOSH Training,261500,HR Training & Conferences
South Lakeland District Council,http://opendatacommunities.org/id/district-council/south-lakeland,31/05/2017,Business Support Community Services,Internal Trading Accounts,,S J Bargh,532272,08/05/2017,67568,121,0,MOTs 2017/18,381400,Vehicle Mgt Maintenance
South Lakeland District Council,http://opendatacommunities.org/id/district-council/south-lakeland,31/05/2017,Business Support Community Services,Internal Trading Accounts,,S J Bargh,532272,15/05/2017,67730,192,0,MOTs 2017/18,381400,Vehicle Mgt Maintenance
South Lakeland District Council,http://opendatacommunities.org/id/district-council/south-lakeland,31/05/2017,Business Support Community Services,Internal Trading Accounts,,S J Bargh,532272,22/05/2017,68170,121,0,MOTs 2017/18,381400,Vehicle Mgt Maintenance
South Lakeland District Council,http://opendatacommunities.org/id/district-council/south-lakeland,31/05/2017,Business Support Community Services,Internal Trading Accounts,,S J Bargh,532272,24/05/2017,68310,121,0,MOTs 2017/18,381400,Vehicle Mgt Maintenance
South Lakeland District Council,http://opendatacommunities.org/id/district-council/south-lakeland,31/05/2017,Electoral Services,Central Services,http://opendatacommunities.org/def/concept/finance/sercop/objective/102,SCI PRINT LTD,,08/05/2017,67511,360,0,"Printing CCC Poll Cards, Postal Vote",191600,Facilities Printing
South Lakeland District Council,http://opendatacommunities.org/id/district-council/south-lakeland,31/05/2017,Electoral Services,Central Services,http://opendatacommunities.org/def/concept/finance/sercop/objective/102,SCI PRINT LTD,,08/05/2017,67511,1215.24,0,"Printing CCC Poll Cards, Postal Vote",191600,Facilities Printing
South Lakeland District Council,http://opendatacommunities.org/id/district-council/south-lakeland,31/05/2017,Electoral Services,Central Services,http://opendatacommunities.org/def/concept/finance/sercop/objective/102,SCI PRINT LTD,,08/05/2017,67679,11236.9,0,"Printing CCC Poll Cards, Postal Vote",191600,Facilities Printing
South Lakeland District Council,http://opendatacommunities.org/id/district-council/south-lakeland,31/05/2017,Electoral Services,Central Services,http://opendatacommunities.org/def/concept/finance/sercop/objective/102,SCI PRINT LTD,,08/05/2017,67679,8778.37,0,"Printing CCC Poll Cards, Postal Vote",191600,Facilities Printing
South Lakeland District Council,http://opendatacommunities.org/id/district-council/south-lakeland,31/05/2017,Electoral Services,Central Services,http://opendatacommunities.org/def/concept/finance/sercop/objective/102,SCI PRINT LTD,,22/05/2017,67931,365,0,Printing Poll Cards District By Election,191600,Facilities Printing
South Lakeland District Council,http://opendatacommunities.org/id/district-council/south-lakeland,31/05/2017,Electoral Services,Central Services,http://opendatacommunities.org/def/concept/finance/sercop/objective/102,SCI PRINT LTD,,22/05/2017,67931,6380.46,0,Printing Poll Cards District By Election,191600,Facilities Printing
South Lakeland District Council,http://opendatacommunities.org/id/district-council/south-lakeland,31/05/2017,Electoral Services,Central Services,http://opendatacommunities.org/def/concept/finance/sercop/objective/102,SCI PRINT LTD,,15/05/2017,67932,1849.15,0,Poll Cards for Parliamentary,191600,Facilities Printing
South Lakeland District Council,http://opendatacommunities.org/id/district-council/south-lakeland,31/05/2017,Electoral Services,Central Services,http://opendatacommunities.org/def/concept/finance/sercop/objective/102,SCI PRINT LTD,,15/05/2017,67932,18054.19,0,Poll Cards for Parliamentary,191600,Facilities Printing
South Lakeland District Council,http://opendatacommunities.org/id/district-council/south-lakeland,31/05/2017,Business Support Community Services,Housing Services,http://opendatacommunities.org/def/concept/finance/sercop/objective/108,Scott Bainbridge Residential Sales,,15/05/2017,67989,495,0,Rent in advance,250010,Housing Letting Agents
South Lakeland District Council,http://opendatacommunities.org/id/district-council/south-lakeland,31/05/2017,Electoral Services,Central Services,http://opendatacommunities.org/def/concept/finance/sercop/objective/102,SHAW & SONS LTD,176653,15/05/2017,67698,170.92,0,Ballot Box Seal Cutters,191600,Facilities Printing
South Lakeland District Council,http://opendatacommunities.org/id/district-council/south-lakeland,31/05/2017,Social Enterprise Admin,Cultural Environmental Regulatory & Planning Services,http://opendatacommunities.org/def/concept/finance/sercop/objective/104,SHORROCK TRICHEM,4179799,22/05/2017,68062,18.97,0,1 x Bucket of Urinal Blocks Stock Code:,131312,Cleaning & Janitorial Washroom Sanitat
South Lakeland District Council,http://opendatacommunities.org/id/district-council/south-lakeland,31/05/2017,Social Enterprise Admin,Cultural Environmental Regulatory & Planning Services,http://opendatacommunities.org/def/concept/finance/sercop/objective/104,SHORROCK TRICHEM,4179799,31/05/2017,68417,382.08,0,Jumbo toilet rolls SHO093,131312,Cleaning & Janitorial Washroom Sanitat
South Lakeland District Council,http://opendatacommunities.org/id/district-council/south-lakeland,31/05/2017,Customer Services,Central Services,http://opendatacommunities.org/def/concept/finance/sercop/objective/102,SHRED-IT,4047194,15/05/2017,67951,150.29,0,shred it supplies,279999,ICT Not Elsewhere Classified
South Lakeland District Council,http://opendatacommunities.org/id/district-council/south-lakeland,31/05/2017,Social Enterprise Admin,Cultural Environmental Regulatory & Planning Services,http://opendatacommunities.org/def/concept/finance/sercop/objective/104,SMS (SALCOMBE) LTD,4558962,24/05/2017,68070,275.59,0,Teleflex KB twin Control 33C single,381500,Vehicle Mgt Parts
South Lakeland District Council,http://opendatacommunities.org/id/district-council/south-lakeland,31/05/2017,ICT Group,Central Services,http://opendatacommunities.org/def/concept/finance/sercop/objective/102,Software Box Ltd,2109168,08/05/2017,67677,13915.32,0,CEBYLM-AA-EA Intel MFE Complete EP,270000,Information Communications Technology
South Lakeland District Council,http://opendatacommunities.org/id/district-council/south-lakeland,31/05/2017,Business Support Community Services,Internal Trading Accounts,,SOLWAY DAF,1393710,15/05/2017,67705,64.13,0,Mirror,381000,Vehicle Mgt Commercial
South Lakeland District Council,http://opendatacommunities.org/id/district-council/south-lakeland,31/05/2017,Business Support Community Services,Internal Trading Accounts,,SOLWAY DAF,1393710,15/05/2017,67706,52.28,0,Mirror,381000,Vehicle Mgt Commercial
South Lakeland District Council,http://opendatacommunities.org/id/district-council/south-lakeland,31/05/2017,Business Support Community Services,Internal Trading Accounts,,SOLWAY DAF,1393710,15/05/2017,67707,76.9,0,Mirror,381000,Vehicle Mgt Commercial
South Lakeland District Council,http://opendatacommunities.org/id/district-council/south-lakeland,31/05/2017,Business Support Community Services,Internal Trading Accounts,,SOLWAY DAF,1393710,15/05/2017,67710,8.85,0,Mirror,381000,Vehicle Mgt Commercial
South Lakeland District Council,http://opendatacommunities.org/id/district-council/south-lakeland,31/05/2017,Business Support Community Services,Internal Trading Accounts,,SOLWAY DAF,1393710,15/05/2017,67710,30.45,0,Mirror,381000,Vehicle Mgt Commercial
South Lakeland District Council,http://opendatacommunities.org/id/district-council/south-lakeland,31/05/2017,Business Support Community Services,Internal Trading Accounts,,SOLWAY DAF,1393710,15/05/2017,67711,55.96,0,Mirror,381000,Vehicle Mgt Commercial
South Lakeland District Council,http://opendatacommunities.org/id/district-council/south-lakeland,31/05/2017,Business Support Community Services,Internal Trading Accounts,,SOLWAY DAF,1393710,15/05/2017,67742,712.51,0,Mirror,381000,Vehicle Mgt Commercial
South Lakeland District Council,http://opendatacommunities.org/id/district-council/south-lakeland,31/05/2017,Business Support Community Services,Internal Trading Accounts,,SOLWAY DAF,1393710,15/05/2017,67743,158.8,0,Mirror,381000,Vehicle Mgt Commercial
South Lakeland District Council,http://opendatacommunities.org/id/district-council/south-lakeland,31/05/2017,Business Support Community Services,Internal Trading Accounts,,SOLWAY DAF,1393710,17/05/2017,68000,171.94,0,Block,381000,Vehicle Mgt Commercial
South Lakeland District Council,http://opendatacommunities.org/id/district-council/south-lakeland,31/05/2017,Business Support Community Services,Internal Trading Accounts,,SOLWAY DAF,1393710,17/05/2017,68001,166.64,0,Block,381000,Vehicle Mgt Commercial
South Lakeland District Council,http://opendatacommunities.org/id/district-council/south-lakeland,31/05/2017,Business Support Community Services,Internal Trading Accounts,,SOLWAY DAF,1393710,17/05/2017,68031,-150,0,Mirror,381000,Vehicle Mgt Commercial
South Lakeland District Council,http://opendatacommunities.org/id/district-council/south-lakeland,31/05/2017,Business Support Community Services,Internal Trading Accounts,,SOLWAY DAF,1393710,17/05/2017,68050,77.54,0,Pipe,381000,Vehicle Mgt Commercial
South Lakeland District Council,http://opendatacommunities.org/id/district-council/south-lakeland,31/05/2017,Business Support Community Services,Internal Trading Accounts,,SOLWAY DAF,1393710,17/05/2017,68051,11.81,0,Pipe,381000,Vehicle Mgt Commercial
South Lakeland District Council,http://opendatacommunities.org/id/district-council/south-lakeland,31/05/2017,Business Support Community Services,Internal Trading Accounts,,SOLWAY DAF,1393710,17/05/2017,68054,43.29,0,Pipe,381000,Vehicle Mgt Commercial
South Lakeland District Council,http://opendatacommunities.org/id/district-council/south-lakeland,31/05/2017,Business Support Community Services,Internal Trading Accounts,,SOLWAY DAF,1393710,31/05/2017,68186,-46.92,0,Bushes,381000,Vehicle Mgt Commercial
South Lakeland District Council,http://opendatacommunities.org/id/district-council/south-lakeland,31/05/2017,Business Support Community Services,Internal Trading Accounts,,SOLWAY DAF,1393710,31/05/2017,68436,151.66,0,Belt,381000,Vehicle Mgt Commercial
South Lakeland District Council,http://opendatacommunities.org/id/district-council/south-lakeland,31/05/2017,Business Support Community Services,Internal Trading Accounts,,SOLWAY DAF,1393710,31/05/2017,68437,154.47,0,Belt,381000,Vehicle Mgt Commercial
South Lakeland District Council,http://opendatacommunities.org/id/district-council/south-lakeland,31/05/2017,Business Support Community Services,Internal Trading Accounts,,SOMERS TOTALKARE LTD,5256574,17/05/2017,67905,13.65,0,Bulbs,381300,Vehicle Mgt Industrial
South Lakeland District Council,http://opendatacommunities.org/id/district-council/south-lakeland,31/05/2017,Printing Section,Cultural Environmental Regulatory & Planning Services,http://opendatacommunities.org/def/concept/finance/sercop/objective/104,SOS LAMINATORS LTD T/A LANCASHIRE LAMINA,6928347,17/05/2017,68036,187.81,0,125 Micron Gloss Film encapsulating,190000,Facilities & Management Services
South Lakeland District Council,http://opendatacommunities.org/id/district-council/south-lakeland,31/05/2017,Electoral Services,Central Services,http://opendatacommunities.org/def/concept/finance/sercop/objective/102,SOUNDSMITH LIMITED,5366630,15/05/2017,67933,1710,0,Sound Equipment etc. for 4 May CCC,171111,Education Audio Visual
South Lakeland District Council,http://opendatacommunities.org/id/district-council/south-lakeland,31/05/2017,Policy & Partnerships,Cultural Environmental Regulatory & Planning Services,http://opendatacommunities.org/def/concept/finance/sercop/objective/104,South Lakes Citizens Advice Bureau,6113551,10/05/2017,66999,77000,0,2017-18 One off for CAB Services,261200,HR Professional & Advisory Services
South Lakeland District Council,http://opendatacommunities.org/id/district-council/south-lakeland,31/05/2017,Leisure and Wellbeing,Cultural Environmental Regulatory & Planning Services,http://opendatacommunities.org/def/concept/finance/sercop/objective/104,SOUTH LAKES TREE SURGEONS & LANDSCAPES,5342745,31/05/2017,68348,565,0,"Beresford Road, Windermere",241210,Horticultural Tree Trimming
South Lakeland District Council,http://opendatacommunities.org/id/district-council/south-lakeland,31/05/2017,Leisure and Wellbeing,Cultural Environmental Regulatory & Planning Services,http://opendatacommunities.org/def/concept/finance/sercop/objective/104,SOUTH LAKES TREE SURGEONS & LANDSCAPES,5342745,31/05/2017,68362,210,0,Dead Cherry Tree at Oakwood Drive/Priory,241210,Horticultural Tree Trimming
South Lakeland District Council,http://opendatacommunities.org/id/district-council/south-lakeland,31/05/2017,Leisure and Wellbeing,Cultural Environmental Regulatory & Planning Services,http://opendatacommunities.org/def/concept/finance/sercop/objective/104,SOUTH LAKES TREE SURGEONS & LANDSCAPES,5342745,31/05/2017,68363,405,0,"Beresford Road, Windermere",241210,Horticultural Tree Trimming
South Lakeland District Council,http://opendatacommunities.org/id/district-council/south-lakeland,31/05/2017,Leisure and Wellbeing,Cultural Environmental Regulatory & Planning Services,http://opendatacommunities.org/def/concept/finance/sercop/objective/104,SOUTH LAKES TREE SURGEONS & LANDSCAPES,5342745,31/05/2017,68364,750,0,"Beresford Road, Windermere",241210,Horticultural Tree Trimming
South Lakeland District Council,http://opendatacommunities.org/id/district-council/south-lakeland,31/05/2017,Revenues and Benefits,Central Services,http://opendatacommunities.org/def/concept/finance/sercop/objective/102,Southerns Office Interiors Ltd,3478080,17/05/2017,67995,264.6,0,Ref SLDC050517,211200,Furniture & Soft Furn Office Furniture
South Lakeland District Council,http://opendatacommunities.org/id/district-council/south-lakeland,31/05/2017,Business Support Community Services,Internal Trading Accounts,,Southfield Garage,,08/05/2017,67668,200,0,Repair VU11 HRF,380000,Vehicle Management
South Lakeland District Council,http://opendatacommunities.org/id/district-council/south-lakeland,31/05/2017,Business Support Community Services,Internal Trading Accounts,,Southfield Garage,,08/05/2017,67669,280,0,Repair VU11 HRF,380000,Vehicle Management
South Lakeland District Council,http://opendatacommunities.org/id/district-council/south-lakeland,31/05/2017,Business Support Community Services,Internal Trading Accounts,,Southfield Garage,,15/05/2017,67744,260,0,Repair SL011,380000,Vehicle Management
South Lakeland District Council,http://opendatacommunities.org/id/district-council/south-lakeland,31/05/2017,Business Support Community Services,Internal Trading Accounts,,Southfield Garage,,17/05/2017,67902,320,0,Repair SL035,380000,Vehicle Management
South Lakeland District Council,http://opendatacommunities.org/id/district-council/south-lakeland,31/05/2017,Business Support Community Services,Internal Trading Accounts,,Southfield Garage,,17/05/2017,67909,340,0,Repair SL009,380000,Vehicle Management
South Lakeland District Council,http://opendatacommunities.org/id/district-council/south-lakeland,31/05/2017,Business Support Community Services,Internal Trading Accounts,,Southfield Garage,,17/05/2017,68007,280,0,Repair SL014,380000,Vehicle Management
South Lakeland District Council,http://opendatacommunities.org/id/district-council/south-lakeland,31/05/2017,Development Implementation,Cultural Environmental Regulatory & Planning Services,http://opendatacommunities.org/def/concept/finance/sercop/objective/104,Springboard Research Ltd,,22/05/2017,68199,2635,0,Footfall/Benchmarking for Kendal Town,191500,Facilities Market Research
South Lakeland District Council,http://opendatacommunities.org/id/district-council/south-lakeland,31/05/2017,Business Support Community Services,Internal Trading Accounts,,STAGECOACH NORTHWEST,,08/05/2017,67607,200,0,Steam cleaning 01/04/17 - 31/03/18,361300,Public Transport Passenger Transport
South Lakeland District Council,http://opendatacommunities.org/id/district-council/south-lakeland,31/05/2017,Business Support Community Services,Housing Services,http://opendatacommunities.org/def/concept/finance/sercop/objective/108,STATION HOUSE SURGERY,,31/05/2017,67952,25,0,Medical report,311600,Healthcare Services
South Lakeland District Council,http://opendatacommunities.org/id/district-council/south-lakeland,31/05/2017,Business Support Community Services,Housing Services,http://opendatacommunities.org/def/concept/finance/sercop/objective/108,Landlord,7121028,10/05/2017,67860,400,0,Monthly rent,202000,Financial Services Rents
South Lakeland District Council,http://opendatacommunities.org/id/district-council/south-lakeland,31/05/2017,Business Support Community Services,Central Services,http://opendatacommunities.org/def/concept/finance/sercop/objective/102,STRAIGHT MANUFACTURING PLC,,08/05/2017,66769,5928,0,Per quotation 0000004741,182011,Environment Waste Management Consumables
South Lakeland District Council,http://opendatacommunities.org/id/district-council/south-lakeland,31/05/2017,ICT Group,Central Services,http://opendatacommunities.org/def/concept/finance/sercop/objective/102,SYMANTEC.CLOUD,,08/05/2017,67628,2310,0,Sync email protect cloud per user hosted,271600,ICT Software Customised & Bespoke
South Lakeland District Council,http://opendatacommunities.org/id/district-council/south-lakeland,31/05/2017,Revenues and Benefits,Central Services,http://opendatacommunities.org/def/concept/finance/sercop/objective/102,TAMESIDE METROPOLITAN BOROUGH,,22/05/2017,67980,420.4,0,2016 -2017 NAFN credit and other,202100,Financial Services Subscriptions
South Lakeland District Council,http://opendatacommunities.org/id/district-council/south-lakeland,31/05/2017,Business Support Community Services,Internal Trading Accounts,,TAYLOR ENGINEERING & FABRICATIONS LTD,4989359,15/05/2017,67088,266.45,0,Bushes,391200,Construction Engineering
South Lakeland District Council,http://opendatacommunities.org/id/district-council/south-lakeland,31/05/2017,Business Support Community Services,Internal Trading Accounts,,TAYLOR ENGINEERING & FABRICATIONS LTD,4989359,17/05/2017,67466,320.78,0,Bushes,391200,Construction Engineering
South Lakeland District Council,http://opendatacommunities.org/id/district-council/south-lakeland,31/05/2017,Business Support Community Services,Internal Trading Accounts,,TAYLOR ENGINEERING & FABRICATIONS LTD,4989359,15/05/2017,67722,42.11,0,Bushes,391200,Construction Engineering
South Lakeland District Council,http://opendatacommunities.org/id/district-council/south-lakeland,31/05/2017,Business Support Community Services,Internal Trading Accounts,,TAYLOR ENGINEERING & FABRICATIONS LTD,4989359,15/05/2017,67725,8.95,0,Lamps,391200,Construction Engineering
South Lakeland District Council,http://opendatacommunities.org/id/district-council/south-lakeland,31/05/2017,Business Support Community Services,Internal Trading Accounts,,TAYLOR ENGINEERING & FABRICATIONS LTD,4989359,15/05/2017,67725,28.97,0,Lamps,391200,Construction Engineering
South Lakeland District Council,http://opendatacommunities.org/id/district-council/south-lakeland,31/05/2017,Business Support Community Services,Internal Trading Accounts,,TAYLOR ENGINEERING & FABRICATIONS LTD,4989359,15/05/2017,67741,42.65,0,Lamps,391200,Construction Engineering
South Lakeland District Council,http://opendatacommunities.org/id/district-council/south-lakeland,31/05/2017,Business Support Community Services,Internal Trading Accounts,,TAYLOR ENGINEERING & FABRICATIONS LTD,4989359,10/05/2017,67819,17.88,0,Lamps,391200,Construction Engineering
South Lakeland District Council,http://opendatacommunities.org/id/district-council/south-lakeland,31/05/2017,Business Support Community Services,Internal Trading Accounts,,TAYLOR ENGINEERING & FABRICATIONS LTD,4989359,10/05/2017,67820,290.28,0,Pins,391200,Construction Engineering
South Lakeland District Council,http://opendatacommunities.org/id/district-council/south-lakeland,31/05/2017,Business Support Community Services,Internal Trading Accounts,,TAYLOR ENGINEERING & FABRICATIONS LTD,4989359,22/05/2017,67907,144.49,0,Lamps,391200,Construction Engineering
South Lakeland District Council,http://opendatacommunities.org/id/district-council/south-lakeland,31/05/2017,Business Support Community Services,Internal Trading Accounts,,TAYLOR ENGINEERING & FABRICATIONS LTD,4989359,22/05/2017,67967,333.69,0,Pins,391200,Construction Engineering
South Lakeland District Council,http://opendatacommunities.org/id/district-council/south-lakeland,31/05/2017,Business Support Community Services,Internal Trading Accounts,,TAYLOR ENGINEERING & FABRICATIONS LTD,4989359,22/05/2017,68178,28.15,0,Pins,391200,Construction Engineering
South Lakeland District Council,http://opendatacommunities.org/id/district-council/south-lakeland,31/05/2017,Business Support Community Services,Internal Trading Accounts,,TECHNIJET LTD,2776601,22/05/2017,68058,170.48,0,Service & repair pressure washers,139999,Cleaning & Janitorial Not Elsewhere Clas
South Lakeland District Council,http://opendatacommunities.org/id/district-council/south-lakeland,31/05/2017,Kendal Town Hall,Cultural Environmental Regulatory & Planning Services,http://opendatacommunities.org/def/concept/finance/sercop/objective/104,THE FULL OCTAVE LTD,4634955,08/05/2017,67505,91.67,0,Tuning of 2 pianos at KTH,179999,Education Not Elsewhere Classified
South Lakeland District Council,http://opendatacommunities.org/id/district-council/south-lakeland,31/05/2017,Business Support Community Services,Housing Services,http://opendatacommunities.org/def/concept/finance/sercop/objective/108,THE JAMES COCHRANE PRACTICE,,31/05/2017,68343,25,0,Medical report,311600,Healthcare Services
